Workbook

Sheet AVISO LEGAL
H2: Fecha de actualización: | J2: 2020-07-10
J23: www.ree.es

Sheet Indisp.Peninsular P mes
O1: 1
O2: 20
L4: Concepto
L5: Horizonte temporal
L6: Periodo
C8: Ene. | D8: Feb. | E8: Mar. | F8: Abr. | G8: May. | H8: Jun. | I8: Jul. | J8: Ago. | K8: Sep. | L8: Oct. | M8: Nov. | N8: Dic. | O8: =OFFSET(Año!B13,($O$2-1),0) -> 2020
B10: Nuclear | C10: =OFFSET(Datos!C3,0,($O$2-1)*13) -> 0 | D10: =OFFSET(Datos!D3,0,($O$2-1)*13) -> 0 | E10: =OFFSET(Datos!E3,0,($O$2-1)*13) -> 0 | F10: =OFFSET(Datos!F3,0,($O$2-1)*13) -> 0 | G10: =OFFSET(Datos!G3,0,($O$2-1)*13) -> 0 | H10: =OFFSET(Datos!H3,0,($O$2-1)*13) -> 0 | I10: =OFFSET(Datos!I3,0,($O$2-1)*13) -> - | J10: =OFFSET(Datos!J3,0,($O$2-1)*13) -> - | K10: =OFFSET(Datos!K3,0,($O$2-1)*13) -> - | L10: =OFFSET(Datos!L3,0,($O$2-1)*13) -> - | M10: =OFFSET(Datos!M3,0,($O$2-1)*13) -> - | N10: =OFFSET(Datos!N3,0,($O$2-1)*13) -> - | O10: =OFFSET(Datos!O3,0,($O$2-1)*13) -> 0
B11: Carbón | C11: =OFFSET(Datos!C4,0,($O$2-1)*13) -> 0 | D11: =OFFSET(Datos!D4,0,($O$2-1)*13) -> 0 | E11: =OFFSET(Datos!E4,0,($O$2-1)*13) -> 0 | F11: =OFFSET(Datos!F4,0,($O$2-1)*13) -> 0 | G11: =OFFSET(Datos!G4,0,($O$2-1)*13) -> 0 | H11: =OFFSET(Datos!H4,0,($O$2-1)*13) -> 0 | I11: =OFFSET(Datos!I4,0,($O$2-1)*13) -> - | J11: =OFFSET(Datos!J4,0,($O$2-1)*13) -> - | K11: =OFFSET(Datos!K4,0,($O$2-1)*13) -> - | L11: =OFFSET(Datos!L4,0,($O$2-1)*13) -> - | M11: =OFFSET(Datos!M4,0,($O$2-1)*13) -> - | N11: =OFFSET(Datos!N4,0,($O$2-1)*13) -> - | O11: =OFFSET(Datos!O4,0,($O$2-1)*13) -> 0
B12: Fuel + Gas | C12: =OFFSET(Datos!C5,0,($O$2-1)*13) -> - | D12: =OFFSET(Datos!D5,0,($O$2-1)*13) -> - | E12: =OFFSET(Datos!E5,0,($O$2-1)*13) -> - | F12: =OFFSET(Datos!F5,0,($O$2-1)*13) -> - | G12: =OFFSET(Datos!G5,0,($O$2-1)*13) -> - | H12: =OFFSET(Datos!H5,0,($O$2-1)*13) -> - | I12: =OFFSET(Datos!I5,0,($O$2-1)*13) -> - | J12: =OFFSET(Datos!J5,0,($O$2-1)*13) -> - | K12: =OFFSET(Datos!K5,0,($O$2-1)*13) -> - | L12: =OFFSET(Datos!L5,0,($O$2-1)*13) -> - | M12: =OFFSET(Datos!M5,0,($O$2-1)*13) -> - | N12: =OFFSET(Datos!N5,0,($O$2-1)*13) -> - | O12: =OFFSET(Datos!O5,0,($O$2-1)*13) -> -
B13: Ciclo combinado | C13: =OFFSET(Datos!C6,0,($O$2-1)*13) -> 0 | D13: =OFFSET(Datos!D6,0,($O$2-1)*13) -> 0 | E13: =OFFSET(Datos!E6,0,($O$2-1)*13) -> 0 | F13: =OFFSET(Datos!F6,0,($O$2-1)*13) -> 0 | G13: =OFFSET(Datos!G6,0,($O$2-1)*13) -> 0 | H13: =OFFSET(Datos!H6,0,($O$2-1)*13) -> 0 | I13: =OFFSET(Datos!I6,0,($O$2-1)*13) -> - | J13: =OFFSET(Datos!J6,0,($O$2-1)*13) -> - | K13: =OFFSET(Datos!K6,0,($O$2-1)*13) -> - | L13: =OFFSET(Datos!L6,0,($O$2-1)*13) -> - | M13: =OFFSET(Datos!M6,0,($O$2-1)*13) -> - | N13: =OFFSET(Datos!N6,0,($O$2-1)*13) -> - | O13: =OFFSET(Datos!O6,0,($O$2-1)*13) -> 0
B14: Indisponibilidad permanente | C14: =OFFSET(Datos!C7,0,($O$2-1)*13) -> 0 | D14: =OFFSET(Datos!D7,0,($O$2-1)*13) -> 0 | E14: =OFFSET(Datos!E7,0,($O$2-1)*13) -> 0 | F14: =OFFSET(Datos!F7,0,($O$2-1)*13) -> 0 | G14: =OFFSET(Datos!G7,0,($O$2-1)*13) -> 0 | H14: =OFFSET(Datos!H7,0,($O$2-1)*13) -> 0 | I14: =OFFSET(Datos!I7,0,($O$2-1)*13) -> - | J14: =OFFSET(Datos!J7,0,($O$2-1)*13) -> - | K14: =OFFSET(Datos!K7,0,($O$2-1)*13) -> - | L14: =OFFSET(Datos!L7,0,($O$2-1)*13) -> - | M14: =OFFSET(Datos!M7,0,($O$2-1)*13) -> - | N14: =OFFSET(Datos!N7,0,($O$2-1)*13) -> - | O14: =OFFSET(Datos!O7,0,($O$2-1)*13) -> 0
B16: Datos a último día de cada mes.

Sheet Indisp.Peninsular P año
J1: 1
J2: 3
H4: Concepto
H5: Horizonte temporal
H6: Periodo
C8: =OFFSET(Datos!C37,0,($J$2-1)*8) -> 2017 | D8: =OFFSET(Datos!D37,0,($J$2-1)*8) -> 2018 | E8: =OFFSET(Datos!E37,0,($J$2-1)*8) -> 2019 | F8: =OFFSET(Datos!F37,0,($J$2-1)*8) -> 2020 | G8: =OFFSET(Datos!G37,0,($J$2-1)*8) -> 2021 | H8: =OFFSET(Datos!H37,0,($J$2-1)*8) -> 2022 | I8: =OFFSET(Datos!I37,0,($J$2-1)*8) -> 2023 | J8: =OFFSET(Datos!J37,0,($J$2-1)*8) -> 2024
B10: Nuclear | C10: =OFFSET(Datos!C38,0,($J$2-1)*8) -> 5.057484237 | D10: =OFFSET(Datos!D38,0,($J$2-1)*8) -> 0 | E10: =OFFSET(Datos!E38,0,($J$2-1)*8) -> 0 | F10: =OFFSET(Datos!F38,0,($J$2-1)*8) -> 0 | G10: =OFFSET(Datos!G38,0,($J$2-1)*8) -> - | H10: =OFFSET(Datos!H38,0,($J$2-1)*8) -> - | I10: =OFFSET(Datos!I38,0,($J$2-1)*8) -> - | J10: =OFFSET(Datos!J38,0,($J$2-1)*8) -> -
B11: Carbón | C11: =OFFSET(Datos!C39,0,($J$2-1)*8) -> 0 | D11: =OFFSET(Datos!D39,0,($J$2-1)*8) -> 0 | E11: =OFFSET(Datos!E39,0,($J$2-1)*8) -> 0 | F11: =OFFSET(Datos!F39,0,($J$2-1)*8) -> 0 | G11: =OFFSET(Datos!G39,0,($J$2-1)*8) -> - | H11: =OFFSET(Datos!H39,0,($J$2-1)*8) -> - | I11: =OFFSET(Datos!I39,0,($J$2-1)*8) -> - | J11: =OFFSET(Datos!J39,0,($J$2-1)*8) -> -
B12: Fuel + Gas | C12: =OFFSET(Datos!C40,0,($J$2-1)*8) -> - | D12: =OFFSET(Datos!D40,0,($J$2-1)*8) -> - | E12: =OFFSET(Datos!E40,0,($J$2-1)*8) -> - | F12: =OFFSET(Datos!F40,0,($J$2-1)*8) -> - | G12: =OFFSET(Datos!G40,0,($J$2-1)*8) -> - | H12: =OFFSET(Datos!H40,0,($J$2-1)*8) -> - | I12: =OFFSET(Datos!I40,0,($J$2-1)*8) -> - | J12: =OFFSET(Datos!J40,0,($J$2-1)*8) -> -
B13: Ciclo combinado | C13: =OFFSET(Datos!C41,0,($J$2-1)*8) -> 0 | D13: =OFFSET(Datos!D41,0,($J$2-1)*8) -> 0.1320865493 | E13: =OFFSET(Datos!E41,0,($J$2-1)*8) -> 0 | F13: =OFFSET(Datos!F41,0,($J$2-1)*8) -> 0 | G13: =OFFSET(Datos!G41,0,($J$2-1)*8) -> - | H13: =OFFSET(Datos!H41,0,($J$2-1)*8) -> - | I13: =OFFSET(Datos!I41,0,($J$2-1)*8) -> - | J13: =OFFSET(Datos!J41,0,($J$2-1)*8) -> -
B14: Indisponibilidad permanente | C14: =OFFSET(Datos!C42,0,($J$2-1)*8) -> 0.90318667 | D14: =OFFSET(Datos!D42,0,($J$2-1)*8) -> 0.0790302799 | E14: =OFFSET(Datos!E42,0,($J$2-1)*8) -> 0 | F14: =OFFSET(Datos!F42,0,($J$2-1)*8) -> 0 | G14: =OFFSET(Datos!G42,0,($J$2-1)*8) -> - | H14: =OFFSET(Datos!H42,0,($J$2-1)*8) -> - | I14: =OFFSET(Datos!I42,0,($J$2-1)*8) -> - | J14: =OFFSET(Datos!J42,0,($J$2-1)*8) -> -
B16: =IF(MONTH(FACT)=1,"Datos acumulados a 31 de diciembre.",CONCATENATE("Datos acumulados a 31 de diciembre. Para el año ",YEAR(FACT), " datos acumulados a ",TEXT(FACT-30,"mmmm")," de ",YEAR(FACT),".")) -> Datos acumulados a 31 de diciembre. Para el año 2020 datos acumulados a junio de 2020.

Sheet Indisp.Peninsular Pr mes
O1: 2
O2: 20
L4: Concepto
L5: Horizonte temporal
L6: Periodo
C8: Ene. | D8: Feb. | E8: Mar. | F8: Abr. | G8: May. | H8: Jun. | I8: Jul. | J8: Ago. | K8: Sep. | L8: Oct. | M8: Nov. | N8: Dic. | O8: =OFFSET(Año!B13,($O$2-1),0) -> 2020
B10: Nuclear | C10: =OFFSET(Datos!C10,0,($O$2-1)*13) -> 0 | D10: =OFFSET(Datos!D10,0,($O$2-1)*13) -> 0 | E10: =OFFSET(Datos!E10,0,($O$2-1)*13) -> 0 | F10: =OFFSET(Datos!F10,0,($O$2-1)*13) -> 0 | G10: =OFFSET(Datos!G10,0,($O$2-1)*13) -> 6.310099749 | H10: =OFFSET(Datos!H10,0,($O$2-1)*13) -> 9.183437463 | I10: =OFFSET(Datos!I10,0,($O$2-1)*13) -> - | J10: =OFFSET(Datos!J10,0,($O$2-1)*13) -> - | K10: =OFFSET(Datos!K10,0,($O$2-1)*13) -> - | L10: =OFFSET(Datos!L10,0,($O$2-1)*13) -> - | M10: =OFFSET(Datos!M10,0,($O$2-1)*13) -> - | N10: =OFFSET(Datos!N10,0,($O$2-1)*13) -> - | O10: =OFFSET(Datos!O10,0,($O$2-1)*13) -> 2.589143391
B11: Carbón | C11: =OFFSET(Datos!C11,0,($O$2-1)*13) -> 0 | D11: =OFFSET(Datos!D11,0,($O$2-1)*13) -> 0 | E11: =OFFSET(Datos!E11,0,($O$2-1)*13) -> 0 | F11: =OFFSET(Datos!F11,0,($O$2-1)*13) -> 0 | G11: =OFFSET(Datos!G11,0,($O$2-1)*13) -> 0 | H11: =OFFSET(Datos!H11,0,($O$2-1)*13) -> 0 | I11: =OFFSET(Datos!I11,0,($O$2-1)*13) -> - | J11: =OFFSET(Datos!J11,0,($O$2-1)*13) -> - | K11: =OFFSET(Datos!K11,0,($O$2-1)*13) -> - | L11: =OFFSET(Datos!L11,0,($O$2-1)*13) -> - | M11: =OFFSET(Datos!M11,0,($O$2-1)*13) -> - | N11: =OFFSET(Datos!N11,0,($O$2-1)*13) -> - | O11: =OFFSET(Datos!O11,0,($O$2-1)*13) -> 0
B12: Fuel + Gas | C12: =OFFSET(Datos!C12,0,($O$2-1)*13) -> - | D12: =OFFSET(Datos!D12,0,($O$2-1)*13) -> - | E12: =OFFSET(Datos!E12,0,($O$2-1)*13) -> - | F12: =OFFSET(Datos!F12,0,($O$2-1)*13) -> - | G12: =OFFSET(Datos!G12,0,($O$2-1)*13) -> - | H12: =OFFSET(Datos!H12,0,($O$2-1)*13) -> - | I12: =OFFSET(Datos!I12,0,($O$2-1)*13) -> - | J12: =OFFSET(Datos!J12,0,($O$2-1)*13) -> - | K12: =OFFSET(Datos!K12,0,($O$2-1)*13) -> - | L12: =OFFSET(Datos!L12,0,($O$2-1)*13) -> - | M12: =OFFSET(Datos!M12,0,($O$2-1)*13) -> - | N12: =OFFSET(Datos!N12,0,($O$2-1)*13) -> - | O12: =OFFSET(Datos!O12,0,($O$2-1)*13) -> -
B13: Ciclo combinado | C13: =OFFSET(Datos!C13,0,($O$2-1)*13) -> 0 | D13: =OFFSET(Datos!D13,0,($O$2-1)*13) -> 7.226960323 | E13: =OFFSET(Datos!E13,0,($O$2-1)*13) -> 9.212008305 | F13: =OFFSET(Datos!F13,0,($O$2-1)*13) -> 1.756543266 | G13: =OFFSET(Datos!G13,0,($O$2-1)*13) -> 3.459240491 | H13: =OFFSET(Datos!H13,0,($O$2-1)*13) -> 5.405084722 | I13: =OFFSET(Datos!I13,0,($O$2-1)*13) -> - | J13: =OFFSET(Datos!J13,0,($O$2-1)*13) -> - | K13: =OFFSET(Datos!K13,0,($O$2-1)*13) -> - | L13: =OFFSET(Datos!L13,0,($O$2-1)*13) -> - | M13: =OFFSET(Datos!M13,0,($O$2-1)*13) -> - | N13: =OFFSET(Datos!N13,0,($O$2-1)*13) -> - | O13: =OFFSET(Datos!O13,0,($O$2-1)*13) -> 4.489245164
B14: Indisponibilidad prevista | C14: =OFFSET(Datos!C14,0,($O$2-1)*13) -> 0 | D14: =OFFSET(Datos!D14,0,($O$2-1)*13) -> 4.340626469 | E14: =OFFSET(Datos!E14,0,($O$2-1)*13) -> 5.532877627 | F14: =OFFSET(Datos!F14,0,($O$2-1)*13) -> 1.055007618 | G14: =OFFSET(Datos!G14,0,($O$2-1)*13) -> 3.175974114 | H14: =OFFSET(Datos!H14,0,($O$2-1)*13) -> 4.844795512 | I14: =OFFSET(Datos!I14,0,($O$2-1)*13) -> - | J14: =OFFSET(Datos!J14,0,($O$2-1)*13) -> - | K14: =OFFSET(Datos!K14,0,($O$2-1)*13) -> - | L14: =OFFSET(Datos!L14,0,($O$2-1)*13) -> - | M14: =OFFSET(Datos!M14,0,($O$2-1)*13) -> - | N14: =OFFSET(Datos!N14,0,($O$2-1)*13) -> - | O14: =OFFSET(Datos!O14,0,($O$2-1)*13) -> 3.146962925
B16: Datos a último día de cada mes.

Sheet Indisp.Peninsular Pr año
J1: 1
J2: 3
H4: Concepto
H5: Horizonte temporal
H6: Periodo
C8: =OFFSET(Datos!C44,0,($J$2-1)*8) -> 2017 | D8: =OFFSET(Datos!D44,0,($J$2-1)*8) -> 2018 | E8: =OFFSET(Datos!E44,0,($J$2-1)*8) -> 2019 | F8: =OFFSET(Datos!F44,0,($J$2-1)*8) -> 2020 | G8: =OFFSET(Datos!G44,0,($J$2-1)*8) -> 2021 | H8: =OFFSET(Datos!H44,0,($J$2-1)*8) -> 2022 | I8: =OFFSET(Datos!I44,0,($J$2-1)*8) -> 2023 | J8: =OFFSET(Datos!J44,0,($J$2-1)*8) -> 2024
B10: Nuclear | C10: =OFFSET(Datos!C45,0,($J$2-1)*8) -> 6.17655274 | D10: =OFFSET(Datos!D45,0,($J$2-1)*8) -> 5.41678163 | E10: =OFFSET(Datos!E45,0,($J$2-1)*8) -> 6.757395394 | F10: =OFFSET(Datos!F45,0,($J$2-1)*8) -> 2.589143391 | G10: =OFFSET(Datos!G45,0,($J$2-1)*8) -> - | H10: =OFFSET(Datos!H45,0,($J$2-1)*8) -> - | I10: =OFFSET(Datos!I45,0,($J$2-1)*8) -> - | J10: =OFFSET(Datos!J45,0,($J$2-1)*8) -> -
B11: Carbón | C11: =OFFSET(Datos!C46,0,($J$2-1)*8) -> 5.207224685 | D11: =OFFSET(Datos!D46,0,($J$2-1)*8) -> 2.439036694 | E11: =OFFSET(Datos!E46,0,($J$2-1)*8) -> 1.835112723 | F11: =OFFSET(Datos!F46,0,($J$2-1)*8) -> 0 | G11: =OFFSET(Datos!G46,0,($J$2-1)*8) -> - | H11: =OFFSET(Datos!H46,0,($J$2-1)*8) -> - | I11: =OFFSET(Datos!I46,0,($J$2-1)*8) -> - | J11: =OFFSET(Datos!J46,0,($J$2-1)*8) -> -
B12: Fuel + Gas | C12: =OFFSET(Datos!C47,0,($J$2-1)*8) -> - | D12: =OFFSET(Datos!D47,0,($J$2-1)*8) -> - | E12: =OFFSET(Datos!E47,0,($J$2-1)*8) -> - | F12: =OFFSET(Datos!F47,0,($J$2-1)*8) -> - | G12: =OFFSET(Datos!G47,0,($J$2-1)*8) -> - | H12: =OFFSET(Datos!H47,0,($J$2-1)*8) -> - | I12: =OFFSET(Datos!I47,0,($J$2-1)*8) -> - | J12: =OFFSET(Datos!J47,0,($J$2-1)*8) -> -
B13: Ciclo combinado | C13: =OFFSET(Datos!C48,0,($J$2-1)*8) -> 4.644847441 | D13: =OFFSET(Datos!D48,0,($J$2-1)*8) -> 3.314229186 | E13: =OFFSET(Datos!E48,0,($J$2-1)*8) -> 4.665406432 | F13: =OFFSET(Datos!F48,0,($J$2-1)*8) -> 4.489245164 | G13: =OFFSET(Datos!G48,0,($J$2-1)*8) -> - | H13: =OFFSET(Datos!H48,0,($J$2-1)*8) -> - | I13: =OFFSET(Datos!I48,0,($J$2-1)*8) -> - | J13: =OFFSET(Datos!J48,0,($J$2-1)*8) -> -
B14: Indisponibilidad prevista | C14: =OFFSET(Datos!C49,0,($J$2-1)*8) -> 5.046126482 | D14: =OFFSET(Datos!D49,0,($J$2-1)*8) -> 3.473846599 | E14: =OFFSET(Datos!E49,0,($J$2-1)*8) -> 4.387565087 | F14: =OFFSET(Datos!F49,0,($J$2-1)*8) -> 3.146962925 | G14: =OFFSET(Datos!G49,0,($J$2-1)*8) -> - | H14: =OFFSET(Datos!H49,0,($J$2-1)*8) -> - | I14: =OFFSET(Datos!I49,0,($J$2-1)*8) -> - | J14: =OFFSET(Datos!J49,0,($J$2-1)*8) -> -
B16: =IF(MONTH(FACT)=1,"Datos acumulados a 31 de diciembre.",CONCATENATE("Datos acumulados a 31 de diciembre. Para el año ",YEAR(FACT), " datos acumulados a ",TEXT(FACT-30,"mmmm")," de ",YEAR(FACT),".")) -> Datos acumulados a 31 de diciembre. Para el año 2020 datos acumulados a junio de 2020.

Sheet Indisp.Peninsular NP mes
O1: 3
O2: 20
L4: Concepto
L5: Horizonte temporal
L6: Periodo
C8: Ene. | D8: Feb. | E8: Mar. | F8: Abr. | G8: May. | H8: Jun. | I8: Jul. | J8: Ago. | K8: Sep. | L8: Oct. | M8: Nov. | N8: Dic. | O8: =OFFSET(Año!B13,($O$2-1),0) -> 2020
B10: Nuclear | C10: =OFFSET(Datos!C17,0,($O$2-1)*13) -> 0.05441831737 | D10: =OFFSET(Datos!D17,0,($O$2-1)*13) -> 0.1377706048 | E10: =OFFSET(Datos!E17,0,($O$2-1)*13) -> 0.1098092396 | F10: =OFFSET(Datos!F17,0,($O$2-1)*13) -> 10.49863359 | G10: =OFFSET(Datos!G17,0,($O$2-1)*13) -> 28.21708534 | H10: =OFFSET(Datos!H17,0,($O$2-1)*13) -> 17.07163025 | I10: =OFFSET(Datos!I17,0,($O$2-1)*13) -> - | J10: =OFFSET(Datos!J17,0,($O$2-1)*13) -> - | K10: =OFFSET(Datos!K17,0,($O$2-1)*13) -> - | L10: =OFFSET(Datos!L17,0,($O$2-1)*13) -> - | M10: =OFFSET(Datos!M17,0,($O$2-1)*13) -> - | N10: =OFFSET(Datos!N17,0,($O$2-1)*13) -> - | O10: =OFFSET(Datos!O17,0,($O$2-1)*13) -> 9.402808631
B11: Carbón | C11: =OFFSET(Datos!C18,0,($O$2-1)*13) -> 14.39319662 | D11: =OFFSET(Datos!D18,0,($O$2-1)*13) -> 13.55232448 | E11: =OFFSET(Datos!E18,0,($O$2-1)*13) -> 13.03991614 | F11: =OFFSET(Datos!F18,0,($O$2-1)*13) -> 11.14834485 | G11: =OFFSET(Datos!G18,0,($O$2-1)*13) -> 10.83708674 | H11: =OFFSET(Datos!H18,0,($O$2-1)*13) -> 18.21655673 | I11: =OFFSET(Datos!I18,0,($O$2-1)*13) -> - | J11: =OFFSET(Datos!J18,0,($O$2-1)*13) -> - | K11: =OFFSET(Datos!K18,0,($O$2-1)*13) -> - | L11: =OFFSET(Datos!L18,0,($O$2-1)*13) -> - | M11: =OFFSET(Datos!M18,0,($O$2-1)*13) -> - | N11: =OFFSET(Datos!N18,0,($O$2-1)*13) -> - | O11: =OFFSET(Datos!O18,0,($O$2-1)*13) -> 13.51846473
B12: Fuel + Gas | C12: =OFFSET(Datos!C19,0,($O$2-1)*13) -> - | D12: =OFFSET(Datos!D19,0,($O$2-1)*13) -> - | E12: =OFFSET(Datos!E19,0,($O$2-1)*13) -> - | F12: =OFFSET(Datos!F19,0,($O$2-1)*13) -> - | G12: =OFFSET(Datos!G19,0,($O$2-1)*13) -> - | H12: =OFFSET(Datos!H19,0,($O$2-1)*13) -> - | I12: =OFFSET(Datos!I19,0,($O$2-1)*13) -> - | J12: =OFFSET(Datos!J19,0,($O$2-1)*13) -> - | K12: =OFFSET(Datos!K19,0,($O$2-1)*13) -> - | L12: =OFFSET(Datos!L19,0,($O$2-1)*13) -> - | M12: =OFFSET(Datos!M19,0,($O$2-1)*13) -> - | N12: =OFFSET(Datos!N19,0,($O$2-1)*13) -> - | O12: =OFFSET(Datos!O19,0,($O$2-1)*13) -> -
B13: Ciclo combinado | C13: =OFFSET(Datos!C20,0,($O$2-1)*13) -> 16.2854644 | D13: =OFFSET(Datos!D20,0,($O$2-1)*13) -> 10.64006604 | E13: =OFFSET(Datos!E20,0,($O$2-1)*13) -> 11.58634248 | F13: =OFFSET(Datos!F20,0,($O$2-1)*13) -> 13.51072231 | G13: =OFFSET(Datos!G20,0,($O$2-1)*13) -> 14.3951601 | H13: =OFFSET(Datos!H20,0,($O$2-1)*13) -> 14.21989745 | I13: =OFFSET(Datos!I20,0,($O$2-1)*13) -> - | J13: =OFFSET(Datos!J20,0,($O$2-1)*13) -> - | K13: =OFFSET(Datos!K20,0,($O$2-1)*13) -> - | L13: =OFFSET(Datos!L20,0,($O$2-1)*13) -> - | M13: =OFFSET(Datos!M20,0,($O$2-1)*13) -> - | N13: =OFFSET(Datos!N20,0,($O$2-1)*13) -> - | O13: =OFFSET(Datos!O20,0,($O$2-1)*13) -> 13.46612532
B14: Indisponibilidad no prevista | C14: =OFFSET(Datos!C21,0,($O$2-1)*13) -> 13.03399726 | D14: =OFFSET(Datos!D21,0,($O$2-1)*13) -> 9.468316005 | E14: =OFFSET(Datos!E21,0,($O$2-1)*13) -> 9.916336832 | F14: =OFFSET(Datos!F21,0,($O$2-1)*13) -> 12.45414105 | G14: =OFFSET(Datos!G21,0,($O$2-1)*13) -> 15.99918435 | H14: =OFFSET(Datos!H21,0,($O$2-1)*13) -> 15.61682075 | I14: =OFFSET(Datos!I21,0,($O$2-1)*13) -> - | J14: =OFFSET(Datos!J21,0,($O$2-1)*13) -> - | K14: =OFFSET(Datos!K21,0,($O$2-1)*13) -> - | L14: =OFFSET(Datos!L21,0,($O$2-1)*13) -> - | M14: =OFFSET(Datos!M21,0,($O$2-1)*13) -> - | N14: =OFFSET(Datos!N21,0,($O$2-1)*13) -> - | O14: =OFFSET(Datos!O21,0,($O$2-1)*13) -> 12.77068143
B16: Datos a último día de cada mes.

Sheet Indisp.Peninsular NP año
J1: 1
J2: 3
H4: Concepto
H5: Horizonte temporal
H6: Periodo
C8: =OFFSET(Datos!C51,0,($J$2-1)*8) -> 2017 | D8: =OFFSET(Datos!D51,0,($J$2-1)*8) -> 2018 | E8: =OFFSET(Datos!E51,0,($J$2-1)*8) -> 2019 | F8: =OFFSET(Datos!F51,0,($J$2-1)*8) -> 2020 | G8: =OFFSET(Datos!G51,0,($J$2-1)*8) -> 2021 | H8: =OFFSET(Datos!H51,0,($J$2-1)*8) -> 2022 | I8: =OFFSET(Datos!I51,0,($J$2-1)*8) -> 2023 | J8: =OFFSET(Datos!J51,0,($J$2-1)*8) -> 2024
B10: Nuclear | C10: =OFFSET(Datos!C52,0,($J$2-1)*8) -> 2.16976924 | D10: =OFFSET(Datos!D52,0,($J$2-1)*8) -> 7.789625284 | E10: =OFFSET(Datos!E52,0,($J$2-1)*8) -> 1.758094695 | F10: =OFFSET(Datos!F52,0,($J$2-1)*8) -> 9.402808631 | G10: =OFFSET(Datos!G52,0,($J$2-1)*8) -> - | H10: =OFFSET(Datos!H52,0,($J$2-1)*8) -> - | I10: =OFFSET(Datos!I52,0,($J$2-1)*8) -> - | J10: =OFFSET(Datos!J52,0,($J$2-1)*8) -> -
B11: Carbón | C11: =OFFSET(Datos!C53,0,($J$2-1)*8) -> 5.834161886 | D11: =OFFSET(Datos!D53,0,($J$2-1)*8) -> 5.607447754 | E11: =OFFSET(Datos!E53,0,($J$2-1)*8) -> 9.133301253 | F11: =OFFSET(Datos!F53,0,($J$2-1)*8) -> 13.51846473 | G11: =OFFSET(Datos!G53,0,($J$2-1)*8) -> - | H11: =OFFSET(Datos!H53,0,($J$2-1)*8) -> - | I11: =OFFSET(Datos!I53,0,($J$2-1)*8) -> - | J11: =OFFSET(Datos!J53,0,($J$2-1)*8) -> -
B12: Fuel + Gas | C12: =OFFSET(Datos!C54,0,($J$2-1)*8) -> - | D12: =OFFSET(Datos!D54,0,($J$2-1)*8) -> - | E12: =OFFSET(Datos!E54,0,($J$2-1)*8) -> - | F12: =OFFSET(Datos!F54,0,($J$2-1)*8) -> - | G12: =OFFSET(Datos!G54,0,($J$2-1)*8) -> - | H12: =OFFSET(Datos!H54,0,($J$2-1)*8) -> - | I12: =OFFSET(Datos!I54,0,($J$2-1)*8) -> - | J12: =OFFSET(Datos!J54,0,($J$2-1)*8) -> -
B13: Ciclo combinado | C13: =OFFSET(Datos!C55,0,($J$2-1)*8) -> 3.096190161 | D13: =OFFSET(Datos!D55,0,($J$2-1)*8) -> 3.517259438 | E13: =OFFSET(Datos!E55,0,($J$2-1)*8) -> 7.770542414 | F13: =OFFSET(Datos!F55,0,($J$2-1)*8) -> 13.46612532 | G13: =OFFSET(Datos!G55,0,($J$2-1)*8) -> - | H13: =OFFSET(Datos!H55,0,($J$2-1)*8) -> - | I13: =OFFSET(Datos!I55,0,($J$2-1)*8) -> - | J13: =OFFSET(Datos!J55,0,($J$2-1)*8) -> -
B14: Indisponibilidad no prevista | C14: =OFFSET(Datos!C56,0,($J$2-1)*8) -> 3.552660335 | D14: =OFFSET(Datos!D56,0,($J$2-1)*8) -> 4.731437851 | E14: =OFFSET(Datos!E56,0,($J$2-1)*8) -> 7.03458313 | F14: =OFFSET(Datos!F56,0,($J$2-1)*8) -> 12.77068143 | G14: =OFFSET(Datos!G56,0,($J$2-1)*8) -> - | H14: =OFFSET(Datos!H56,0,($J$2-1)*8) -> - | I14: =OFFSET(Datos!I56,0,($J$2-1)*8) -> - | J14: =OFFSET(Datos!J56,0,($J$2-1)*8) -> -
B16: =IF(MONTH(FACT)=1,"Datos acumulados a 31 de diciembre.",CONCATENATE("Datos acumulados a 31 de diciembre. Para el año ",YEAR(FACT), " datos acumulados a ",TEXT(FACT-30,"mmmm")," de ",YEAR(FACT),".")) -> Datos acumulados a 31 de diciembre. Para el año 2020 datos acumulados a junio de 2020.

Sheet Disponibilidad Peninsular mes
O1: 20
L4: Concepto
L5: Horizonte temporal
L6: Periodo
C8: Ene. | D8: Feb. | E8: Mar. | F8: Abr. | G8: May. | H8: Jun. | I8: Jul. | J8: Ago. | K8: Sep. | L8: Oct. | M8: Nov. | N8: Dic. | O8: =OFFSET(Año!B13,($O$1-1),0) -> 2020
B10: Nuclear | C10: =OFFSET(Datos!C24,0,($O$1-1)*13) -> 99.94558168 | D10: =OFFSET(Datos!D24,0,($O$1-1)*13) -> 99.8622294 | E10: =OFFSET(Datos!E24,0,($O$1-1)*13) -> 99.89019076 | F10: =OFFSET(Datos!F24,0,($O$1-1)*13) -> 89.50136641 | G10: =OFFSET(Datos!G24,0,($O$1-1)*13) -> 65.47281491 | H10: =OFFSET(Datos!H24,0,($O$1-1)*13) -> 73.74493229 | I10: =OFFSET(Datos!I24,0,($O$1-1)*13) -> - | J10: =OFFSET(Datos!J24,0,($O$1-1)*13) -> - | K10: =OFFSET(Datos!K24,0,($O$1-1)*13) -> - | L10: =OFFSET(Datos!L24,0,($O$1-1)*13) -> - | M10: =OFFSET(Datos!M24,0,($O$1-1)*13) -> - | N10: =OFFSET(Datos!N24,0,($O$1-1)*13) -> - | O10: =OFFSET(Datos!O24,0,($O$1-1)*13) -> 88.00804798
B11: Carbón | C11: =OFFSET(Datos!C25,0,($O$1-1)*13) -> 85.60680338 | D11: =OFFSET(Datos!D25,0,($O$1-1)*13) -> 86.44767552 | E11: =OFFSET(Datos!E25,0,($O$1-1)*13) -> 86.96008386 | F11: =OFFSET(Datos!F25,0,($O$1-1)*13) -> 88.85165515 | G11: =OFFSET(Datos!G25,0,($O$1-1)*13) -> 89.16291326 | H11: =OFFSET(Datos!H25,0,($O$1-1)*13) -> 81.78344327 | I11: =OFFSET(Datos!I25,0,($O$1-1)*13) -> - | J11: =OFFSET(Datos!J25,0,($O$1-1)*13) -> - | K11: =OFFSET(Datos!K25,0,($O$1-1)*13) -> - | L11: =OFFSET(Datos!L25,0,($O$1-1)*13) -> - | M11: =OFFSET(Datos!M25,0,($O$1-1)*13) -> - | N11: =OFFSET(Datos!N25,0,($O$1-1)*13) -> - | O11: =OFFSET(Datos!O25,0,($O$1-1)*13) -> 86.48153527
B12: Fuel + Gas | C12: =OFFSET(Datos!C26,0,($O$1-1)*13) -> - | D12: =OFFSET(Datos!D26,0,($O$1-1)*13) -> - | E12: =OFFSET(Datos!E26,0,($O$1-1)*13) -> - | F12: =OFFSET(Datos!F26,0,($O$1-1)*13) -> - | G12: =OFFSET(Datos!G26,0,($O$1-1)*13) -> - | H12: =OFFSET(Datos!H26,0,($O$1-1)*13) -> - | I12: =OFFSET(Datos!I26,0,($O$1-1)*13) -> - | J12: =OFFSET(Datos!J26,0,($O$1-1)*13) -> - | K12: =OFFSET(Datos!K26,0,($O$1-1)*13) -> - | L12: =OFFSET(Datos!L26,0,($O$1-1)*13) -> - | M12: =OFFSET(Datos!M26,0,($O$1-1)*13) -> - | N12: =OFFSET(Datos!N26,0,($O$1-1)*13) -> - | O12: =OFFSET(Datos!O26,0,($O$1-1)*13) -> -
B13: Ciclo combinado | C13: =OFFSET(Datos!C27,0,($O$1-1)*13) -> 83.7145356 | D13: =OFFSET(Datos!D27,0,($O$1-1)*13) -> 82.13297364 | E13: =OFFSET(Datos!E27,0,($O$1-1)*13) -> 79.20164921 | F13: =OFFSET(Datos!F27,0,($O$1-1)*13) -> 84.73273442 | G13: =OFFSET(Datos!G27,0,($O$1-1)*13) -> 82.14559941 | H13: =OFFSET(Datos!H27,0,($O$1-1)*13) -> 80.37501783 | I13: =OFFSET(Datos!I27,0,($O$1-1)*13) -> - | J13: =OFFSET(Datos!J27,0,($O$1-1)*13) -> - | K13: =OFFSET(Datos!K27,0,($O$1-1)*13) -> - | L13: =OFFSET(Datos!L27,0,($O$1-1)*13) -> - | M13: =OFFSET(Datos!M27,0,($O$1-1)*13) -> - | N13: =OFFSET(Datos!N27,0,($O$1-1)*13) -> - | O13: =OFFSET(Datos!O27,0,($O$1-1)*13) -> 82.04462951
B14: Disponibilidad | C14: =OFFSET(Datos!C28,0,($O$1-1)*13) -> 86.96600274 | D14: =OFFSET(Datos!D28,0,($O$1-1)*13) -> 86.19105753 | E14: =OFFSET(Datos!E28,0,($O$1-1)*13) -> 84.55078554 | F14: =OFFSET(Datos!F28,0,($O$1-1)*13) -> 86.49085134 | G14: =OFFSET(Datos!G28,0,($O$1-1)*13) -> 80.82484154 | H14: =OFFSET(Datos!H28,0,($O$1-1)*13) -> 79.53838374 | I14: =OFFSET(Datos!I28,0,($O$1-1)*13) -> - | J14: =OFFSET(Datos!J28,0,($O$1-1)*13) -> - | K14: =OFFSET(Datos!K28,0,($O$1-1)*13) -> - | L14: =OFFSET(Datos!L28,0,($O$1-1)*13) -> - | M14: =OFFSET(Datos!M28,0,($O$1-1)*13) -> - | N14: =OFFSET(Datos!N28,0,($O$1-1)*13) -> - | O14: =OFFSET(Datos!O28,0,($O$1-1)*13) -> 84.08235564
B16: Datos a último día de cada mes.

Sheet Disponibilidad Peninsular año
J1: 3
H4: Concepto
H5: Horizonte temporal
H6: Periodo
C8: =OFFSET(Datos!C58,0,($J$1-1)*8) -> 2017 | D8: =OFFSET(Datos!D58,0,($J$1-1)*8) -> 2018 | E8: =OFFSET(Datos!E58,0,($J$1-1)*8) -> 2019 | F8: =OFFSET(Datos!F58,0,($J$1-1)*8) -> 2020 | G8: =OFFSET(Datos!G58,0,($J$1-1)*8) -> 2021 | H8: =OFFSET(Datos!H58,0,($J$1-1)*8) -> 2022 | I8: =OFFSET(Datos!I58,0,($J$1-1)*8) -> 2023 | J8: =OFFSET(Datos!J58,0,($J$1-1)*8) -> 2024
B10: Nuclear | C10: =OFFSET(Datos!C59,0,($J$1-1)*8) -> 86.59619378 | D10: =OFFSET(Datos!D59,0,($J$1-1)*8) -> 86.79359309 | E10: =OFFSET(Datos!E59,0,($J$1-1)*8) -> 91.48450991 | F10: =OFFSET(Datos!F59,0,($J$1-1)*8) -> 88.00804798 | G10: =OFFSET(Datos!G59,0,($J$1-1)*8) -> - | H10: =OFFSET(Datos!H59,0,($J$1-1)*8) -> - | I10: =OFFSET(Datos!I59,0,($J$1-1)*8) -> - | J10: =OFFSET(Datos!J59,0,($J$1-1)*8) -> -
B11: Carbón | C11: =OFFSET(Datos!C60,0,($J$1-1)*8) -> 88.95861343 | D11: =OFFSET(Datos!D60,0,($J$1-1)*8) -> 91.95351555 | E11: =OFFSET(Datos!E60,0,($J$1-1)*8) -> 89.03158602 | F11: =OFFSET(Datos!F60,0,($J$1-1)*8) -> 86.48153527 | G11: =OFFSET(Datos!G60,0,($J$1-1)*8) -> - | H11: =OFFSET(Datos!H60,0,($J$1-1)*8) -> - | I11: =OFFSET(Datos!I60,0,($J$1-1)*8) -> - | J11: =OFFSET(Datos!J60,0,($J$1-1)*8) -> -
B12: Fuel + Gas | C12: =OFFSET(Datos!C61,0,($J$1-1)*8) -> - | D12: =OFFSET(Datos!D61,0,($J$1-1)*8) -> - | E12: =OFFSET(Datos!E61,0,($J$1-1)*8) -> - | F12: =OFFSET(Datos!F61,0,($J$1-1)*8) -> - | G12: =OFFSET(Datos!G61,0,($J$1-1)*8) -> - | H12: =OFFSET(Datos!H61,0,($J$1-1)*8) -> - | I12: =OFFSET(Datos!I61,0,($J$1-1)*8) -> - | J12: =OFFSET(Datos!J61,0,($J$1-1)*8) -> -
B13: Ciclo combinado | C13: =OFFSET(Datos!C62,0,($J$1-1)*8) -> 92.2589624 | D13: =OFFSET(Datos!D62,0,($J$1-1)*8) -> 93.03642483 | E13: =OFFSET(Datos!E62,0,($J$1-1)*8) -> 87.56405115 | F13: =OFFSET(Datos!F62,0,($J$1-1)*8) -> 82.04462951 | G13: =OFFSET(Datos!G62,0,($J$1-1)*8) -> - | H13: =OFFSET(Datos!H62,0,($J$1-1)*8) -> - | I13: =OFFSET(Datos!I62,0,($J$1-1)*8) -> - | J13: =OFFSET(Datos!J62,0,($J$1-1)*8) -> -
B14: Disponibilidad | C14: =OFFSET(Datos!C63,0,($J$1-1)*8) -> 90.49802651 | D14: =OFFSET(Datos!D63,0,($J$1-1)*8) -> 91.71568527 | E14: =OFFSET(Datos!E63,0,($J$1-1)*8) -> 88.57785178 | F14: =OFFSET(Datos!F63,0,($J$1-1)*8) -> 84.08235564 | G14: =OFFSET(Datos!G63,0,($J$1-1)*8) -> - | H14: =OFFSET(Datos!H63,0,($J$1-1)*8) -> - | I14: =OFFSET(Datos!I63,0,($J$1-1)*8) -> - | J14: =OFFSET(Datos!J63,0,($J$1-1)*8) -> -
B16: =IF(MONTH(FACT)=1,"Datos acumulados a 31 de diciembre.",CONCATENATE("Datos acumulados a 31 de diciembre. Para el año ",YEAR(FACT), " datos acumulados a ",TEXT(FACT-30,"mmmm")," de ",YEAR(FACT),".")) -> Datos acumulados a 31 de diciembre. Para el año 2020 datos acumulados a junio de 2020.

Sheet Horas funcionamiento mes
O1: 20
L4: Concepto
L5: Horizonte temporal
L6: Periodo
C8: Ene. | D8: Feb. | E8: Mar. | F8: Abr. | G8: May. | H8: Jun. | I8: Jul. | J8: Ago. | K8: Sep. | L8: Oct. | M8: Nov. | N8: Dic. | O8: =OFFSET(Año!B13,($O$1-1),0) -> 2020
B10: Nuclear | C10: =OFFSET(Datos!C31,0,($O$1-1)*13) -> 744 | D10: =OFFSET(Datos!D31,0,($O$1-1)*13) -> 696 | E10: =OFFSET(Datos!E31,0,($O$1-1)*13) -> 743 | F10: =OFFSET(Datos!F31,0,($O$1-1)*13) -> 654.5131223 | G10: =OFFSET(Datos!G31,0,($O$1-1)*13) -> 487.2424518 | H10: =OFFSET(Datos!H31,0,($O$1-1)*13) -> 541.8011476 | I10: =OFFSET(Datos!I31,0,($O$1-1)*13) -> - | J10: =OFFSET(Datos!J31,0,($O$1-1)*13) -> - | K10: =OFFSET(Datos!K31,0,($O$1-1)*13) -> - | L10: =OFFSET(Datos!L31,0,($O$1-1)*13) -> - | M10: =OFFSET(Datos!M31,0,($O$1-1)*13) -> - | N10: =OFFSET(Datos!N31,0,($O$1-1)*13) -> - | O10: =OFFSET(Datos!O31,0,($O$1-1)*13) -> 3866.556722
B11: Carbón | C11: =OFFSET(Datos!C32,0,($O$1-1)*13) -> 154.2957846 | D11: =OFFSET(Datos!D32,0,($O$1-1)*13) -> 153.0184741 | E11: =OFFSET(Datos!E32,0,($O$1-1)*13) -> 108.719383 | F11: =OFFSET(Datos!F32,0,($O$1-1)*13) -> 83.16201106 | G11: =OFFSET(Datos!G32,0,($O$1-1)*13) -> 66.46813094 | H11: =OFFSET(Datos!H32,0,($O$1-1)*13) -> 86.43494067 | I11: =OFFSET(Datos!I32,0,($O$1-1)*13) -> - | J11: =OFFSET(Datos!J32,0,($O$1-1)*13) -> - | K11: =OFFSET(Datos!K32,0,($O$1-1)*13) -> - | L11: =OFFSET(Datos!L32,0,($O$1-1)*13) -> - | M11: =OFFSET(Datos!M32,0,($O$1-1)*13) -> - | N11: =OFFSET(Datos!N32,0,($O$1-1)*13) -> - | O11: =OFFSET(Datos!O32,0,($O$1-1)*13) -> 652.0987244
B12: Fuel + Gas | C12: =OFFSET(Datos!C33,0,($O$1-1)*13) -> - | D12: =OFFSET(Datos!D33,0,($O$1-1)*13) -> - | E12: =OFFSET(Datos!E33,0,($O$1-1)*13) -> - | F12: =OFFSET(Datos!F33,0,($O$1-1)*13) -> - | G12: =OFFSET(Datos!G33,0,($O$1-1)*13) -> - | H12: =OFFSET(Datos!H33,0,($O$1-1)*13) -> - | I12: =OFFSET(Datos!I33,0,($O$1-1)*13) -> - | J12: =OFFSET(Datos!J33,0,($O$1-1)*13) -> - | K12: =OFFSET(Datos!K33,0,($O$1-1)*13) -> - | L12: =OFFSET(Datos!L33,0,($O$1-1)*13) -> - | M12: =OFFSET(Datos!M33,0,($O$1-1)*13) -> - | N12: =OFFSET(Datos!N33,0,($O$1-1)*13) -> - | O12: =OFFSET(Datos!O33,0,($O$1-1)*13) -> -
B13: Ciclo combinado | C13: =OFFSET(Datos!C34,0,($O$1-1)*13) -> 229.1518387 | D13: =OFFSET(Datos!D34,0,($O$1-1)*13) -> 181.4133995 | E13: =OFFSET(Datos!E34,0,($O$1-1)*13) -> 146.3905592 | F13: =OFFSET(Datos!F34,0,($O$1-1)*13) -> 215.0322329 | G13: =OFFSET(Datos!G34,0,($O$1-1)*13) -> 212.6362425 | H13: =OFFSET(Datos!H34,0,($O$1-1)*13) -> 259.9868015 | I13: =OFFSET(Datos!I34,0,($O$1-1)*13) -> - | J13: =OFFSET(Datos!J34,0,($O$1-1)*13) -> - | K13: =OFFSET(Datos!K34,0,($O$1-1)*13) -> - | L13: =OFFSET(Datos!L34,0,($O$1-1)*13) -> - | M13: =OFFSET(Datos!M34,0,($O$1-1)*13) -> - | N13: =OFFSET(Datos!N34,0,($O$1-1)*13) -> - | O13: =OFFSET(Datos!O34,0,($O$1-1)*13) -> 1244.611074
B14: Horas de funcionamiento | C14: =OFFSET(Datos!C35,0,($O$1-1)*13) -> 301.8888378 | D14: =OFFSET(Datos!D35,0,($O$1-1)*13) -> 264.5743712 | E14: =OFFSET(Datos!E35,0,($O$1-1)*13) -> 241.736614 | F14: =OFFSET(Datos!F35,0,($O$1-1)*13) -> 261.8046909 | G14: =OFFSET(Datos!G35,0,($O$1-1)*13) -> 227.4917861 | H14: =OFFSET(Datos!H35,0,($O$1-1)*13) -> 269.9262392 | I14: =OFFSET(Datos!I35,0,($O$1-1)*13) -> - | J14: =OFFSET(Datos!J35,0,($O$1-1)*13) -> - | K14: =OFFSET(Datos!K35,0,($O$1-1)*13) -> - | L14: =OFFSET(Datos!L35,0,($O$1-1)*13) -> - | M14: =OFFSET(Datos!M35,0,($O$1-1)*13) -> - | N14: =OFFSET(Datos!N35,0,($O$1-1)*13) -> - | O14: =OFFSET(Datos!O35,0,($O$1-1)*13) -> 1567.422539
B16: Datos a último día de cada mes.

Sheet Horas funcionamiento año
J1: 3
H4: Concepto
H5: Horizonte temporal
H6: Periodo
C8: =OFFSET(Datos!C58,0,($J$1-1)*8) -> 2017 | D8: =OFFSET(Datos!D58,0,($J$1-1)*8) -> 2018 | E8: =OFFSET(Datos!E58,0,($J$1-1)*8) -> 2019 | F8: =OFFSET(Datos!F58,0,($J$1-1)*8) -> 2020 | G8: =OFFSET(Datos!G58,0,($J$1-1)*8) -> 2021 | H8: =OFFSET(Datos!H58,0,($J$1-1)*8) -> 2022 | I8: =OFFSET(Datos!I58,0,($J$1-1)*8) -> 2023 | J8: =OFFSET(Datos!J58,0,($J$1-1)*8) -> 2024
B10: Nuclear | C10: =OFFSET(Datos!C66,0,($J$1-1)*8) -> 7997.183198 | D10: =OFFSET(Datos!D66,0,($J$1-1)*8) -> 7621.657974 | E10: =OFFSET(Datos!E66,0,($J$1-1)*8) -> 8040.468626 | F10: =OFFSET(Datos!F66,0,($J$1-1)*8) -> 3866.556722 | G10: =OFFSET(Datos!G66,0,($J$1-1)*8) -> - | H10: =OFFSET(Datos!H66,0,($J$1-1)*8) -> - | I10: =OFFSET(Datos!I66,0,($J$1-1)*8) -> - | J10: =OFFSET(Datos!J66,0,($J$1-1)*8) -> -
B11: Carbón | C11: =OFFSET(Datos!C67,0,($J$1-1)*8) -> 5455.799762 | D11: =OFFSET(Datos!D67,0,($J$1-1)*8) -> 4702.548842 | E11: =OFFSET(Datos!E67,0,($J$1-1)*8) -> 1672.617827 | F11: =OFFSET(Datos!F67,0,($J$1-1)*8) -> 652.0987244 | G11: =OFFSET(Datos!G67,0,($J$1-1)*8) -> - | H11: =OFFSET(Datos!H67,0,($J$1-1)*8) -> - | I11: =OFFSET(Datos!I67,0,($J$1-1)*8) -> - | J11: =OFFSET(Datos!J67,0,($J$1-1)*8) -> -
B12: Fuel + Gas | C12: =OFFSET(Datos!C68,0,($J$1-1)*8) -> - | D12: =OFFSET(Datos!D68,0,($J$1-1)*8) -> - | E12: =OFFSET(Datos!E68,0,($J$1-1)*8) -> - | F12: =OFFSET(Datos!F68,0,($J$1-1)*8) -> - | G12: =OFFSET(Datos!G68,0,($J$1-1)*8) -> - | H12: =OFFSET(Datos!H68,0,($J$1-1)*8) -> - | I12: =OFFSET(Datos!I68,0,($J$1-1)*8) -> - | J12: =OFFSET(Datos!J68,0,($J$1-1)*8) -> -
B13: Ciclo combinado | C13: =OFFSET(Datos!C69,0,($J$1-1)*8) -> 2358.210423 | D13: =OFFSET(Datos!D69,0,($J$1-1)*8) -> 1920.068765 | E13: =OFFSET(Datos!E69,0,($J$1-1)*8) -> 3311.70257 | F13: =OFFSET(Datos!F69,0,($J$1-1)*8) -> 1244.611074 | G13: =OFFSET(Datos!G69,0,($J$1-1)*8) -> - | H13: =OFFSET(Datos!H69,0,($J$1-1)*8) -> - | I13: =OFFSET(Datos!I69,0,($J$1-1)*8) -> - | J13: =OFFSET(Datos!J69,0,($J$1-1)*8) -> -
B14: Horas de funcionamiento | C14: =OFFSET(Datos!C70,0,($J$1-1)*8) -> 4032.993037 | D14: =OFFSET(Datos!D70,0,($J$1-1)*8) -> 3549.165225 | E14: =OFFSET(Datos!E70,0,($J$1-1)*8) -> 3747.754894 | F14: =OFFSET(Datos!F70,0,($J$1-1)*8) -> 1567.422539 | G14: =OFFSET(Datos!G70,0,($J$1-1)*8) -> - | H14: =OFFSET(Datos!H70,0,($J$1-1)*8) -> - | I14: =OFFSET(Datos!I70,0,($J$1-1)*8) -> - | J14: =OFFSET(Datos!J70,0,($J$1-1)*8) -> -
B16: =IF(MONTH(FACT)=1,"Datos acumulados a 31 de diciembre.",CONCATENATE("Datos acumulados a 31 de diciembre. Para el año ",YEAR(FACT), " datos acumulados a ",TEXT(FACT-30,"mmmm")," de ",YEAR(FACT),".")) -> Datos acumulados a 31 de diciembre. Para el año 2020 datos acumulados a junio de 2020.

Sheet Datos (hidden)
B2: Indisponibilidad equipo térmico mensual peninsular (%) Tipo permanente | C2: 2001-01-01 | D2: 2001-02-01 | E2: 2001-03-01 | F2: 2001-04-01 | G2: 2001-05-01 | H2: 2001-06-01 | I2: 2001-07-01 | J2: 2001-08-01 | K2: 2001-09-01 | L2: 2001-10-01 | M2: 2001-11-01 | N2: 2001-12-01 | O2: 2001 | P2: 2002-01-01 | Q2: 2002-02-01 | R2: 2002-03-01 | S2: 2002-04-01 | T2: 2002-05-01 | U2: 2002-06-01 | V2: 2002-07-01 | W2: 2002-08-01 | X2: 2002-09-01 | Y2: 2002-10-01 | Z2: 2002-11-01 | AA2: 2002-12-01 | AB2: 2002 | AC2: 2003-01-01 | AD2: 2003-02-01 | AE2: 2003-03-01 | AF2: 2003-04-01 | AG2: 2003-05-01 | AH2: 2003-06-01 | AI2: 2003-07-01 | AJ2: 2003-08-01 | AK2: 2003-09-01 | AL2: 2003-10-01 | AM2: 2003-11-01 | AN2: 2003-12-01 | AO2: 2003 | AP2: 2004-01-01 | AQ2: 2004-02-01 | AR2: 2004-03-01 | AS2: 2004-04-01 | AT2: 2004-05-01 | AU2: 2004-06-01 | AV2: 2004-07-01 | AW2: 2004-08-01 | AX2: 2004-09-01 | AY2: 2004-10-01 | AZ2: 2004-11-01 | BA2: 2004-12-01 | BB2: 2004 | BC2: 2005-01-01 | BD2: 2005-02-01 | BE2: 2005-03-01 | BF2: 2005-04-01 | BG2: 2005-05-01 | BH2: 2005-06-01 | BI2: 2005-07-01 | BJ2: 2005-08-01 | BK2: 2005-09-01 | BL2: 2005-10-01 | BM2: 2005-11-01 | BN2: 2005-12-01 | BO2: 2005 | BP2: 2006-01-01 | BQ2: 2006-02-01 | BR2: 2006-03-01 | BS2: 2006-04-01 | BT2: 2006-05-01 | BU2: 2006-06-01 | BV2: 2006-07-01 | BW2: 2006-08-01 | BX2: 2006-09-01 | BY2: 2006-10-01 | BZ2: 2006-11-01 | CA2: 2006-12-01 | CB2: 2006 | CC2: 2007-01-01 | CD2: 2007-02-01 | CE2: 2007-03-01 | CF2: 2007-04-01 | CG2: 2007-05-01 | CH2: 2007-06-01 | CI2: 2007-07-01 | CJ2: 2007-08-01 | CK2: 2007-09-01 | CL2: 2007-10-01 | CM2: 2007-11-01 | CN2: 2007-12-01 | CO2: 2007 | CP2: 2008-01-01 | CQ2: 2008-02-01 | CR2: 2008-03-01 | CS2: 2008-04-01 | CT2: 2008-05-01 | CU2: 2008-06-01 | CV2: 2008-07-01 | CW2: 2008-08-01 | CX2: 2008-09-01 | CY2: 2008-10-01 | CZ2: 2008-11-01 | DA2: 2008-12-01 | DB2: 2008 | DC2: 2009-01-01 | DD2: 2009-02-01 | DE2: 2009-03-01 | DF2: 2009-04-01 | DG2: 2009-05-01 | DH2: 2009-06-01 | DI2: 2009-07-01 | DJ2: 2009-08-01 | DK2: 2009-09-01 | DL2: 2009-10-01 | DM2: 2009-11-01 | DN2: 2009-12-01 | DO2: 2009 | DP2: 2010-01-31 | DQ2: 2010-02-28 | DR2: 2010-03-31 | DS2: 2010-04-30 | DT2: 2010-05-31 | DU2: 2010-06-30 | DV2: 2010-07-31 | DW2: 2010-08-31 | DX2: 2010-09-30 | DY2: 2010-10-31 | DZ2: 2010-11-30 | EA2: 2010-12-31 | EB2: 2010 | EC2: 2011-01-31 | ED2: 2011-02-28 | EE2: 2011-03-31 | EF2: 2011-04-30 | EG2: 2011-05-31 | EH2: 2011-06-30 | EI2: 2011-07-31 | EJ2: 2011-08-31 | EK2: 2011-09-30 | EL2: 2011-10-31 | EM2: 2011-11-30 | EN2: 2011-12-31 | EO2: 2011 | EP2: 2012-01-31 | EQ2: 2012-02-29 | ER2: 2012-03-31 | ES2: 2012-04-30 | ET2: 2012-05-31 | EU2: 2012-06-30 | EV2: 2012-07-31 | EW2: 2012-08-31 | EX2: 2012-09-30 | EY2: 2012-10-31 | EZ2: 2012-11-30 | FA2: 2012-12-31 | FB2: 2012 | FC2: 2013-01-31 | FD2: 2013-02-28 | FE2: 2013-03-31 | FF2: 2013-04-30 | FG2: 2013-05-31 | FH2: 2013-06-30 | FI2: 2013-07-31 | FJ2: 2013-08-31 | FK2: 2013-09-30 | FL2: 2013-10-31 | FM2: 2013-11-30 | FN2: 2013-12-31 | FO2: 2013 | FP2: 2014-01-31 | FQ2: 2014-02-28 | FR2: 2014-03-31 | FS2: 2014-04-30 | FT2: 2014-05-31 | FU2: 2014-06-30 | FV2: 2014-07-31 | FW2: 2014-08-31 | FX2: 2014-09-30 | FY2: 2014-10-31 | FZ2: 2014-11-30 | GA2: 2014-12-31 | GB2: 2014 | GC2: 2015-01-31 | GD2: 2015-02-28 | GE2: 2015-03-31 | GF2: 2015-04-30 | GG2: 2015-05-31 | GH2: 2015-06-30 | GI2: 2015-07-31 | GJ2: 2015-08-31 | GK2: 2015-09-30 | GL2: 2015-10-31 | GM2: 2015-11-30 | GN2: 2015-12-31 | GO2: 2015 | GP2: 2016-01-31 | GQ2: 2016-02-29 | GR2: 2016-03-31 | GS2: 2016-04-30 | GT2: 2016-05-31 | GU2: 2016-06-30 | GV2: 2016-07-31 | GW2: 2016-08-31 | GX2: 2016-09-30 | GY2: 2016-10-31 | GZ2: 2016-11-30 | HA2: 2016-12-31 | HB2: 2016 | HC2: 2017-01-31 | HD2: 2017-02-28 | HE2: 2017-03-31 | HF2: 2017-04-30 | HG2: 2017-05-31 | HH2: 2017-06-30 | HI2: 2017-07-31 | HJ2: 2017-08-31 | HK2: 2017-09-30 | HL2: 2017-10-31 | HM2: 2017-11-30 | HN2: 2017-12-31 | HO2: 2017 | HP2: 2018-01-31 | HQ2: 2018-02-28 | HR2: 2018-03-31 | HS2: 2018-04-30 | HT2: 2018-05-31 | HU2: 2018-06-30 | HV2: 2018-07-31 | HW2: 2018-08-31 | HX2: 2018-09-30 | HY2: 2018-10-31 | HZ2: 2018-11-30 | IA2: 2018-12-31 | IB2: 2018 | IC2: 2019-01-31 | ID2: 2019-02-28 | IE2: 2019-03-31 | IF2: 2019-04-30 | IG2: 2019-05-31 | IH2: 2019-06-30 | II2: 2019-07-31 | IJ2: 2019-08-31 | IK2: 2019-09-30 | IL2: 2019-10-31 | IM2: 2019-11-30 | IN2: 2019-12-31 | IO2: 2019 | IP2: 2020-01-31 | IQ2: 2020-02-28 | IR2: 2020-03-27 | IS2: 2020-04-24 | IT2: 2020-05-22 | IU2: 2020-06-19 | IV2: 2020-07-17 | IW2: 2020-08-14 | IX2: 2020-09-11 | IY2: 2020-10-09 | IZ2: 2020-11-06 | JA2: 2020-12-04 | JB2: 2020
B3: Nuclear | C3: 0 | D3: 0 | E3: 0 | F3: 0 | G3: 0 | H3: 0 | I3: 0 | J3: 0 | K3: 0 | L3: 0 | M3: 0 | N3: 0 | O3: 0 | P3: 0 | Q3: 0 | R3: 0 | S3: 0 | T3: 0 | U3: 0 | V3: 0 | W3: 0 | X3: 0 | Y3: 0 | Z3: 0 | AA3: 0 | AB3: 0 | AC3: 0 | AD3: 0 | AE3: 0 | AF3: 0 | AG3: 0 | AH3: 0 | AI3: 0 | AJ3: 0 | AK3: 0 | AL3: 0 | AM3: 0 | AN3: 0 | AO3: 0 | AP3: 0 | AQ3: 0 | AR3: 0 | AS3: 0 | AT3: 0 | AU3: 0 | AV3: 0 | AW3: 0 | AX3: 0 | AY3: 0 | AZ3: 0 | BA3: 0 | BB3: 0 | BC3: 0 | BD3: 0 | BE3: 0 | BF3: 0 | BG3: 0 | BH3: 0 | BI3: 0 | BJ3: 0 | BK3: 0 | BL3: 0 | BM3: 0 | BN3: 0 | BO3: 0 | BP3: 0 | BQ3: 0 | BR3: 0 | BS3: 0 | BT3: 0 | BU3: 0 | BV3: 0 | BW3: 0 | BX3: 0 | BY3: 0 | BZ3: 0 | CA3: 0 | CB3: 0 | CC3: 0 | CD3: 0 | CE3: 0 | CF3: 0 | CG3: 0 | CH3: 0 | CI3: 0 | CJ3: 0 | CK3: 0 | CL3: 0 | CM3: 0 | CN3: 0 | CO3: 0 | CP3: 0 | CQ3: 0 | CR3: 0 | CS3: 0 | CT3: 0 | CU3: 0 | CV3: 0 | CW3: 0 | CX3: 0 | CY3: 0 | CZ3: 0 | DA3: 0 | DB3: 0 | DC3: 0 | DD3: 0 | DE3: 0 | DF3: 0 | DG3: 0 | DH3: 0 | DI3: 0 | DJ3: 0 | DK3: 0 | DL3: 0 | DM3: 0 | DN3: 0 | DO3: 0 | DP3: 0 | DQ3: 0 | DR3: 0 | DS3: 0 | DT3: 0 | DU3: 0 | DV3: 0 | DW3: 0 | DX3: 0 | DY3: 0 | DZ3: 0 | EA3: 0 | EB3: 0 | EC3: 0 | ED3: 0 | EE3: 0 | EF3: 0 | EG3: 0 | EH3: 0 | EI3: 0 | EJ3: 0 | EK3: 0 | EL3: 0 | EM3: 0 | EN3: 0 | EO3: 0 | EP3: 0 | EQ3: 0 | ER3: 0 | ES3: 0 | ET3: 0 | EU3: 0 | EV3: 0 | EW3: 0 | EX3: 0 | EY3: 0 | EZ3: 0 | FA3: 2.916775295 | FB3: 0.2482548173 | FC3: 6.01130421 | FD3: 6.01130421 | FE3: 6.01130421 | FF3: 6.01130421 | FG3: 6.01130421 | FH3: 6.01130421 | FI3: 6.01130421 | FJ3: 6.01130421 | FK3: 6.01130421 | FL3: 6.01130421 | FM3: 6.01130421 | FN3: 6.01130421 | FO3: 6.01130421 | FP3: 6.01130421 | FQ3: 6.01130421 | FR3: 6.01130421 | FS3: 6.01130421 | FT3: 6.01130421 | FU3: 6.01130421 | FV3: 6.01130421 | FW3: 6.01130421 | FX3: 6.01130421 | FY3: 6.01130421 | FZ3: 6.01130421 | GA3: 6.01130421 | GB3: 6.01130421 | GC3: 6.01130421 | GD3: 6.01130421 | GE3: 6.01130421 | GF3: 6.01130421 | GG3: 6.01130421 | GH3: 6.01130421 | GI3: 6.01130421 | GJ3: 6.01130421 | GK3: 6.01130421 | GL3: 6.01130421 | GM3: 6.01130421 | GN3: 6.01130421 | GO3: 6.01130421 | GP3: 6.01130421 | GQ3: 6.01130421 | GR3: 6.01130421 | GS3: 6.01130421 | GT3: 6.01130421 | GU3: 6.01130421 | GV3: 6.01130421 | GW3: 6.01130421 | GX3: 6.01130421 | GY3: 6.01130421 | GZ3: 6.01130421 | HA3: 6.01130421 | HB3: 6.01130421 | HC3: 6.01130421 | HD3: 6.01130421 | HE3: 6.01130421 | HF3: 6.01130421 | HG3: 6.01130421 | HH3: 6.01130421 | HI3: 6.01130421 | HJ3: 6.01130421 | HK3: 6.01130421 | HL3: 6.01130421 | HM3: 0 | HN3: 0 | HO3: 5.057484237 | HP3: 0 | HQ3: 0 | HR3: 0 | HS3: 0 | HT3: 0 | HU3: 0 | HV3: 0 | HW3: 0 | HX3: 0 | HY3: 0 | HZ3: 0 | IA3: 0 | IB3: 0 | IC3: 0 | ID3: 0 | IE3: 0 | IF3: 0 | IG3: 0 | IH3: 0 | II3: 0 | IJ3: 0 | IK3: 0 | IL3: 0 | IM3: 0 | IN3: 0 | IO3: 0 | IP3: 0 | IQ3: 0 | IR3: 0 | IS3: 0 | IT3: 0 | IU3: 0 | IV3: - | IW3: - | IX3: - | IY3: - | IZ3: - | JA3: - | JB3: 0
B4: Carbón | C4: 0 | D4: 0 | E4: 0 | F4: 0 | G4: 0 | H4: 0 | I4: 0 | J4: 0 | K4: 0 | L4: 0 | M4: 0 | N4: 0 | O4: 0 | P4: 0 | Q4: 0 | R4: 0.7619745522 | S4: 1.201798179 | T4: 1.201798179 | U4: 1.201798179 | V4: 1.201798179 | W4: 1.201798179 | X4: 1.201798179 | Y4: 1.202032295 | Z4: 1.202602323 | AA4: 1.203148812 | AB4: 0.97044967 | AC4: 1.203491392 | AD4: 1.203491392 | AE4: 1.203491392 | AF4: 1.203491392 | AG4: 1.203491392 | AH4: 1.204495212 | AI4: 1.204495212 | AJ4: 1.204495212 | AK4: 1.204495212 | AL4: 1.204495212 | AM4: 1.203269274 | AN4: 1.203269274 | AO4: 1.203874929 | AP4: 1.203269274 | AQ4: 1.203269274 | AR4: 1.204187861 | AS4: 1.205071448 | AT4: 1.205071448 | AU4: 1.205071448 | AV4: 1.205071448 | AW4: 1.205071448 | AX4: 1.205071448 | AY4: 1.205071448 | AZ4: 1.205071448 | BA4: 1.205071448 | BB4: 1.204700887 | BC4: 1.205071448 | BD4: 1.205071448 | BE4: 1.20438723 | BF4: 1.20438723 | BG4: 0.1570522544 | BH4: 0 | BI4: 0 | BJ4: 0 | BK4: 0 | BL4: 0 | BM4: 0 | BN4: 0 | BO4: 0.412341659 | BP4: 0 | BQ4: 0 | BR4: 0 | BS4: 0 | BT4: 0 | BU4: 0 | BV4: 0 | BW4: 0 | BX4: 0 | BY4: 0 | BZ4: 0 | CA4: 0 | CB4: 0 | CC4: 0.6133116081 | CD4: 0.6133116081 | CE4: 0.6134042563 | CF4: 0.6134042563 | CG4: 0.6134042563 | CH4: 0.6134042563 | CI4: 0.6134042563 | CJ4: 0.6134042563 | CK4: 0.6134042563 | CL4: 0.6134042563 | CM4: 0.6134042563 | CN4: 0.6169434748 | CO4: 0.6136882701 | CP4: 0.6170764392 | CQ4: 0.6170764392 | CR4: 0.617147489 | CS4: 0.617147489 | CT4: 0.617147489 | CU4: 0.617147489 | CV4: 0.617147489 | CW4: 0.617147489 | CX4: 0.617147489 | CY4: 0.617147489 | CZ4: 0.617147489 | DA4: 0.6171336641 | DB4: 0.6171346695 | DC4: 0.617147489 | DD4: 0.617147489 | DE4: 0.617147489 | DF4: 0.617147489 | DG4: 0.617147489 | DH4: 0.617147489 | DI4: 0.617147489 | DJ4: 0.617147489 | DK4: 0.617147489 | DL4: 0.617147489 | DM4: 0.617147489 | DN4: 0.617147489 | DO4: 0.617147489 | DP4: 0.617147489 | DQ4: 0.617147489 | DR4: 0.617147489 | DS4: 0.617147489 | DT4: 0.617147489 | DU4: 0.617147489 | DV4: 0.617147489 | DW4: 0.6161514445 | DX4: 0.6161514445 | DY4: 0.6161514445 | DZ4: 0.6161514445 | EA4: 0.6153094813 | EB4: 0.6166578872 | EC4: 0 | ED4: 0 | EE4: 0 | EF4: 0 | EG4: 0 | EH4: 0 | EI4: 0 | EJ4: 0 | EK4: 0 | EL4: 0 | EM4: 0 | EN4: 0 | EO4: 0 | EP4: 1.312305226 | EQ4: 1.312305226 | ER4: 1.312305226 | ES4: 1.312305226 | ET4: 1.312305226 | EU4: 1.312305226 | EV4: 1.312305226 | EW4: 1.312305226 | EX4: 1.312305226 | EY4: 1.312310564 | EZ4: 1.31238797 | FA4: 3.041911887 | FB4: 1.458571504 | FC4: 2.858686862 | FD4: 2.681614183 | FE4: 2.681614183 | FF4: 2.681614183 | FG4: 2.681614183 | FH4: 2.681614183 | FI4: 4.167314944 | FJ4: 4.595913603 | FK4: 4.594270412 | FL4: 4.594270412 | FM4: 4.594270412 | FN4: 4.594270412 | FO4: 3.624467212 | FP4: 4.594270412 | FQ4: 4.594270412 | FR4: 4.594295217 | FS4: 4.594313131 | FT4: 4.594313131 | FU4: 4.594313131 | FV4: 4.594313131 | FW4: 4.594313131 | FX4: 4.594313131 | FY4: 4.594313131 | FZ4: 4.464885107 | GA4: 3.284035103 | GB4: 4.473753026 | GC4: 3.074343226 | GD4: 1.969120822 | GE4: 1.969120822 | GF4: 1.969120822 | GG4: 1.969120822 | GH4: 1.969120822 | GI4: 1.969120822 | GJ4: 1.969120822 | GK4: 1.969120822 | GL4: 1.969120822 | GM4: 1.969120822 | GN4: 1.969120822 | GO4: 2.063967531 | GP4: 1.969120822 | GQ4: 0 | GR4: 0 | GS4: 0 | GT4: 0 | GU4: 0 | GV4: 0 | GW4: 0 | GX4: 0 | GY4: 0 | GZ4: 0 | HA4: 0 | HB4: 0.1803196968 | HC4: 0 | HD4: 0 | HE4: 0 | HF4: 0 | HG4: 0 | HH4: 0 | HI4: 0 | HJ4: 0 | HK4: 0 | HL4: 0 | HM4: 0 | HN4: 0 | HO4: 0 | HP4: 0 | HQ4: 0 | HR4: 0 | HS4: 0 | HT4: 0 | HU4: 0 | HV4: 0 | HW4: 0 | HX4: 0 | HY4: 0 | HZ4: 0 | IA4: 0 | IB4: 0 | IC4: 0 | ID4: 0 | IE4: 0 | IF4: 0 | IG4: 0 | IH4: 0 | II4: 0 | IJ4: 0 | IK4: 0 | IL4: 0 | IM4: 0 | IN4: 0 | IO4: 0 | IP4: 0 | IQ4: 0 | IR4: 0 | IS4: 0 | IT4: 0 | IU4: 0 | IV4: - | IW4: - | IX4: - | IY4: - | IZ4: - | JA4: - | JB4: 0
B5: Fuel + Gas | C5: 3.962123166 | D5: 3.962123166 | E5: 3.962123166 | F5: 3.962123166 | G5: 3.962123166 | H5: 3.962123166 | I5: 3.962123166 | J5: 3.962123166 | K5: 3.962123166 | L5: 3.962123166 | M5: 3.962123166 | N5: 10.86719585 | O5: 4.548581394 | P5: 7.082704396 | Q5: 7.078638838 | R5: 7.078638838 | S5: 7.078638838 | T5: 7.078638838 | U5: 7.078638838 | V5: 7.207972075 | W5: 7.351814133 | X5: 7.355911049 | Y5: 7.364118595 | Z5: 7.364118595 | AA5: 7.37043275 | AB5: 7.205978693 | AC5: 7.373910153 | AD5: 7.433106924 | AE5: 7.755896005 | AF5: 7.937916073 | AG5: 7.951015532 | AH5: 7.974297718 | AI5: 7.974297718 | AJ5: 7.999663425 | AK5: 7.999663425 | AL5: 7.999663425 | AM5: 7.999663425 | AN5: 7.999663425 | AO5: 7.862766326 | AP5: 7.972781129 | AQ5: 7.972781129 | AR5: 7.972781129 | AS5: 7.972781129 | AT5: 7.972781129 | AU5: 7.972781129 | AV5: 7.972781129 | AW5: 7.972781129 | AX5: 7.972781129 | AY5: 7.972781129 | AZ5: 7.989291588 | BA5: 7.989291588 | BB5: 7.975528132 | BC5: 7.989291588 | BD5: 7.989291588 | BE5: 8.345590678 | BF5: 8.358032754 | BG5: 8.358032754 | BH5: 9.736909307 | BI5: 10.79134432 | BJ5: 10.79134432 | BK5: 10.79134432 | BL5: 10.79134432 | BM5: 10.79134432 | BN5: 10.802391 | BO5: 9.626202476 | BP5: 10.79134432 | BQ5: 10.79134432 | BR5: 10.79134432 | BS5: 10.79134432 | BT5: 10.79134432 | BU5: 10.79134432 | BV5: 10.79134432 | BW5: 10.79134432 | BX5: 10.79134432 | BY5: 10.79134432 | BZ5: 10.79134432 | CA5: 10.79134432 | CB5: 10.79134432 | CC5: 15.89344921 | CD5: 15.89344921 | CE5: 15.88467139 | CF5: 15.88467139 | CG5: 15.88467139 | CH5: 15.88467139 | CI5: 16.0144516 | CJ5: 16.54898305 | CK5: 17.89749776 | CL5: 18.12131832 | CM5: 18.12131832 | CN5: 13.90487626 | CO5: 16.31883859 | CP5: 8.493285959 | CQ5: 3.693122929 | CR5: 3.693122929 | CS5: 3.693122929 | CT5: 7.124153262 | CU5: 7.124153262 | CV5: 7.152188841 | CW5: 11.69961029 | CX5: 13.93185151 | CY5: 13.93185151 | CZ5: 13.93185151 | DA5: 8.843252654 | DB5: 8.619173388 | DC5: 7.448674055 | DD5: 7.804102151 | DE5: 7.153127161 | DF5: 7.153127161 | DG5: 7.153127161 | DH5: 7.153127161 | DI5: 7.155564207 | DJ5: 7.633305523 | DK5: 7.709980944 | DL5: 5.719719254 | DM5: 9.034791348 | DN5: 24.29438781 | DO5: 8.487664666 | DP5: 16.74187265 | DQ5: 0 | DR5: 0 | DS5: 0 | DT5: 0 | DU5: 0 | DV5: 0.1406968668 | DW5: 0 | DX5: 0 | DY5: 0.5939161892 | DZ5: 9.816941415 | EA5: 20.79457663 | EB5: 4.245432536 | EC5: 24.00711322 | ED5: 24.00711322 | EE5: 32.26752305 | EF5: 56.14053996 | EG5: 56.14053996 | EH5: 47.7448557 | EI5: 35.37398761 | EJ5: 35.37398761 | EK5: 35.37398761 | EL5: 35.37398761 | EM5: 35.37398761 | EN5: 35.37398761 | EO5: 38.06902547 | EP5: 35.37398761 | EQ5: 14.52054497 | ER5: 0 | ES5: 0 | ET5: 0 | EU5: 0 | EV5: 0 | EW5: 0 | EX5: 0 | EY5: 0 | EZ5: 0 | FA5: 0 | FB5: 5.644466997 | FC5: 0 | FD5: 0 | FE5: 0 | FF5: 0 | FG5: 0 | FH5: 0 | FI5: 0 | FJ5: 0 | FK5: 0 | FL5: 0 | FM5: 0 | FN5: 0 | FO5: 0 | FP5: 0 | FQ5: 0 | FR5: 0 | FS5: 0 | FT5: 0 | FU5: 0 | FV5: 0 | FW5: 0 | FX5: 0 | FY5: 0 | FZ5: 0 | GA5: 0 | GB5: 0 | GC5: - | GD5: - | GE5: - | GF5: - | GG5: - | GH5: - | GI5: - | GJ5: - | GK5: - | GL5: - | GM5: - | GN5: - | GO5: - | GP5: - | GQ5: - | GR5: - | GS5: - | GT5: - | GU5: - | GV5: - | GW5: - | GX5: - | GY5: - | GZ5: - | HA5: - | HB5: - | HC5: - | HD5: - | HE5: - | HF5: - | HG5: - | HH5: - | HI5: - | HJ5: - | HK5: - | HL5: - | HM5: - | HN5: - | HO5: - | HP5: - | HQ5: - | HR5: - | HS5: - | HT5: - | HU5: - | HV5: - | HW5: - | HX5: - | HY5: - | HZ5: - | IA5: - | IB5: - | IC5: - | ID5: - | IE5: - | IF5: - | IG5: - | IH5: - | II5: - | IJ5: - | IK5: - | IL5: - | IM5: - | IN5: - | IO5: - | IP5: - | IQ5: - | IR5: - | IS5: - | IT5: - | IU5: - | IV5: - | IW5: - | IX5: - | IY5: - | IZ5: - | JA5: - | JB5: -
B6: Ciclo combinado | C6: - | D6: - | E6: - | F6: - | G6: - | H6: - | I6: - | J6: - | K6: - | L6: - | M6: - | N6: - | O6: - | P6: - | Q6: - | R6: 0 | S6: 0 | T6: 0 | U6: 0 | V6: 0 | W6: 0 | X6: 0 | Y6: 0 | Z6: 0 | AA6: 0 | AB6: 0 | AC6: 0 | AD6: 0 | AE6: 0 | AF6: 0 | AG6: 0 | AH6: 0 | AI6: 0 | AJ6: 0 | AK6: 0 | AL6: 0 | AM6: 0 | AN6: 0 | AO6: 0 | AP6: 0 | AQ6: 0 | AR6: 0 | AS6: 0 | AT6: 0 | AU6: 0 | AV6: 0 | AW6: 0 | AX6: 0 | AY6: 0 | AZ6: 0 | BA6: 0 | BB6: 0 | BC6: 0 | BD6: 0 | BE6: 0 | BF6: 0 | BG6: 0 | BH6: 0 | BI6: 0 | BJ6: 0 | BK6: 0 | BL6: 0 | BM6: 0 | BN6: 0 | BO6: 0 | BP6: 0 | BQ6: 0 | BR6: 0 | BS6: 0 | BT6: 0 | BU6: 0 | BV6: 0 | BW6: 0 | BX6: 0 | BY6: 0 | BZ6: 0 | CA6: 0 | CB6: 0 | CC6: 0 | CD6: 0 | CE6: 0 | CF6: 0 | CG6: 0 | CH6: 0 | CI6: 0 | CJ6: 0 | CK6: 0 | CL6: 0 | CM6: 0 | CN6: 0 | CO6: 0 | CP6: 0 | CQ6: 0 | CR6: 0 | CS6: 0 | CT6: 0 | CU6: 0 | CV6: 0 | CW6: 0 | CX6: 0 | CY6: 0 | CZ6: 0 | DA6: 0 | DB6: 0 | DC6: 0 | DD6: 0 | DE6: 0 | DF6: 0 | DG6: 0 | DH6: 0 | DI6: 0 | DJ6: 0 | DK6: 0 | DL6: 0 | DM6: 0 | DN6: 0 | DO6: 0 | DP6: 0 | DQ6: 0 | DR6: 0 | DS6: 0 | DT6: 0 | DU6: 0 | DV6: 0 | DW6: 0 | DX6: 0 | DY6: 0 | DZ6: 0 | EA6: 0 | EB6: 0 | EC6: 0 | ED6: 0 | EE6: 0 | EF6: 0 | EG6: 0 | EH6: 0 | EI6: 0 | EJ6: 0 | EK6: 0 | EL6: 0 | EM6: 0 | EN6: 0 | EO6: 0 | EP6: 0 | EQ6: 0 | ER6: 0 | ES6: 0 | ET6: 0 | EU6: 0 | EV6: 0 | EW6: 0 | EX6: 0 | EY6: 0 | EZ6: 0 | FA6: 0 | FB6: 0 | FC6: 0 | FD6: 0 | FE6: 0 | FF6: 0 | FG6: 0 | FH6: 0 | FI6: 0 | FJ6: 0 | FK6: 0 | FL6: 0 | FM6: 0 | FN6: 0 | FO6: 0 | FP6: 0 | FQ6: 0 | FR6: 0 | FS6: 0 | FT6: 0 | FU6: 0 | FV6: 0 | FW6: 0 | FX6: 0 | FY6: 0 | FZ6: 0 | GA6: 0 | GB6: 0 | GC6: 0 | GD6: 0 | GE6: 0 | GF6: 0 | GG6: 0 | GH6: 0 | GI6: 0 | GJ6: 0 | GK6: 0 | GL6: 0 | GM6: 0 | GN6: 0 | GO6: 0 | GP6: 0 | GQ6: 0 | GR6: 0 | GS6: 0 | GT6: 0 | GU6: 0 | GV6: 0 | GW6: 0 | GX6: 0 | GY6: 0 | GZ6: 0 | HA6: 0 | HB6: 0 | HC6: 0 | HD6: 0 | HE6: 0 | HF6: 0 | HG6: 0 | HH6: 0 | HI6: 0 | HJ6: 0 | HK6: 0 | HL6: 0 | HM6: 0 | HN6: 0 | HO6: 0 | HP6: 0 | HQ6: 0 | HR6: 0 | HS6: 0 | HT6: 1.546577726 | HU6: 0 | HV6: 0 | HW6: 0 | HX6: 0 | HY6: 0 | HZ6: 0 | IA6: 0 | IB6: 0.1320865493 | IC6: 0 | ID6: 0 | IE6: 0 | IF6: 0 | IG6: 0 | IH6: 0 | II6: 0 | IJ6: 0 | IK6: 0 | IL6: 0 | IM6: 0 | IN6: 0 | IO6: 0 | IP6: 0 | IQ6: 0 | IR6: 0 | IS6: 0 | IT6: 0 | IU6: 0 | IV6: - | IW6: - | IX6: - | IY6: - | IZ6: - | JA6: - | JB6: 0
B7: Indisponibilidad permanente | C7: 1.13535574 | D7: 1.13535574 | E7: 1.135139068 | F7: 1.135139068 | G7: 1.134598398 | H7: 1.134093201 | I7: 1.134093201 | J7: 1.134093201 | K7: 1.134106437 | L7: 1.134192478 | M7: 1.134192478 | N7: 3.110830046 | O7: 1.302471106 | P7: 2.027353285 | Q7: 2.025854927 | R7: 2.313471888 | S7: 2.490001947 | T7: 2.389761735 | U7: 2.375186405 | V7: 2.346888945 | W7: 2.348714578 | X7: 2.33977247 | Y7: 2.321458542 | Z7: 2.323912303 | AA7: 2.32707097 | AB7: 2.306107784 | AC7: 2.327918872 | AD7: 2.334953835 | AE7: 2.33196425 | AF7: 2.34489972 | AG7: 2.346914446 | AH7: 2.34898239 | AI7: 2.316347143 | AJ7: 2.265765205 | AK7: 2.261063461 | AL7: 2.261063461 | AM7: 2.260990473 | AN7: 2.259734279 | AO7: 2.304193101 | AP7: 2.22919203 | AQ7: 2.231580269 | AR7: 2.224838777 | AS7: 2.193554782 | AT7: 2.166354823 | AU7: 2.15599062 | AV7: 2.088029229 | AW7: 2.039392081 | AX7: 2.039392081 | AY7: 2.038584862 | AZ7: 1.995032507 | BA7: 1.995032507 | BB7: 2.112214649 | BC7: 1.950094691 | BD7: 1.941604488 | BE7: 1.93990116 | BF7: 1.920184504 | BG7: 1.591221 | BH7: 1.795594959 | BI7: 1.988873995 | BJ7: 1.988863228 | BK7: 1.94726079 | BL7: 1.897692467 | BM7: 1.87421258 | BN7: 1.866320685 | BO7: 1.891286034 | BP7: 1.854851026 | BQ7: 1.827445514 | BR7: 1.808745584 | BS7: 1.796867689 | BT7: 1.803338511 | BU7: 1.784588858 | BV7: 1.716205433 | BW7: 1.716205433 | BX7: 1.716205433 | BY7: 1.716205433 | BZ7: 1.717462023 | CA7: 1.716152304 | CB7: 1.762665502 | CC7: 2.690085413 | CD7: 2.690085413 | CE7: 2.669727313 | CF7: 2.630211811 | CG7: 2.60072507 | CH7: 2.576011511 | CI7: 2.57277508 | CJ7: 2.507208823 | CK7: 2.508550274 | CL7: 2.467171921 | CM7: 2.461279989 | CN7: 1.718564585 | CO7: 2.500400736 | CP7: 1.017797776 | CQ7: 0.5126093826 | CR7: 0.5121677917 | CS7: 0.5096469432 | CT7: 0.8352544947 | CU7: 0.8341358726 | CV7: 0.8344101939 | CW7: 1.267823217 | CX7: 1.480571982 | CY7: 1.480571982 | CZ7: 1.480571982 | DA7: 0.9954057353 | DB7: 0.982867893 | DC7: 0.8618771913 | DD7: 0.895719628 | DE7: 0.8337346346 | DF7: 0.8335631705 | DG7: 0.8306309763 | DH7: 0.823658719 | DI7: 0.8238879668 | DJ7: 0.8285616551 | DK7: 0.8292929847 | DL7: 0.6446218063 | DM7: 0.9171959268 | DN7: 1.888262187 | DO7: 0.917583929 | DP7: 1.199142656 | DQ7: 0.1544380185 | DR7: 0.1544380185 | DS7: 0.1527996499 | DT7: 0.1501001226 | DU7: 0.148973561 | DV7: 0.1554421288 | DW7: 0.1476296734 | DX7: 0.1476296734 | DY7: 0.175734903 | DZ7: 0.6119032741 | EA7: 1.130550217 | EB7: 0.3636880139 | EC7: 0.9839468577 | ED7: 0.9832773484 | EE7: 1.32056386 | EF7: 2.297041055 | EG7: 2.297041055 | EH7: 1.650507093 | EI7: 0.9953594577 | EJ7: 0.9940531001 | EK7: 0.9939396824 | EL7: 0.9940943146 | EM7: 0.9939315515 | EN7: 0.9939315515 | EO7: 1.293551397 | EP7: 1.318995136 | EQ7: 0.6378976984 | ER7: 0.3283269298 | ES7: 0.3283269298 | ET7: 0.3283269298 | EU7: 0.3283269298 | EV7: 0.3282552023 | EW7: 0.3279566746 | EX7: 0.3279566746 | EY7: 0.3278511461 | EZ7: 0.3282142128 | FA7: 1.256773475 | FB7: 0.5159645316 | FC7: 1.734332368 | FD7: 1.696033081 | FE7: 1.69853321 | FF7: 1.69853321 | FG7: 1.69853321 | FH7: 1.69853321 | FI7: 2.06319972 | FJ7: 2.169012783 | FK7: 2.168822238 | FL7: 2.168822238 | FM7: 2.168373407 | FN7: 2.16807429 | FO7: 1.92929827 | FP7: 2.16807429 | FQ7: 2.16807429 | FR7: 2.168077165 | FS7: 2.168079241 | FT7: 2.168079241 | FU7: 2.168079241 | FV7: 2.168079241 | FW7: 2.168079241 | FX7: 2.168079241 | FY7: 2.168079241 | FZ7: 2.135838829 | GA7: 1.841759068 | GB7: 2.137801512 | GC7: 1.790098238 | GD7: 1.52058294 | GE7: 1.52058294 | GF7: 1.52058294 | GG7: 1.528031059 | GH7: 1.538465118 | GI7: 1.538465118 | GJ7: 1.538465118 | GK7: 1.538465118 | GL7: 1.538465118 | GM7: 1.538465118 | GN7: 1.538465118 | GO7: 1.554768744 | GP7: 1.538465118 | GQ7: 1.064912572 | GR7: 1.080665036 | GS7: 1.081124731 | GT7: 1.081768703 | GU7: 1.082456453 | GV7: 1.082456453 | GW7: 1.082456453 | GX7: 1.082456453 | GY7: 1.082456453 | GZ7: 1.082456453 | HA7: 1.082456453 | HB7: 1.120073973 | HC7: 1.082456453 | HD7: 1.082456453 | HE7: 1.082456453 | HF7: 1.082456453 | HG7: 1.082456453 | HH7: 1.082456453 | HI7: 1.082456453 | HJ7: 1.082456453 | HK7: 1.082456453 | HL7: 1.082456453 | HM7: 0 | HN7: 0 | HO7: 0.90318667 | HP7: 0 | HQ7: 0 | HR7: 0 | HS7: 0 | HT7: 0.9274640421 | HU7: 0 | HV7: 0 | HW7: 0 | HX7: 0 | HY7: 0 | HZ7: 0 | IA7: 0 | IB7: 0.0790302799 | IC7: 0 | ID7: 0 | IE7: 0 | IF7: 0 | IG7: 0 | IH7: 0 | II7: 0 | IJ7: 0 | IK7: 0 | IL7: 0 | IM7: 0 | IN7: 0 | IO7: 0 | IP7: 0 | IQ7: 0 | IR7: 0 | IS7: 0 | IT7: 0 | IU7: 0 | IV7: - | IW7: - | IX7: - | IY7: - | IZ7: - | JA7: - | JB7: 0
B9: Indisponibilidad equipo térmico mensual peninsular (%) Tipo prevista | C9: 2001-01-01 | D9: 2001-02-01 | E9: 2001-03-01 | F9: 2001-04-01 | G9: 2001-05-01 | H9: 2001-06-01 | I9: 2001-07-01 | J9: 2001-08-01 | K9: 2001-09-01 | L9: 2001-10-01 | M9: 2001-11-01 | N9: 2001-12-01 | O9: 2001 | P9: 2002-01-01 | Q9: 2002-02-01 | R9: 2002-03-01 | S9: 2002-04-01 | T9: 2002-05-01 | U9: 2002-06-01 | V9: 2002-07-01 | W9: 2002-08-01 | X9: 2002-09-01 | Y9: 2002-10-01 | Z9: 2002-11-01 | AA9: 2002-12-01 | AB9: 2002 | AC9: 2003-01-01 | AD9: 2003-02-01 | AE9: 2003-03-01 | AF9: 2003-04-01 | AG9: 2003-05-01 | AH9: 2003-06-01 | AI9: 2003-07-01 | AJ9: 2003-08-01 | AK9: 2003-09-01 | AL9: 2003-10-01 | AM9: 2003-11-01 | AN9: 2003-12-01 | AO9: 2003 | AP9: 2004-01-01 | AQ9: 2004-02-01 | AR9: 2004-03-01 | AS9: 2004-04-01 | AT9: 2004-05-01 | AU9: 2004-06-01 | AV9: 2004-07-01 | AW9: 2004-08-01 | AX9: 2004-09-01 | AY9: 2004-10-01 | AZ9: 2004-11-01 | BA9: 2004-12-01 | BB9: 2004 | BC9: 2005-01-01 | BD9: 2005-02-01 | BE9: 2005-03-01 | BF9: 2005-04-01 | BG9: 2005-05-01 | BH9: 2005-06-01 | BI9: 2005-07-01 | BJ9: 2005-08-01 | BK9: 2005-09-01 | BL9: 2005-10-01 | BM9: 2005-11-01 | BN9: 2005-12-01 | BO9: 2005 | BP9: 2006-01-01 | BQ9: 2006-02-01 | BR9: 2006-03-01 | BS9: 2006-04-01 | BT9: 2006-05-01 | BU9: 2006-06-01 | BV9: 2006-07-01 | BW9: 2006-08-01 | BX9: 2006-09-01 | BY9: 2006-10-01 | BZ9: 2006-11-01 | CA9: 2006-12-01 | CB9: 2006 | CC9: 2007-01-01 | CD9: 2007-02-01 | CE9: 2007-03-01 | CF9: 2007-04-01 | CG9: 2007-05-01 | CH9: 2007-06-01 | CI9: 2007-07-01 | CJ9: 2007-08-01 | CK9: 2007-09-01 | CL9: 2007-10-01 | CM9: 2007-11-01 | CN9: 2007-12-01 | CO9: 2007 | CP9: 2008-01-01 | CQ9: 2008-02-01 | CR9: 2008-03-01 | CS9: 2008-04-01 | CT9: 2008-05-01 | CU9: 2008-06-01 | CV9: 2008-07-01 | CW9: 2008-08-01 | CX9: 2008-09-01 | CY9: 2008-10-01 | CZ9: 2008-11-01 | DA9: 2008-12-01 | DB9: 2008 | DC9: 2009-01-01 | DD9: 2009-02-01 | DE9: 2009-03-01 | DF9: 2009-04-01 | DG9: 2009-05-01 | DH9: 2009-06-01 | DI9: 2009-07-01 | DJ9: 2009-08-01 | DK9: 2009-09-01 | DL9: 2009-10-01 | DM9: 2009-11-01 | DN9: 2009-12-01 | DO9: 2009 | DP9: 2010-01-31 | DQ9: 2010-02-28 | DR9: 2010-03-31 | DS9: 2010-04-30 | DT9: 2010-05-31 | DU9: 2010-06-30 | DV9: 2010-07-31 | DW9: 2010-08-31 | DX9: 2010-09-30 | DY9: 2010-10-31 | DZ9: 2010-11-30 | EA9: 2010-12-31 | EB9: 2010 | EC9: 2011-01-31 | ED9: 2011-02-28 | EE9: 2011-03-31 | EF9: 2011-04-30 | EG9: 2011-05-31 | EH9: 2011-06-30 | EI9: 2011-07-31 | EJ9: 2011-08-31 | EK9: 2011-09-30 | EL9: 2011-10-31 | EM9: 2011-11-30 | EN9: 2011-12-31 | EO9: 2011 | EP9: 2012-01-31 | EQ9: 2012-02-29 | ER9: 2012-03-31 | ES9: 2012-04-30 | ET9: 2012-05-31 | EU9: 2012-06-30 | EV9: 2012-07-31 | EW9: 2012-08-31 | EX9: 2012-09-30 | EY9: 2012-10-31 | EZ9: 2012-11-30 | FA9: 2012-12-31 | FB9: 2012 | FC9: 2013-01-31 | FD9: 2013-02-28 | FE9: 2013-03-31 | FF9: 2013-04-30 | FG9: 2013-05-31 | FH9: 2013-06-30 | FI9: 2013-07-31 | FJ9: 2013-08-31 | FK9: 2013-09-30 | FL9: 2013-10-31 | FM9: 2013-11-30 | FN9: 2013-12-31 | FO9: 2013 | FP9: 2014-01-31 | FQ9: 2014-02-28 | FR9: 2014-03-31 | FS9: 2014-04-30 | FT9: 2014-05-31 | FU9: 2014-06-30 | FV9: 2014-07-31 | FW9: 2014-08-31 | FX9: 2014-09-30 | FY9: 2014-10-31 | FZ9: 2014-11-30 | GA9: 2014-12-31 | GB9: 2014 | GC9: 2015-01-31 | GD9: 2015-02-28 | GE9: 2015-03-31 | GF9: 2015-04-30 | GG9: 2015-05-31 | GH9: 2015-06-30 | GI9: 2015-07-31 | GJ9: 2015-08-31 | GK9: 2015-09-30 | GL9: 2015-10-31 | GM9: 2015-11-30 | GN9: 2015-12-31 | GO9: 2015 | GP9: 2016-01-31 | GQ9: 2016-02-29 | GR9: 2016-03-31 | GS9: 2016-04-30 | GT9: 2016-05-31 | GU9: 2016-06-30 | GV9: 2016-07-31 | GW9: 2016-08-31 | GX9: 2016-09-30 | GY9: 2016-10-31 | GZ9: 2016-11-30 | HA9: 2016-12-31 | HB9: 2016 | HC9: 2017-01-31 | HD9: 2017-02-28 | HE9: 2017-03-31 | HF9: 2017-04-30 | HG9: 2017-05-31 | HH9: 2017-06-30 | HI9: 2017-07-31 | HJ9: 2017-08-31 | HK9: 2017-09-30 | HL9: 2017-10-31 | HM9: 2017-11-30 | HN9: 2017-12-31 | HO9: 2017 | HP9: 2018-01-31 | HQ9: 2018-02-28 | HR9: 2018-03-31 | HS9: 2018-04-30 | HT9: 2018-05-31 | HU9: 2018-06-30 | HV9: 2018-07-31 | HW9: 2018-08-31 | HX9: 2018-09-30 | HY9: 2018-10-31 | HZ9: 2018-11-30 | IA9: 2018-12-31 | IB9: 2018 | IC9: 2019-01-31 | ID9: 2019-02-28 | IE9: 2019-03-31 | IF9: 2019-04-30 | IG9: 2019-05-31 | IH9: 2019-06-30 | II9: 2019-07-31 | IJ9: 2019-08-31 | IK9: 2019-09-30 | IL9: 2019-10-31 | IM9: 2019-11-30 | IN9: 2019-12-31 | IO9: 2019 | IP9: 2020-01-31 | IQ9: 2020-02-28 | IR9: 2020-03-27 | IS9: 2020-04-24 | IT9: 2020-05-22 | IU9: 2020-06-19 | IV9: 2020-07-17 | IW9: 2020-08-14 | IX9: 2020-09-11 | IY9: 2020-10-09 | IZ9: 2020-11-06 | JA9: 2020-12-04 | JB9: 2020
B10: Nuclear | C10: 0 | D10: 2.27942048 | E10: 14.25101659 | F10: 13.89751671 | G10: 0 | H10: 0 | I10: 0.2549083483 | J10: 1.975539699 | K10: 10.41139507 | L10: 9.845466879 | M10: 0.8585369285 | N10: 0 | O10: 4.478233122 | P10: 0 | Q10: 2.3392615 | R10: 17.13300722 | S10: 17.40133102 | T10: 12.54962025 | U10: 3.694285111 | V10: 0 | W10: 0.6186838037 | X10: 11.77123212 | Y10: 1.451380844 | Z10: 0 | AA10: 0 | AB10: 5.575848833 | AC10: 0 | AD10: 0 | AE10: 14.40286965 | AF10: 9.467494346 | AG10: 2.279169155 | AH10: 7.895794834 | AI10: 0 | AJ10: 0 | AK10: 18.78243643 | AL10: 15.20537462 | AM10: 0.9925184631 | AN10: 1.860969674 | AO10: 5.915942128 | AP10: 0.708494167 | AQ10: 0 | AR10: 8.00357274 | AS10: 4.781049074 | AT10: 7.390662445 | AU10: 2.479250337 | AV10: 0 | AW10: 0 | AX10: 11.81004328 | AY10: 12.97020545 | AZ10: 0 | BA10: 0 | BB10: 4.02636343 | BC10: 0 | BD10: 2.023701637 | BE10: 13.19860432 | BF10: 14.38821538 | BG10: 15.33989071 | BH10: 8.399765491 | BI10: 0 | BJ10: 0 | BK10: 0 | BL10: 13.05730472 | BM10: 1.523352217 | BN10: 0 | BO10: 5.686665718 | BP10: 0 | BQ10: 0 | BR10: 5.673561316 | BS10: 18.16016658 | BT10: 5.200694453 | BU10: 0 | BV10: 0 | BW10: 1.809097477 | BX10: 12.61163938 | BY10: 12.25376512 | BZ10: 1.688220992 | CA10: 0 | CB10: 4.79421378 | CC10: 0 | CD10: 2.397533123 | CE10: 7.862512908 | CF10: 10.66911554 | CG10: 29.10874548 | CH10: 37.93063197 | CI10: 27.00236327 | CJ10: 14.01634749 | CK10: 3.942097731 | CL10: 9.243686873 | CM10: 23.54507929 | CN10: 0 | CO10: 13.8466837 | CP10: 0 | CQ10: 0 | CR10: 0 | CS10: 7.227696124 | CT10: 10.96407635 | CU10: 0 | CV10: 0 | CW10: 0 | CX10: 0 | CY10: 3.036147639 | CZ10: 13.30547053 | DA10: 8.605038851 | DB10: 3.598045503 | DC10: 0 | DD10: 8.763889725 | DE10: 27.83942829 | DF10: 20.69789848 | DG10: 30.73536868 | DH10: 32.05928386 | DI10: 20.34594851 | DJ10: 0 | DK10: 11.86490894 | DL10: 9.4247323 | DM10: 11.83513258 | DN10: 12.66165744 | DO10: 15.53303984 | DP10: 6.926471209 | DQ10: 0 | DR10: 0 | DS10: 0 | DT10: 11.88020719 | DU10: 11.13162769 | DV10: 0 | DW10: 0 | DX10: 0 | DY10: 0 | DZ10: 4.09885933 | EA10: 12.72059792 | EB10: 3.924974636 | EC10: 11.44994698 | ED10: 13.96868972 | EE10: 19.45544155 | EF10: 15.84814049 | EG10: 30.23777344 | EH10: 9.769061554 | EI10: 8.620808066 | EJ10: 0 | EK10: 2.792004501 | EL10: 14.15664254 | EM10: 13.76446882 | EN10: 13.19592293 | EO10: 12.78606526 | EP10: 5.214517932 | EQ10: 0 | ER10: 0 | ES10: 1.508731064 | ET10: 18.64756245 | EU10: 27.88425513 | EV10: 5.494873898 | EW10: 0 | EX10: 0 | EY10: 2.138930129 | EZ10: 22.21194403 | FA10: 17.95830403 | FB10: 8.416688618 | FC10: 4.220133153 | FD10: 0 | FE10: 0 | FF10: 10.91353688 | FG10: 15.68627867 | FH10: 9.864449257 | FI10: 0 | FJ10: 0 | FK10: 4.18889408 | FL10: 14.02487625 | FM10: 16.59076236 | FN10: 19.54746963 | FO10: 7.959329139 | FP10: 10.67802794 | FQ10: 0 | FR10: 0 | FS10: 0 | FT10: 15.98719329 | FU10: 22.50396696 | FV10: 13.35541267 | FW10: 8.185370982 | FX10: 0 | FY10: 0.07246866845 | FZ10: 13.09624426 | GA10: 6.570371771 | GB10: 7.584448112 | GC10: 0 | GD10: 0 | GE10: 0 | GF10: 3.226725565 | GG10: 26.56742623 | GH10: 16.04326237 | GI10: 4.266807501 | GJ10: 0 | GK10: 1.853780762 | GL10: 14.4733435 | GM10: 19.51178329 | GN10: 3.817854654 | GO10: 7.513857545 | GP10: 12.06265197 | GQ10: 7.3491311 | GR10: 0 | GS10: 1.003992698 | GT10: 24.45912093 | GU10: 2.981214491 | GV10: 0 | GW10: 0 | GX10: 0 | GY10: 1.352614351 | GZ10: 24.43003539 | HA10: 9.927576849 | HB10: 6.96038067 | HC10: 0 | HD10: 0 | HE10: 0 | HF10: 0.1762001369 | HG10: 19.18443285 | HH10: 10.45403923 | HI10: 12.27805647 | HJ10: 0 | HK10: 3.727075006 | HL10: 13.94413041 | HM10: 13.93385039 | HN10: 0 | HO10: 6.17655274 | HP10: 0 | HQ10: 0 | HR10: 0 | HS10: 10.36343881 | HT10: 10.99841796 | HU10: 11.74853407 | HV10: 0 | HW10: 0 | HX10: 0 | HY10: 1.373241947 | HZ10: 24.00325971 | IA10: 6.777085226 | IB10: 5.41678163 | IC10: 0.002009179338 | ID10: 0 | IE10: 0 | IF10: 1.857846719 | IG10: 22.88850152 | IH10: 3.759530902 | II10: 0 | IJ10: 0 | IK10: 0 | IL10: 11.85567283 | IM10: 28.94100247 | IN10: 11.35716905 | IO10: 6.757395394 | IP10: 0 | IQ10: 0 | IR10: 0 | IS10: 0 | IT10: 6.310099749 | IU10: 9.183437463 | IV10: - | IW10: - | IX10: - | IY10: - | IZ10: - | JA10: - | JB10: 2.589143391
B11: Carbón | C11: 0 | D11: 1.159641839 | E11: 2.574927927 | F11: 7.578763293 | G11: 11.67586051 | H11: 7.335770067 | I11: 0 | J11: 0 | K11: 0.5723628815 | L11: 1.771890376 | M11: 0 | N11: 0 | O11: 2.72266922 | P11: 0 | Q11: 0 | R11: 0 | S11: 4.923381601 | T11: 5.121423291 | U11: 3.48057118 | V11: 4.587688726 | W11: 3.343603369 | X11: 1.826717336 | Y11: 7.055946355 | Z11: 0.9828222273 | AA11: 0 | AB11: 2.630751481 | AC11: 0 | AD11: 2.949264888 | AE11: 7.550711821 | AF11: 6.461511266 | AG11: 7.654573529 | AH11: 4.129996605 | AI11: 0 | AJ11: 1.188135345 | AK11: 1.730178884 | AL11: 3.095618137 | AM11: 1.505225652 | AN11: 0 | AO11: 3.017707714 | AP11: 0 | AQ11: 0 | AR11: 3.943322557 | AS11: 12.89148588 | AT11: 13.19964113 | AU11: 1.665864041 | AV11: 0 | AW11: 0 | AX11: 0.2281279784 | AY11: 1.763613581 | AZ11: 3.85169829 | BA11: 1.122794559 | BB11: 3.223119424 | BC11: 0 | BD11: 1.687563174 | BE11: 4.91561204 | BF11: 13.35742661 | BG11: 10.982858 | BH11: 4.054821873 | BI11: 2.652208062 | BJ11: 0 | BK11: 0 | BL11: 0.06082736885 | BM11: 0.9494238224 | BN11: 0 | BO11: 3.22716097 | BP11: 0 | BQ11: 3.871910939 | BR11: 0.4505772375 | BS11: 4.877284704 | BT11: 8.091136274 | BU11: 1.123794354 | BV11: 0.02585978049 | BW11: 3.206612781 | BX11: 6.544685802 | BY11: 12.21386241 | BZ11: 6.85866473 | CA11: 1.646281532 | CB11: 4.070866893 | CC11: 0 | CD11: 0 | CE11: 0 | CF11: 0 | CG11: 0 | CH11: 1.355211418 | CI11: 0.360409456 | CJ11: 1.300050812 | CK11: 2.375390181 | CL11: 8.361471556 | CM11: 11.42878687 | CN11: 5.922151189 | CO11: 2.599397944 | CP11: 10.5744007 | CQ11: 17.33766187 | CR11: 17.47469213 | CS11: 14.75280667 | CT11: 17.14961912 | CU11: 18.03981066 | CV11: 16.57665175 | CW11: 15.04200622 | CX11: 7.755793817 | CY11: 9.886600153 | CZ11: 12.85086831 | DA11: 10.26995135 | DB11: 13.96351131 | DC11: 9.375024348 | DD11: 8.197929332 | DE11: 8.877245309 | DF11: 15.36384623 | DG11: 15.27649267 | DH11: 3.692808952 | DI11: 1.251447043 | DJ11: 1.24657652 | DK11: 1.806411681 | DL11: 3.243432445 | DM11: 2.421312416 | DN11: 0 | DO11: 5.877302537 | DP11: 0 | DQ11: 0 | DR11: 0.6581451939 | DS11: 5.093769574 | DT11: 5.093769574 | DU11: 0.3601012101 | DV11: 0 | DW11: 0 | DX11: 1.755044932 | DY11: 5.708538641 | DZ11: 5.260278004 | EA11: 1.230374635 | EB11: 2.103752824 | EC11: 0 | ED11: 0.8144006166 | EE11: 2.669644948 | EF11: 2.461133391 | EG11: 5.79907334 | EH11: 0.001306000396 | EI11: 0 | EJ11: 0.471789314 | EK11: 3.709641585 | EL11: 3.923352037 | EM11: 2.826040459 | EN11: 0 | EO11: 1.894736293 | EP11: 0 | EQ11: 0 | ER11: 0.2588750143 | ES11: 4.418406274 | ET11: 7.867524709 | EU11: 3.695516703 | EV11: 0 | EW11: 1.64120731 | EX11: 3.067970065 | EY11: 9.292756828 | EZ11: 2.683171537 | FA11: 0 | FB11: 2.752324241 | FC11: 0 | FD11: 0 | FE11: 2.538934811 | FF11: 8.630550745 | FG11: 13.83249963 | FH11: 6.399224277 | FI11: 0 | FJ11: 0 | FK11: 3.972321404 | FL11: 5.990206373 | FM11: 0 | FN11: 0 | FO11: 3.456134101 | FP11: 0 | FQ11: 0 | FR11: 0 | FS11: 0.3273947892 | FT11: 4.1287959 | FU11: 1.300399842 | FV11: 0.2696214363 | FW11: 1.20212385 | FX11: 0.9576483551 | FY11: 5.288999482 | FZ11: 7.015540188 | GA11: 0 | GB11: 1.715971952 | GC11: 0.4209216097 | GD11: 0 | GE11: 3.205042656 | GF11: 13.41108728 | GG11: 10.66080411 | GH11: 2.892671822 | GI11: 0 | GJ11: 0 | GK11: 0 | GL11: 0.8700029766 | GM11: 0.9500753853 | GN11: 0 | GO11: 2.702934227 | GP11: 0.697312845 | GQ11: 0.1167239216 | GR11: 8.246277489 | GS11: 17.49896925 | GT11: 12.70911633 | GU11: 4.162597859 | GV11: 0 | GW11: 0.5704122497 | GX11: 5.894259914 | GY11: 9.536045063 | GZ11: 4.703573963 | HA11: 6.632126446 | HB11: 5.838169613 | HC11: 5.847063882 | HD11: 5.847063882 | HE11: 7.352252037 | HF11: 15.12492964 | HG11: 5.435690558 | HH11: 0 | HI11: 0 | HJ11: 0 | HK11: 0.1214511206 | HL11: 13.42603277 | HM11: 8.286664616 | HN11: 1.18653449 | HO11: 5.207224685 | HP11: 0 | HQ11: 7.342229941 | HR11: 3.102041942 | HS11: 8.63884315 | HT11: 4.078725391 | HU11: 1.351344737 | HV11: 0 | HW11: 0 | HX11: 1.700231348 | HY11: 2.896887547 | HZ11: 0.7246950612 | IA11: 0 | IB11: 2.439036694 | IC11: 0 | ID11: 0 | IE11: 0 | IF11: 0 | IG11: 5.115693015 | IH11: 2.846424062 | II11: 0 | IJ11: 0 | IK11: 1.904730896 | IL11: 6.881722545 | IM11: 5.332631495 | IN11: 0 | IO11: 1.835112723 | IP11: 0 | IQ11: 0 | IR11: 0 | IS11: 0 | IT11: 0 | IU11: 0 | IV11: - | IW11: - | IX11: - | IY11: - | IZ11: - | JA11: - | JB11: 0
B12: Fuel + Gas | C12: 0 | D12: 0 | E12: 0 | F12: 1.404386399 | G12: 4.477817023 | H12: 1.742449659 | I12: 0 | J12: 1.463243509 | K12: 0.9910232254 | L12: 5.5812379 | M12: 7.206277705 | N12: 1.191037565 | O12: 2.012794732 | P12: 0 | Q12: 0 | R12: 0 | S12: 3.470181699 | T12: 1.477432753 | U12: 0 | V12: 0 | W12: 1.290418785 | X12: 3.605308496 | Y12: 5.592785928 | Z12: 12.18946713 | AA12: 0 | AB12: 2.261476358 | AC12: 0 | AD12: 0 | AE12: 2.19409086 | AF12: 15.52512323 | AG12: 8.355794986 | AH12: 2.35645371 | AI12: 0 | AJ12: 0 | AK12: 0 | AL12: 0.6723833301 | AM12: 0 | AN12: 0 | AO12: 2.401588787 | AP12: 0 | AQ12: 0 | AR12: 0 | AS12: 2.555762546 | AT12: 2.51850124 | AU12: 0 | AV12: 0 | AW12: 0 | AX12: 0 | AY12: 4.024984294 | AZ12: 6.038657371 | BA12: 0 | BB12: 1.258559104 | BC12: 0 | BD12: 0.1677476835 | BE12: 1.134191135 | BF12: 4.628463141 | BG12: 4.492682307 | BH12: 3.826997449 | BI12: 0 | BJ12: 2.868284645 | BK12: 6.813914286 | BL12: 6.153383922 | BM12: 0 | BN12: 0 | BO12: 2.494393455 | BP12: 0 | BQ12: 0 | BR12: 0 | BS12: 0 | BT12: 2.089440667 | BU12: 0 | BV12: 1.382676651 | BW12: 6.993494424 | BX12: 3.419041718 | BY12: 8.700976806 | BZ12: 5.472587117 | CA12: 0.2939867444 | CB12: 2.384628054 | CC12: 0 | CD12: 0 | CE12: 3.226689888 | CF12: 8.353416679 | CG12: 7.356786228 | CH12: 0 | CI12: 0 | CJ12: 0 | CK12: 0 | CL12: 0 | CM12: 20.64439889 | CN12: 1.217773914 | CO12: 3.329844953 | CP12: 0 | CQ12: 0 | CR12: 0 | CS12: 0.01995146786 | CT12: 7.602930205 | CU12: 14.04811124 | CV12: 7.221557896 | CW12: 7.222505317 | CX12: 7.222505317 | CY12: 7.222505317 | CZ12: 7.222505317 | DA12: 7.222505317 | DB12: 5.401125296 | DC12: 7.222505317 | DD12: 7.222505317 | DE12: 7.222505317 | DF12: 7.222505317 | DG12: 7.222505317 | DH12: 8.462284001 | DI12: 4.416827344 | DJ12: 0 | DK12: 0 | DL12: 0 | DM12: 0 | DN12: 0 | DO12: 4.270294442 | DP12: 0 | DQ12: 0 | DR12: 0 | DS12: 0 | DT12: 0 | DU12: 0 | DV12: 0 | DW12: 0 | DX12: 0 | DY12: 0 | DZ12: 0 | EA12: 0 | EB12: 0 | EC12: 0 | ED12: 0 | EE12: 0 | EF12: 0 | EG12: 11.87090082 | EH12: 12.22588717 | EI12: 0 | EJ12: 0 | EK12: 0 | EL12: 0 | EM12: 0 | EN12: 0 | EO12: 2.245003363 | EP12: 0 | EQ12: 0 | ER12: 0 | ES12: 0 | ET12: 0 | EU12: 0 | EV12: 0 | EW12: 0 | EX12: 0 | EY12: 0 | EZ12: 0 | FA12: 0 | FB12: 0 | FC12: 0 | FD12: 0 | FE12: 0 | FF12: 0 | FG12: 0 | FH12: 0 | FI12: 0 | FJ12: 0 | FK12: 0 | FL12: 0 | FM12: 0 | FN12: 0 | FO12: 0 | FP12: 0 | FQ12: 0 | FR12: 0 | FS12: 0 | FT12: 0 | FU12: 0 | FV12: 0 | FW12: 0 | FX12: 0 | FY12: 0 | FZ12: 0 | GA12: 0 | GB12: 0 | GC12: 0 | GD12: 0 | GE12: 0 | GF12: 0 | GG12: 0 | GH12: - | GI12: - | GJ12: - | GK12: - | GL12: - | GM12: - | GN12: - | GO12: - | GP12: - | GQ12: - | GR12: - | GS12: - | GT12: - | GU12: - | GV12: - | GW12: - | GX12: - | GY12: - | GZ12: - | HA12: - | HB12: - | HC12: - | HD12: - | HE12: - | HF12: - | HG12: - | HH12: - | HI12: - | HJ12: - | HK12: - | HL12: - | HM12: - | HN12: - | HO12: - | HP12: - | HQ12: - | HR12: - | HS12: - | HT12: - | HU12: - | HV12: - | HW12: - | HX12: - | HY12: - | HZ12: - | IA12: - | IB12: - | IC12: - | ID12: - | IE12: - | IF12: - | IG12: - | IH12: - | II12: - | IJ12: - | IK12: - | IL12: - | IM12: - | IN12: - | IO12: - | IP12: - | IQ12: - | IR12: - | IS12: - | IT12: - | IU12: - | IV12: - | IW12: - | IX12: - | IY12: - | IZ12: - | JA12: - | JB12: -
B13: Ciclo combinado | C13: - | D13: - | E13: - | F13: - | G13: - | H13: - | I13: - | J13: - | K13: - | L13: - | M13: - | N13: - | O13: - | P13: - | Q13: - | R13: 0 | S13: 0 | T13: 0 | U13: 0 | V13: 0 | W13: 0 | X13: 0 | Y13: 8.779757136 | Z13: 4.028514248 | AA13: 0 | AB13: 1.800281687 | AC13: 0 | AD13: 0 | AE13: 6.04204906 | AF13: 23.1033072 | AG13: 13.41257748 | AH13: 0 | AI13: 0 | AJ13: 0 | AK13: 0 | AL13: 0 | AM13: 0 | AN13: 0 | AO13: 3.091877642 | AP13: 0 | AQ13: 0 | AR13: 1.541571104 | AS13: 0 | AT13: 4.278475806 | AU13: 0 | AV13: 0 | AW13: 2.540425814 | AX13: 0 | AY13: 0.3383641209 | AZ13: 6.543665599 | BA13: 0.4709289249 | BB13: 1.451048106 | BC13: 0 | BD13: 0.5248704684 | BE13: 3.965064335 | BF13: 6.583120777 | BG13: 10.52706135 | BH13: 5.804419261 | BI13: 2.79606061 | BJ13: 2.328063212 | BK13: 2.187202212 | BL13: 0.6203826407 | BM13: 1.035837204 | BN13: 0 | BO13: 2.937004362 | BP13: 0 | BQ13: 0 | BR13: 0 | BS13: 1.407807932 | BT13: 0.09314220264 | BU13: 0 | BV13: 0 | BW13: 0.8482978508 | BX13: 1.062111398 | BY13: 9.336179082 | BZ13: 5.25938516 | CA13: 1.691376656 | CB13: 1.763278402 | CC13: 0 | CD13: 0.6174474665 | CE13: 0.5448327722 | CF13: 2.10381893 | CG13: 1.260245267 | CH13: 0 | CI13: 0 | CJ13: 0.6998854385 | CK13: 0.9706160821 | CL13: 3.606224362 | CM13: 5.031664726 | CN13: 1.389415382 | CO13: 1.438914527 | CP13: 0 | CQ13: 1.402473815 | CR13: 4.307055694 | CS13: 4.749114308 | CT13: 2.930075246 | CU13: 2.186509771 | CV13: 0.4198460627 | CW13: 0.1577090255 | CX13: 3.664767377 | CY13: 7.023509705 | CZ13: 2.958556814 | DA13: 0.1865827512 | DB13: 2.497459359 | DC13: 0 | DD13: 0.611839944 | DE13: 3.680114852 | DF13: 4.945300925 | DG13: 5.966971411 | DH13: 0.4619137813 | DI13: 0 | DJ13: 0 | DK13: 1.778099212 | DL13: 7.282308085 | DM13: 2.344151394 | DN13: 0 | DO13: 2.260339941 | DP13: 0 | DQ13: 0.7727963378 | DR13: 4.512531828 | DS13: 3.537812016 | DT13: 13.44076724 | DU13: 4.784548443 | DV13: 1.500403412 | DW13: 3.379135869 | DX13: 4.484502612 | DY13: 10.19900705 | DZ13: 9.302412942 | EA13: 2.125178827 | EB13: 4.914191769 | EC13: 1.233648331 | ED13: 4.256115235 | EE13: 3.536278721 | EF13: 5.383216313 | EG13: 8.373554467 | EH13: 5.374367437 | EI13: 1.213360076 | EJ13: 7.939001378 | EK13: 7.942062385 | EL13: 10.43319342 | EM13: 13.40741158 | EN13: 5.298359207 | EO13: 6.199297421 | EP13: 3.581723348 | EQ13: 1.525527572 | ER13: 16.98278516 | ES13: 10.40356108 | ET13: 9.491304381 | EU13: 5.210033281 | EV13: 4.45417137 | EW13: 5.377216286 | EX13: 1.469163079 | EY13: 1.909976086 | EZ13: 0.4503228223 | FA13: 0 | FB13: 5.096770452 | FC13: 0.409053414 | FD13: 0.5540351261 | FE13: 2.475322783 | FF13: 7.059314926 | FG13: 6.629438838 | FH13: 0.7342751591 | FI13: 0.3880171413 | FJ13: 4.005484188 | FK13: 2.449623038 | FL13: 5.900270292 | FM13: 3.095077604 | FN13: 3.702612134 | FO13: 3.135974705 | FP13: 4.965686172 | FQ13: 5.81635888 | FR13: 5.502802519 | FS13: 9.043224953 | FT13: 6.183996978 | FU13: 4.15564372 | FV13: 3.972020807 | FW13: 5.018518148 | FX13: 5.896428912 | FY13: 7.756406435 | FZ13: 7.796852754 | GA13: 3.128833372 | GB13: 5.759157963 | GC13: 3.182744663 | GD13: 4.800083382 | GE13: 11.372684 | GF13: 6.938466489 | GG13: 10.07549789 | GH13: 4.100403838 | GI13: 4.872702283 | GJ13: 5.030791146 | GK13: 6.096424547 | GL13: 10.77454047 | GM13: 9.049244751 | GN13: 3.340079174 | GO13: 6.652147477 | GP13: 1.763984397 | GQ13: 1.341998511 | GR13: 4.188872967 | GS13: 6.488206632 | GT13: 6.857915445 | GU13: 1.262289897 | GV13: 1.370761485 | GW13: 3.223371025 | GX13: 8.196901472 | GY13: 11.0132067 | GZ13: 5.953501887 | HA13: 6.046648746 | HB13: 4.821412252 | HC13: 4.616482398 | HD13: 3.069904672 | HE13: 8.338582932 | HF13: 8.946974359 | HG13: 12.77411294 | HH13: 3.11905535 | HI13: 2.020722936 | HJ13: 2.150737318 | HK13: 0.9764990072 | HL13: 2.815513877 | HM13: 5.1584502 | HN13: 1.593936173 | HO13: 4.644847441 | HP13: 0 | HQ13: 0.5596938177 | HR13: 5.08290636 | HS13: 8.418587801 | HT13: 8.740121732 | HU13: 2.11301424 | HV13: 0.3869158306 | HW13: 1.387936843 | HX13: 1.443762017 | HY13: 6.211714371 | HZ13: 5.27307025 | IA13: 0 | IB13: 3.314229186 | IC13: 2.276069433 | ID13: 4.474669153 | IE13: 9.472136527 | IF13: 7.62764319 | IG13: 7.66848987 | IH13: 3.793960706 | II13: 2.035498196 | IJ13: 1.880022673 | IK13: 0.3829896626 | IL13: 4.510890969 | IM13: 9.504404161 | IN13: 2.431711634 | IO13: 4.665406432 | IP13: 0 | IQ13: 7.226960323 | IR13: 9.212008305 | IS13: 1.756543266 | IT13: 3.459240491 | IU13: 5.405084722 | IV13: - | IW13: - | IX13: - | IY13: - | IZ13: - | JA13: - | JB13: 4.489245164
B14: Indisponibilidad prevista | C14: 0 | D14: 1.154881572 | E14: 5.254076456 | F14: 7.658921797 | G14: 6.19945485 | H14: 3.586764614 | I14: 0.07464047048 | J14: 0.9972932599 | K14: 3.573228841 | L14: 5.226604345 | M14: 2.314272898 | N14: 0.3409449405 | O14: 3.033276219 | P14: 0 | Q14: 0.6848680321 | R14: 4.944968402 | S14: 8.025837382 | T14: 5.902490292 | U14: 2.389564964 | V14: 1.790703925 | W14: 1.803996622 | X14: 4.813132885 | Y14: 5.343300248 | Z14: 3.830198245 | AA14: 0 | AB14: 3.30137095 | AC14: 0 | AD14: 1.143715311 | AE14: 7.936780644 | AF14: 11.16382128 | AG14: 6.981367685 | AH14: 4.290522639 | AI14: 0 | AJ14: 0.4467294516 | AK14: 5.515484348 | AL14: 5.25309949 | AM14: 0.8221294225 | AN14: 0.4812208406 | AO14: 3.647826091 | AP14: 0.1807305284 | AQ14: 0 | AR14: 3.724287667 | AS14: 6.449291038 | AT14: 7.870492725 | AU14: 1.205446528 | AV14: 0 | AW14: 0.5701671804 | AX14: 2.824554286 | AY14: 4.511912409 | AZ14: 4.062822992 | BA14: 0.4853740236 | BB14: 2.651775485 | BC14: 0 | BD14: 1.162135798 | BE14: 5.789729691 | BF14: 10.09378783 | BG14: 10.61700658 | BH14: 5.457985787 | BI14: 1.620716418 | BJ14: 1.181013476 | BK14: 1.875388637 | BL14: 4.033325653 | BM14: 0.9312156096 | BN14: 0 | BO14: 3.54249659 | BP14: 0 | BQ14: 1.12448557 | BR14: 1.263697833 | BS14: 5.491050965 | BT14: 3.717881797 | BU14: 0.3187198508 | BV14: 0.2269475624 | BW14: 2.647658826 | BX14: 5.082116026 | BY14: 10.56310829 | BZ14: 5.064602607 | CA14: 1.142025953 | CB14: 3.094187228 | CC14: 0 | CD14: 0.6820777703 | CE14: 2.16979956 | CF14: 4.070542207 | CG14: 6.867379636 | CH14: 7.102225569 | CI14: 4.892298563 | CJ14: 3.058801657 | CK14: 1.714478466 | CL14: 5.293593394 | CM14: 11.76123464 | CN14: 2.257006882 | CO14: 4.210783642 | CP14: 2.642849181 | CQ14: 5.020209228 | CR14: 6.44719865 | CS14: 7.210917991 | CT14: 8.267559588 | CU14: 6.872053804 | CV14: 4.995636819 | CW14: 4.488609501 | CX14: 4.393531244 | CY14: 7.073365044 | CZ14: 7.572542059 | DA14: 4.783382733 | DB14: 5.812515637 | DC14: 3.006209379 | DD14: 4.501881786 | DE14: 9.405798342 | DF14: 10.41291365 | DG14: 12.57068678 | DH14: 7.305349272 | DI14: 4.13493219 | DJ14: 0.3063716138 | DK14: 3.332791528 | DL14: 6.022426052 | DM14: 3.773720107 | DN14: 2.163580144 | DO14: 5.580004147 | DP14: 1.17810804 | DQ14: 0.4058285644 | DR14: 2.534421854 | DS14: 3.136846312 | DT14: 10.46080219 | DU14: 4.532366958 | DV14: 0.8170052944 | DW14: 1.850231243 | DX14: 2.875978186 | DY14: 6.951494946 | DZ14: 7.031364525 | EA14: 3.56540812 | EB14: 3.817578458 | EC14: 2.56281825 | ED14: 4.842566493 | EE14: 5.817791664 | EF14: 6.181682729 | EG14: 11.50934337 | EH14: 5.020221147 | EI14: 2.122005871 | EJ14: 4.534742584 | EK14: 5.807003566 | EL14: 9.151620331 | EM14: 10.46950902 | EN14: 5.16122687 | EO14: 6.101778238 | EP14: 2.867643518 | EQ14: 0.8548621031 | ER14: 9.611086158 | ES14: 7.208972398 | ET14: 10.46159185 | EU14: 8.575458545 | EV14: 3.434778916 | EW14: 3.429370087 | EX14: 1.591623568 | EY14: 3.758372973 | EZ14: 4.69948505 | FA14: 3.062818269 | FB14: 4.975173552 | FC14: 0.9532340877 | FD14: 0.3152052356 | FE14: 2.033536241 | FF14: 8.029246549 | FG14: 9.887121481 | FH14: 3.696221368 | FI14: 0.2210786266 | FJ14: 2.281608662 | FK14: 3.095956476 | FL14: 7.258811428 | FM14: 4.632802843 | FN14: 5.490058324 | FO14: 4.009448337 | FP14: 4.67574412 | FQ14: 3.313693578 | FR14: 3.135058535 | FS14: 5.232529268 | FT14: 7.302159607 | FU14: 6.578886394 | FV14: 4.638904962 | FW14: 4.570031654 | FX14: 3.5945375 | FY14: 5.730610425 | FZ14: 8.431864833 | GA14: 2.929109309 | GB14: 5.015431637 | GC14: 1.922773179 | GD14: 2.753282946 | GE14: 7.294614402 | GF14: 7.769283551 | GG14: 13.03433543 | GH14: 5.910252389 | GI14: 3.579472568 | GJ14: 2.919549824 | GK14: 3.86454896 | GL14: 9.014413167 | GM14: 8.92026216 | GN14: 2.610945683 | GO14: 5.815740868 | GP14: 3.318529904 | GQ14: 2.113005586 | GR14: 4.36097043 | GS14: 8.008859256 | GT14: 11.35488993 | GU14: 2.229413157 | GV14: 0.8131310516 | GW14: 2.041424154 | GX14: 6.198798787 | GY14: 8.938700721 | GZ14: 8.997173834 | HA14: 6.878235315 | HB14: 5.438499012 | HC14: 4.064205457 | HD14: 3.14678081 | HE14: 6.61341904 | HF14: 8.768367606 | HG14: 12.26455585 | HH14: 3.732673444 | HI14: 3.40959745 | HJ14: 1.275810063 | HK14: 1.277927855 | HL14: 7.225202964 | HM14: 7.37693227 | HN14: 1.227835119 | HO14: 5.046126482 | HP14: 0 | HQ14: 2.018586446 | HR14: 3.759190419 | HS14: 8.801832921 | HT14: 8.058051748 | HU14: 3.58704336 | HV14: 0.2320287654 | HW14: 0.8308289253 | HX14: 1.25376202 | HY14: 4.609194316 | HZ14: 7.455449234 | IA14: 1.169731777 | IB14: 3.473846599 | IC14: 1.355893412 | ID14: 2.664955066 | IE14: 5.670471103 | IF14: 4.904649037 | IG14: 9.742375912 | IH14: 3.574459654 | II14: 1.222552353 | IJ14: 1.129171299 | IK14: 0.659222584 | IL14: 6.323500841 | IM14: 11.94740126 | IN14: 3.437287907 | IO14: 4.387565087 | IP14: 0 | IQ14: 4.340626469 | IR14: 5.532877627 | IS14: 1.055007618 | IT14: 3.175974114 | IU14: 4.844795512 | IV14: - | IW14: - | IX14: - | IY14: - | IZ14: - | JA14: - | JB14: 3.146962925
B16: Indisponibilidad equipo térmico mensual peninsular (%) Tipo no prevista | C16: 2001-01-01 | D16: 2001-02-01 | E16: 2001-03-01 | F16: 2001-04-01 | G16: 2001-05-01 | H16: 2001-06-01 | I16: 2001-07-01 | J16: 2001-08-01 | K16: 2001-09-01 | L16: 2001-10-01 | M16: 2001-11-01 | N16: 2001-12-01 | O16: 2001 | P16: 2002-01-01 | Q16: 2002-02-01 | R16: 2002-03-01 | S16: 2002-04-01 | T16: 2002-05-01 | U16: 2002-06-01 | V16: 2002-07-01 | W16: 2002-08-01 | X16: 2002-09-01 | Y16: 2002-10-01 | Z16: 2002-11-01 | AA16: 2002-12-01 | AB16: 2002 | AC16: 2003-01-01 | AD16: 2003-02-01 | AE16: 2003-03-01 | AF16: 2003-04-01 | AG16: 2003-05-01 | AH16: 2003-06-01 | AI16: 2003-07-01 | AJ16: 2003-08-01 | AK16: 2003-09-01 | AL16: 2003-10-01 | AM16: 2003-11-01 | AN16: 2003-12-01 | AO16: 2003 | AP16: 2004-01-01 | AQ16: 2004-02-01 | AR16: 2004-03-01 | AS16: 2004-04-01 | AT16: 2004-05-01 | AU16: 2004-06-01 | AV16: 2004-07-01 | AW16: 2004-08-01 | AX16: 2004-09-01 | AY16: 2004-10-01 | AZ16: 2004-11-01 | BA16: 2004-12-01 | BB16: 2004 | BC16: 2005-01-01 | BD16: 2005-02-01 | BE16: 2005-03-01 | BF16: 2005-04-01 | BG16: 2005-05-01 | BH16: 2005-06-01 | BI16: 2005-07-01 | BJ16: 2005-08-01 | BK16: 2005-09-01 | BL16: 2005-10-01 | BM16: 2005-11-01 | BN16: 2005-12-01 | BO16: 2005 | BP16: 2006-01-01 | BQ16: 2006-02-01 | BR16: 2006-03-01 | BS16: 2006-04-01 | BT16: 2006-05-01 | BU16: 2006-06-01 | BV16: 2006-07-01 | BW16: 2006-08-01 | BX16: 2006-09-01 | BY16: 2006-10-01 | BZ16: 2006-11-01 | CA16: 2006-12-01 | CB16: 2006 | CC16: 2007-01-01 | CD16: 2007-02-01 | CE16: 2007-03-01 | CF16: 2007-04-01 | CG16: 2007-05-01 | CH16: 2007-06-01 | CI16: 2007-07-01 | CJ16: 2007-08-01 | CK16: 2007-09-01 | CL16: 2007-10-01 | CM16: 2007-11-01 | CN16: 2007-12-01 | CO16: 2007 | CP16: 2008-01-01 | CQ16: 2008-02-01 | CR16: 2008-03-01 | CS16: 2008-04-01 | CT16: 2008-05-01 | CU16: 2008-06-01 | CV16: 2008-07-01 | CW16: 2008-08-01 | CX16: 2008-09-01 | CY16: 2008-10-01 | CZ16: 2008-11-01 | DA16: 2008-12-01 | DB16: 2008 | DC16: 2009-01-01 | DD16: 2009-02-01 | DE16: 2009-03-01 | DF16: 2009-04-01 | DG16: 2009-05-01 | DH16: 2009-06-01 | DI16: 2009-07-01 | DJ16: 2009-08-01 | DK16: 2009-09-01 | DL16: 2009-10-01 | DM16: 2009-11-01 | DN16: 2009-12-01 | DO16: 2009 | DP16: 2010-01-31 | DQ16: 2010-02-28 | DR16: 2010-03-31 | DS16: 2010-04-30 | DT16: 2010-05-31 | DU16: 2010-06-30 | DV16: 2010-07-31 | DW16: 2010-08-31 | DX16: 2010-09-30 | DY16: 2010-10-31 | DZ16: 2010-11-30 | EA16: 2010-12-31 | EB16: 2010 | EC16: 2011-01-31 | ED16: 2011-02-28 | EE16: 2011-03-31 | EF16: 2011-04-30 | EG16: 2011-05-31 | EH16: 2011-06-30 | EI16: 2011-07-31 | EJ16: 2011-08-31 | EK16: 2011-09-30 | EL16: 2011-10-31 | EM16: 2011-11-30 | EN16: 2011-12-31 | EO16: 2011 | EP16: 2012-01-31 | EQ16: 2012-02-29 | ER16: 2012-03-31 | ES16: 2012-04-30 | ET16: 2012-05-31 | EU16: 2012-06-30 | EV16: 2012-07-31 | EW16: 2012-08-31 | EX16: 2012-09-30 | EY16: 2012-10-31 | EZ16: 2012-11-30 | FA16: 2012-12-31 | FB16: 2012 | FC16: 2013-01-31 | FD16: 2013-02-28 | FE16: 2013-03-31 | FF16: 2013-04-30 | FG16: 2013-05-31 | FH16: 2013-06-30 | FI16: 2013-07-31 | FJ16: 2013-08-31 | FK16: 2013-09-30 | FL16: 2013-10-31 | FM16: 2013-11-30 | FN16: 2013-12-31 | FO16: 2013 | FP16: 2014-01-31 | FQ16: 2014-02-28 | FR16: 2014-03-31 | FS16: 2014-04-30 | FT16: 2014-05-31 | FU16: 2014-06-30 | FV16: 2014-07-31 | FW16: 2014-08-31 | FX16: 2014-09-30 | FY16: 2014-10-31 | FZ16: 2014-11-30 | GA16: 2014-12-31 | GB16: 2014 | GC16: 2015-01-31 | GD16: 2015-02-28 | GE16: 2015-03-31 | GF16: 2015-04-30 | GG16: 2015-05-31 | GH16: 2015-06-30 | GI16: 2015-07-31 | GJ16: 2015-08-31 | GK16: 2015-09-30 | GL16: 2015-10-31 | GM16: 2015-11-30 | GN16: 2015-12-31 | GO16: 2015 | GP16: 2016-01-31 | GQ16: 2016-02-29 | GR16: 2016-03-31 | GS16: 2016-04-30 | GT16: 2016-05-31 | GU16: 2016-06-30 | GV16: 2016-07-31 | GW16: 2016-08-31 | GX16: 2016-09-30 | GY16: 2016-10-31 | GZ16: 2016-11-30 | HA16: 2016-12-31 | HB16: 2016 | HC16: 2017-01-31 | HD16: 2017-02-28 | HE16: 2017-03-31 | HF16: 2017-04-30 | HG16: 2017-05-31 | HH16: 2017-06-30 | HI16: 2017-07-31 | HJ16: 2017-08-31 | HK16: 2017-09-30 | HL16: 2017-10-31 | HM16: 2017-11-30 | HN16: 2017-12-31 | HO16: 2017 | HP16: 2018-01-31 | HQ16: 2018-02-28 | HR16: 2018-03-31 | HS16: 2018-04-30 | HT16: 2018-05-31 | HU16: 2018-06-30 | HV16: 2018-07-31 | HW16: 2018-08-31 | HX16: 2018-09-30 | HY16: 2018-10-31 | HZ16: 2018-11-30 | IA16: 2018-12-31 | IB16: 2018 | IC16: 2019-01-31 | ID16: 2019-02-28 | IE16: 2019-03-31 | IF16: 2019-04-30 | IG16: 2019-05-31 | IH16: 2019-06-30 | II16: 2019-07-31 | IJ16: 2019-08-31 | IK16: 2019-09-30 | IL16: 2019-10-31 | IM16: 2019-11-30 | IN16: 2019-12-31 | IO16: 2019 | IP16: 2020-01-31 | IQ16: 2020-02-28 | IR16: 2020-03-27 | IS16: 2020-04-24 | IT16: 2020-05-22 | IU16: 2020-06-19 | IV16: 2020-07-17 | IW16: 2020-08-14 | IX16: 2020-09-11 | IY16: 2020-10-09 | IZ16: 2020-11-06 | JA16: 2020-12-04 | JB16: 2020
B17: Nuclear | C17: 0.448319583 | D17: 0.5383105379 | E17: 0.1659039041 | F17: 0.1578686589 | G17: 0.2577797802 | H17: 2.642943824 | I17: 0.0238257434 | J17: 0.006939870465 | K17: 0 | L17: 1.667786529 | M17: 1.811866909 | N17: 0.9165427179 | O17: 0.7170349601 | P17: 0 | Q17: 0.0252992888 | R17: 2.023265524 | S17: 1.17963253 | T17: 0.6361359649 | U17: 0.9783816436 | V17: 0.5257388604 | W17: 0.6417432382 | X17: 0.7541035531 | Y17: 0.673989806 | Z17: 0.1081991877 | AA17: 0.2249920213 | AB17: 0.6514068371 | AC17: 1.45511405 | AD17: 0.9197381089 | AE17: 0.5029615063 | AF17: 1.414846818 | AG17: 11.54201625 | AH17: 6.067699468 | AI17: 0.2135422557 | AJ17: 0.8433446112 | AK17: 0.03234808432 | AL17: 0 | AM17: 0.2717140167 | AN17: 0 | AO17: 1.946239905 | AP17: 1.163268563 | AQ17: 0.163484212 | AR17: 1.990747453 | AS17: 0.03887988599 | AT17: 4.452202566 | AU17: 1.132783998 | AV17: 0.2020654091 | AW17: 1.260477791 | AX17: 0 | AY17: 4.445563875 | AZ17: 5.738795603 | BA17: 7.016894178 | BB17: 2.318918203 | BC17: 0.135510117 | BD17: 0.1250036197 | BE17: 3.627805421 | BF17: 12.7695343 | BG17: 17.42196959 | BH17: 20.63027272 | BI17: 29.04543872 | BJ17: 17.00508622 | BK17: 2.717057338 | BL17: 1.622914814 | BM17: 1.385898966 | BN17: 2.057895094 | BO17: 9.115550526 | BP17: 3.051115559 | BQ17: 2.864463068 | BR17: 3.458434752 | BS17: 11.27314766 | BT17: 13.6192534 | BU17: 2.875040251 | BV17: 9.209870049 | BW17: 0.4199241887 | BX17: 3.059145133 | BY17: 2.211154094 | BZ17: 0.4127758138 | CA17: 1.334565906 | CB17: 4.500585737 | CC17: 1.821257429 | CD17: 0.9364989521 | CE17: 0.4585351918 | CF17: 1.601544737 | CG17: 4.186275395 | CH17: 1.461662806 | CI17: 0.4111168075 | CJ17: 11.27241629 | CK17: 1.116818246 | CL17: 0.3798161163 | CM17: 0 | CN17: 5.401485223 | CO17: 2.447883398 | CP17: 1.577325846 | CQ17: 0.01089787783 | CR17: 1.964420611 | CS17: 15.52929179 | CT17: 2.353220495 | CU17: 12.03521265 | CV17: 14.53525113 | CW17: 6.592806854 | CX17: 14.66346409 | CY17: 16.65285751 | CZ17: 8.953147496 | DA17: 0 | DB17: 7.897032496 | DC17: 0.1384904839 | DD17: 2.375976881 | DE17: 0 | DF17: 2.123687461 | DG17: 1.068892222 | DH17: 0 | DI17: 2.341247552 | DJ17: 0 | DK17: 3.065427108 | DL17: 14.6786597 | DM17: 10.86910992 | DN17: 14.98329302 | DO17: 4.324421289 | DP17: 10.54999305 | DQ17: 5.799838273 | DR17: 10.94513394 | DS17: 7.907220721 | DT17: 6.993324146 | DU17: 0.1657222584 | DV17: 0.4897490292 | DW17: 0.3200028097 | DX17: 3.105663855 | DY17: 0.6656723553 | DZ17: 0.2711378667 | EA17: 0 | EB17: 3.917089717 | EC17: 2.108951933 | ED17: 0 | EE17: 0.8345485048 | EF17: 0.006205941144 | EG17: 3.102775633 | EH17: 0.3749839215 | EI17: 0.08635203622 | EJ17: 0.8377491689 | EK17: 1.773136074 | EL17: 3.612662641 | EM17: 0.6429118468 | EN17: 0 | EO17: 1.128767309 | EP17: 0.8112099264 | EQ17: 0.7102104868 | ER17: 0.8907692612 | ES17: 0.835682258 | ET17: 0 | EU17: 3.066670696 | EV17: 0 | EW17: 0.1014938715 | EX17: 0.00508902489 | EY17: 0 | EZ17: 2.175424465 | FA17: 0.2642450328 | FB17: 0.7288737639 | FC17: 6.326310482 | FD17: 5.757390443 | FE17: 0 | FF17: 0.05739923934 | FG17: 5.519322878 | FH17: 1.963827463 | FI17: 0.6784072023 | FJ17: 1.424812122 | FK17: 0 | FL17: 0.6926224661 | FM17: 0 | FN17: 1.932624307 | FO17: 2.015533359 | FP17: 1.614750625 | FQ17: 0.7510907406 | FR17: 0 | FS17: 0 | FT17: 0.005181699755 | FU17: 7.256615912 | FV17: 2.632474832 | FW17: 7.850824485 | FX17: 2.978192038 | FY17: 1.050119455 | FZ17: 0.08327436553 | GA17: 2.404766188 | GB17: 2.227173701 | GC17: 0.5650395707 | GD17: 0.8332555721 | GE17: 1.099913439 | GF17: 3.572491016 | GG17: 3.094848269 | GH17: 6.694494021 | GI17: 0.2888927098 | GJ17: 0 | GK17: 0 | GL17: 4.579857884 | GM17: 0.2043451474 | GN17: 1.905707513 | GO17: 1.904597535 | GP17: 0 | GQ17: 6.73444121 | GR17: 0.1974352847 | GS17: 0 | GT17: 0 | GU17: 0.4626549487 | GV17: 0.02201907337 | GW17: 0.05449189274 | GX17: 0.1750692574 | GY17: 0.4548193209 | GZ17: 0.00369947294 | HA17: 4.79447875 | HB17: 1.054024054 | HC17: 0.01004475506 | HD17: 0.06164034221 | HE17: 0.3005371281 | HF17: 1.760102899 | HG17: 0.01079651243 | HH17: 6.009851254 | HI17: 0.2843743734 | HJ17: 0.3066198455 | HK17: 0.04971484529 | HL17: 0.5949909403 | HM17: 14.95709143 | HN17: 2.718709303 | HO17: 2.16976924 | HP17: 3.310083244 | HQ17: 3.533165777 | HR17: 13.93875955 | HS17: 14.68695554 | HT17: 16.7626461 | HU17: 16.71536093 | HV17: 12.22161875 | HW17: 0.5467085189 | HX17: 0 | HY17: 0 | HZ17: 0.5590701243 | IA17: 10.83385386 | IB17: 7.789625284 | IC17: 3.861553606 | ID17: 0.2477336091 | IE17: 0.01022677495 | IF17: 6.908327245 | IG17: 0.9008258201 | IH17: 2.984031076 | II17: 0.4421985223 | IJ17: 1.255575355 | IK17: 0.02452099608 | IL17: 0.2120130947 | IM17: 2.307470361 | IN17: 1.963707619 | IO17: 1.758094695 | IP17: 0.05441831737 | IQ17: 0.1377706048 | IR17: 0.1098092396 | IS17: 10.49863359 | IT17: 28.21708534 | IU17: 17.07163025 | IV17: - | IW17: - | IX17: - | IY17: - | IZ17: - | JA17: - | JB17: 9.402808631
B18: Carbón | C18: 1.564216841 | D18: 0.6143798627 | E18: 2.821717231 | F18: 2.931493908 | G18: 4.577448363 | H18: 5.826026205 | I18: 7.738042368 | J18: 7.618885935 | K18: 6.561259621 | L18: 7.156379838 | M18: 5.90592591 | N18: 6.886919596 | O18: 5.051444113 | P18: 6.898544261 | Q18: 4.275862355 | R18: 5.393164241 | S18: 4.767749406 | T18: 5.897866587 | U18: 9.954453991 | V18: 7.718925066 | W18: 3.103244543 | X18: 5.334591481 | Y18: 4.80024382 | Z18: 5.592623235 | AA18: 1.998081734 | AB18: 5.477809574 | AC18: 1.833334811 | AD18: 2.516780816 | AE18: 3.85174587 | AF18: 2.446848436 | AG18: 3.494119769 | AH18: 6.689774082 | AI18: 5.377372664 | AJ18: 3.877828548 | AK18: 3.966455815 | AL18: 1.995775285 | AM18: 2.861982124 | AN18: 1.109754422 | AO18: 3.334068352 | AP18: 4.671815488 | AQ18: 3.488084393 | AR18: 5.767112489 | AS18: 5.588603994 | AT18: 6.62597041 | AU18: 7.549700367 | AV18: 3.686190847 | AW18: 4.313638184 | AX18: 5.955714425 | AY18: 5.020620299 | AZ18: 3.504412536 | BA18: 4.779193077 | BB18: 5.081432786 | BC18: 5.322908559 | BD18: 5.717388469 | BE18: 7.482158134 | BF18: 3.147958879 | BG18: 4.599602174 | BH18: 10.29137791 | BI18: 5.36389911 | BJ18: 6.558445137 | BK18: 4.776649362 | BL18: 3.199956368 | BM18: 2.04589409 | BN18: 5.427263635 | BO18: 5.327266208 | BP18: 4.550695709 | BQ18: 5.319494382 | BR18: 3.286446204 | BS18: 2.583303579 | BT18: 6.731296969 | BU18: 6.626853305 | BV18: 6.971771085 | BW18: 3.438332138 | BX18: 7.329880417 | BY18: 2.416147766 | BZ18: 2.435509212 | CA18: 1.800584362 | CB18: 4.447192507 | CC18: 2.315224818 | CD18: 3.195176137 | CE18: 3.076107052 | CF18: 10.29934233 | CG18: 12.47826855 | CH18: 11.84267626 | CI18: 12.74421963 | CJ18: 12.56494193 | CK18: 14.40578126 | CL18: 13.12742021 | CM18: 6.902444457 | CN18: 4.444108023 | CO18: 8.979189123 | CP18: 6.531048682 | CQ18: 4.366036682 | CR18: 3.463957906 | CS18: 3.627571363 | CT18: 5.798769459 | CU18: 5.771937478 | CV18: 6.000325556 | CW18: 6.905706682 | CX18: 10.04021263 | CY18: 7.907004852 | CZ18: 8.870766514 | DA18: 8.226276324 | DB18: 6.464300097 | DC18: 7.197740479 | DD18: 8.545490622 | DE18: 7.919537783 | DF18: 11.48524704 | DG18: 5.413207923 | DH18: 7.949528406 | DI18: 7.582961879 | DJ18: 6.367257734 | DK18: 5.803906865 | DL18: 5.526934576 | DM18: 6.852801347 | DN18: 4.490451728 | DO18: 7.072217563 | DP18: 5.98180766 | DQ18: 7.838822136 | DR18: 10.28882013 | DS18: 10.20914763 | DT18: 6.92280499 | DU18: 4.524139925 | DV18: 5.524255142 | DW18: 5.884878501 | DX18: 6.034373613 | DY18: 5.011659281 | DZ18: 2.384188871 | EA18: 2.677783366 | EB18: 6.094400071 | EC18: 0.4154647904 | ED18: 1.599783604 | EE18: 3.805140437 | EF18: 5.183523041 | EG18: 4.059276753 | EH18: 5.428445564 | EI18: 5.460232445 | EJ18: 7.930730904 | EK18: 7.938209831 | EL18: 11.81666366 | EM18: 7.249649632 | EN18: 4.187209419 | EO18: 5.443942101 | EP18: 4.736464386 | EQ18: 4.05384899 | ER18: 6.4394664 | ES18: 5.7084042 | ET18: 2.771946823 | EU18: 5.723639458 | EV18: 4.661297344 | EW18: 5.410454001 | EX18: 7.644626672 | EY18: 3.158000702 | EZ18: 5.059455764 | FA18: 2.80707633 | FB18: 4.839197786 | FC18: 2.847553413 | FD18: 1.009489139 | FE18: 0.9709556587 | FF18: 2.152926705 | FG18: 1.836836507 | FH18: 3.002698478 | FI18: 3.291998552 | FJ18: 3.173778667 | FK18: 4.046293533 | FL18: 1.941986544 | FM18: 4.053297551 | FN18: 2.738938245 | FO18: 2.594699091 | FP18: 4.070178195 | FQ18: 4.555422889 | FR18: 4.260337885 | FS18: 7.266415534 | FT18: 7.842211505 | FU18: 6.792797733 | FV18: 3.464459182 | FW18: 5.446695053 | FX18: 4.818915498 | FY18: 7.929669652 | FZ18: 13.39373707 | GA18: 4.988550367 | GB18: 6.230561777 | GC18: 3.408580615 | GD18: 2.372492719 | GE18: 2.755717135 | GF18: 5.13857295 | GG18: 5.104640884 | GH18: 6.586404491 | GI18: 6.922222961 | GJ18: 7.078854943 | GK18: 4.101950464 | GL18: 5.400670628 | GM18: 8.669366525 | GN18: 6.908286335 | GO18: 5.385419804 | GP18: 9.631405694 | GQ18: 6.687768146 | GR18: 1.80757769 | GS18: 4.388684724 | GT18: 5.071122613 | GU18: 8.253955333 | GV18: 7.788971474 | GW18: 7.550054309 | GX18: 7.548783406 | GY18: 15.11786403 | GZ18: 10.03504984 | HA18: 4.340073217 | HB18: 7.364277699 | HC18: 7.963822071 | HD18: 5.856215699 | HE18: 4.270552171 | HF18: 4.495841665 | HG18: 6.227997797 | HH18: 11.07753332 | HI18: 3.108339674 | HJ18: 3.345477994 | HK18: 4.805825899 | HL18: 8.445134779 | HM18: 5.221295825 | HN18: 5.261456371 | HO18: 5.834161886 | HP18: 5.562659413 | HQ18: 3.312430533 | HR18: 6.360666835 | HS18: 1.095360936 | HT18: 5.362360993 | HU18: 3.597026126 | HV18: 4.321153867 | HW18: 3.98149222 | HX18: 8.342952715 | HY18: 5.359467204 | HZ18: 5.022221028 | IA18: 14.58767055 | IB18: 5.607447754 | IC18: 13.02916173 | ID18: 9.574493154 | IE18: 9.35379747 | IF18: 4.0624776 | IG18: 5.237690247 | IH18: 3.936354162 | II18: 5.113508698 | IJ18: 6.200766064 | IK18: 10.9229555 | IL18: 11.77654086 | IM18: 11.69963839 | IN18: 18.37610994 | IO18: 9.133301253 | IP18: 14.39319662 | IQ18: 13.55232448 | IR18: 13.03991614 | IS18: 11.14834485 | IT18: 10.83708674 | IU18: 18.21655673 | IV18: - | IW18: - | IX18: - | IY18: - | IZ18: - | JA18: - | JB18: 13.51846473
B19: Fuel + Gas | C19: 2.702669257 | D19: 1.894626243 | E19: 2.945592696 | F19: 3.584067503 | G19: 1.304753757 | H19: 6.189932999 | I19: 5.694074452 | J19: 2.490141894 | K19: 9.031378855 | L19: 18.94613952 | M19: 14.10694016 | N19: 22.32672005 | O19: 7.643283973 | P19: 23.525728 | Q19: 24.38478486 | R19: 19.44343732 | S19: 17.3088848 | T19: 24.78310527 | U19: 21.66699831 | V19: 21.46356083 | W19: 14.66487913 | X19: 13.22398906 | Y19: 10.11220061 | Z19: 9.215823803 | AA19: 5.648389753 | AB19: 17.17984479 | AC19: 7.187811091 | AD19: 6.893563314 | AE19: 4.968832672 | AF19: 5.065067313 | AG19: 5.852598031 | AH19: 9.732395775 | AI19: 9.594435858 | AJ19: 12.03414981 | AK19: 6.873756765 | AL19: 9.772418892 | AM19: 5.223931068 | AN19: 6.37300107 | AO19: 7.46449652 | AP19: 6.391954777 | AQ19: 6.00975013 | AR19: 5.911291155 | AS19: 5.253857854 | AT19: 12.32453113 | AU19: 8.363350804 | AV19: 7.120289161 | AW19: 7.419503873 | AX19: 8.487589979 | AY19: 6.49067281 | AZ19: 9.817928997 | BA19: 17.41233047 | BB19: 8.433102185 | BC19: 16.88665512 | BD19: 13.08224486 | BE19: 11.77934441 | BF19: 6.929081894 | BG19: 8.516557734 | BH19: 12.65461487 | BI19: 11.42963779 | BJ19: 9.584636304 | BK19: 9.035016698 | BL19: 15.98050722 | BM19: 11.78216002 | BN19: 15.8605796 | BO19: 11.99472431 | BP19: 12.58043128 | BQ19: 9.274520044 | BR19: 10.1465294 | BS19: 7.424762704 | BT19: 10.24031136 | BU19: 8.692372234 | BV19: 16.89962379 | BW19: 8.718286068 | BX19: 9.176980288 | BY19: 9.44005663 | BZ19: 16.96522354 | CA19: 12.96035544 | CB19: 11.06298822 | CC19: 7.663743117 | CD19: 7.203170494 | CE19: 6.385091881 | CF19: 7.529092667 | CG19: 2.19143559 | CH19: 5.354180751 | CI19: 2.23006589 | CJ19: 1.186160776 | CK19: 4.874444611 | CL19: 4.129059015 | CM19: 15.3583583 | CN19: 8.708628907 | CO19: 5.932397735 | CP19: 4.452390413 | CQ19: 4.769722408 | CR19: 7.625528705 | CS19: 5.400847128 | CT19: 7.63037302 | CU19: 1.54099415 | CV19: 7.723178486 | CW19: 9.472353461 | CX19: 7.386367352 | CY19: 1.603488337 | CZ19: 0.6302132191 | DA19: 0.3631642835 | DB19: 4.894451275 | DC19: 3.159771583 | DD19: 8.282702759 | DE19: 4.33306089 | DF19: 7.060413621 | DG19: 6.93601066 | DH19: 4.225372837 | DI19: 4.923735433 | DJ19: 4.19482032 | DK19: 4.423461893 | DL19: 7.050280116 | DM19: 23.71576669 | DN19: 16.3893093 | DO19: 7.571859827 | DP19: 7.217382736 | DQ19: 9.661530453 | DR19: 11.53715547 | DS19: 7.661682147 | DT19: 7.109217262 | DU19: 7.268255319 | DV19: 7.281829542 | DW19: 22.21771351 | DX19: 22.69842355 | DY19: 17.83295837 | DZ19: 1.723983855 | EA19: 1.911191279 | EB19: 10.24735699 | EC19: 1.600474215 | ED19: 1.600474215 | EE19: 1.190866002 | EF19: 0.006758455929 | EG19: 0 | EH19: 0 | EI19: 0 | EJ19: 0 | EK19: 0 | EL19: 0 | EM19: 0 | EN19: 0 | EO19: 0.4368059262 | EP19: 0 | EQ19: 0 | ER19: 0 | ES19: 0 | ET19: 0 | EU19: 0 | EV19: 0 | EW19: 0 | EX19: 0 | EY19: 0 | EZ19: 0 | FA19: 20.30636987 | FB19: 1.622857074 | FC19: 36.98243027 | FD19: 11.1707655 | FE19: 0 | FF19: 0 | FG19: 0 | FH19: 0 | FI19: 0 | FJ19: 0 | FK19: 0 | FL19: 0 | FM19: 0 | FN19: 0 | FO19: 5.614949671 | FP19: 0 | FQ19: 0 | FR19: 0 | FS19: 21.31984386 | FT19: 98.55722363 | FU19: 98.55722363 | FV19: 98.55722363 | FW19: 98.55722363 | FX19: 98.55722363 | FY19: 98.55722363 | FZ19: 99.85382427 | GA19: 100 | GB19: 68.07448517 | GC19: - | GD19: - | GE19: - | GF19: - | GG19: - | GH19: - | GI19: - | GJ19: - | GK19: - | GL19: - | GM19: - | GN19: - | GO19: - | GP19: - | GQ19: - | GR19: - | GS19: - | GT19: - | GU19: - | GV19: - | GW19: - | GX19: - | GY19: - | GZ19: - | HA19: - | HB19: - | HC19: - | HD19: - | HE19: - | HF19: - | HG19: - | HH19: - | HI19: - | HJ19: - | HK19: - | HL19: - | HM19: - | HN19: - | HO19: - | HP19: - | HQ19: - | HR19: - | HS19: - | HT19: - | HU19: - | HV19: - | HW19: - | HX19: - | HY19: - | HZ19: - | IA19: - | IB19: - | IC19: - | ID19: - | IE19: - | IF19: - | IG19: - | IH19: - | II19: - | IJ19: - | IK19: - | IL19: - | IM19: - | IN19: - | IO19: - | IP19: - | IQ19: - | IR19: - | IS19: - | IT19: - | IU19: - | IV19: - | IW19: - | IX19: - | IY19: - | IZ19: - | JA19: - | JB19: -
B20: Ciclo combinado | C20: - | D20: - | E20: - | F20: - | G20: - | H20: - | I20: - | J20: - | K20: - | L20: - | M20: - | N20: - | O20: - | P20: - | Q20: - | R20: 0 | S20: 0 | T20: 0 | U20: 0 | V20: 1.518143233 | W20: 3.38327098 | X20: 4.913842605 | Y20: 4.600187814 | Z20: 10.22050519 | AA20: 3.747856004 | AB20: 3.78638517 | AC20: 2.446260318 | AD20: 3.380552786 | AE20: 2.941576615 | AF20: 7.825461224 | AG20: 7.896923882 | AH20: 3.06873728 | AI20: 4.052022908 | AJ20: 8.63073581 | AK20: 1.250385429 | AL20: 4.548915689 | AM20: 0.3637469511 | AN20: 0.6582771308 | AO20: 3.833996001 | AP20: 0.8464428867 | AQ20: 0.4987341037 | AR20: 2.174245863 | AS20: 4.318330069 | AT20: 4.174433056 | AU20: 4.935101328 | AV20: 1.271694493 | AW20: 7.985952449 | AX20: 3.341411403 | AY20: 4.196539418 | AZ20: 0.2088658905 | BA20: 4.154078475 | BB20: 3.31456911 | BC20: 5.838736257 | BD20: 6.297133223 | BE20: 16.33474789 | BF20: 10.59585791 | BG20: 12.19519358 | BH20: 6.359172888 | BI20: 3.491360138 | BJ20: 8.544151026 | BK20: 6.966131558 | BL20: 7.411790167 | BM20: 3.216539973 | BN20: 6.061539314 | BO20: 7.665872488 | BP20: 3.053047961 | BQ20: 3.302568887 | BR20: 2.122164091 | BS20: 2.460673354 | BT20: 6.742701021 | BU20: 5.547110348 | BV20: 4.064717402 | BW20: 5.895929154 | BX20: 5.806507058 | BY20: 3.681090312 | BZ20: 4.319657957 | CA20: 6.741229227 | CB20: 4.54885798 | CC20: 3.115612224 | CD20: 5.491086675 | CE20: 4.325184531 | CF20: 7.781905455 | CG20: 6.922880704 | CH20: 4.46059521 | CI20: 4.335528468 | CJ20: 5.44766476 | CK20: 8.892707112 | CL20: 8.265870543 | CM20: 7.493516329 | CN20: 6.871461028 | CO20: 6.221906782 | CP20: 5.625047679 | CQ20: 3.520854982 | CR20: 4.477270872 | CS20: 3.277448448 | CT20: 5.1426348 | CU20: 4.832090344 | CV20: 5.800952241 | CW20: 3.871659972 | CX20: 3.720140929 | CY20: 5.235884582 | CZ20: 6.84249888 | DA20: 7.070276219 | DB20: 4.966854011 | DC20: 3.962763269 | DD20: 3.530790989 | DE20: 5.804707981 | DF20: 6.212420101 | DG20: 5.533249534 | DH20: 2.245054361 | DI20: 1.034781326 | DJ20: 5.974017372 | DK20: 11.4243201 | DL20: 9.421237437 | DM20: 10.64344481 | DN20: 3.269612554 | DO20: 5.757559311 | DP20: 4.071172396 | DQ20: 3.29603324 | DR20: 5.096186643 | DS20: 5.505781163 | DT20: 6.852363909 | DU20: 4.294256433 | DV20: 1.170771903 | DW20: 3.404163376 | DX20: 2.964286884 | DY20: 2.218349716 | DZ20: 2.569939739 | EA20: 0.7507883101 | EB20: 3.481404864 | EC20: 1.078968432 | ED20: 0.553377408 | EE20: 3.259176585 | EF20: 1.851998051 | EG20: 1.52501625 | EH20: 1.127094702 | EI20: 1.024670679 | EJ20: 1.963181585 | EK20: 6.133237314 | EL20: 5.209786482 | EM20: 6.000517894 | EN20: 2.89245371 | EO20: 2.726647349 | EP20: 1.593448695 | EQ20: 1.681308265 | ER20: 5.526873701 | ES20: 3.58636383 | ET20: 1.837487603 | EU20: 2.871264597 | EV20: 1.54935164 | EW20: 1.281089037 | EX20: 2.510730237 | EY20: 5.493387486 | EZ20: 4.326301228 | FA20: 1.353860924 | FB20: 2.801522874 | FC20: 0.2921264108 | FD20: 0.2793256468 | FE20: 2.456313019 | FF20: 3.713842649 | FG20: 2.84525154 | FH20: 1.661666855 | FI20: 0.4572623528 | FJ20: 0.7432290042 | FK20: 1.335864941 | FL20: 4.149679368 | FM20: 2.6900628 | FN20: 1.531293549 | FO20: 1.853884012 | FP20: 0.4277445274 | FQ20: 0.2317851772 | FR20: 0.9484403844 | FS20: 1.265357084 | FT20: 4.34899665 | FU20: 2.811931197 | FV20: 2.741558203 | FW20: 1.90288996 | FX20: 4.321419174 | FY20: 5.589895322 | FZ20: 4.418998181 | GA20: 1.760665476 | GB20: 2.576823162 | GC20: 1.438170637 | GD20: 0.6854021146 | GE20: 2.87533644 | GF20: 3.09957589 | GG20: 2.364916634 | GH20: 1.92758234 | GI20: 0.4531342743 | GJ20: 1.422529934 | GK20: 0.9239587426 | GL20: 3.872566109 | GM20: 11.83020351 | GN20: 8.44572457 | GO20: 3.286893593 | GP20: 5.736139568 | GQ20: 5.8538999 | GR20: 5.748472635 | GS20: 6.301197911 | GT20: 6.857953739 | GU20: 5.595433093 | GV20: 1.844087525 | GW20: 3.66464662 | GX20: 3.146296974 | GY20: 6.257477526 | GZ20: 4.969850676 | HA20: 2.725394504 | HB20: 4.885319674 | HC20: 2.529612324 | HD20: 2.6532389 | HE20: 2.957544203 | HF20: 4.228170018 | HG20: 4.339329256 | HH20: 1.915807791 | HI20: 1.090125835 | HJ20: 1.452072822 | HK20: 2.958458095 | HL20: 5.263385812 | HM20: 6.993723453 | HN20: 0.8465704637 | HO20: 3.096190161 | HP20: 2.069801931 | HQ20: 2.539243219 | HR20: 4.462446829 | HS20: 8.340036156 | HT20: 5.717548174 | HU20: 3.715030972 | HV20: 2.727352732 | HW20: 2.705571178 | HX20: 1.206379498 | HY20: 2.753056337 | HZ20: 2.978830059 | IA20: 2.901876691 | IB20: 3.517259438 | IC20: 1.933506697 | ID20: 0.9308913014 | IE20: 5.036869997 | IF20: 4.752849514 | IG20: 7.404411303 | IH20: 9.874030114 | II20: 11.51502139 | IJ20: 5.62831101 | IK20: 8.736016381 | IL20: 12.8401122 | IM20: 12.35689549 | IN20: 11.71480432 | IO20: 7.770542414 | IP20: 16.2854644 | IQ20: 10.64006604 | IR20: 11.58634248 | IS20: 13.51072231 | IT20: 14.3951601 | IU20: 14.21989745 | IV20: - | IW20: - | IX20: - | IY20: - | IZ20: - | JA20: - | JB20: 13.46612532
B21: Indisponibilidad no prevista | C21: 1.564040542 | D21: 0.9589870299 | E21: 2.080017148 | F21: 2.306788443 | G21: 2.376781385 | H21: 4.99814079 | I21: 4.894167175 | J21: 3.921989984 | K21: 5.34705492 | L21: 8.924029871 | M21: 7.054639592 | N21: 9.558340962 | O21: 4.524868894 | P21: 9.637881662 | Q21: 8.786447865 | R21: 8.308582934 | S21: 7.185741171 | T21: 9.214406084 | U21: 10.01809938 | V21: 8.865274344 | W21: 5.41310589 | X21: 6.067109208 | Y21: 5.013783592 | Z21: 5.461969782 | AA21: 2.603585667 | AB21: 7.158446121 | AC21: 3.140182533 | AD21: 3.269548864 | AE21: 3.129568431 | AF21: 3.354265854 | AG21: 6.677739328 | AH21: 6.857992878 | AI21: 4.830795792 | AJ21: 5.593148644 | AK21: 3.225633035 | AL21: 3.593672923 | AM21: 2.377321822 | AN21: 1.949152532 | AO21: 3.995220155 | AP21: 3.584404932 | AQ21: 2.75603923 | AR21: 4.288899714 | AS21: 3.915655628 | AT21: 6.895863168 | AU21: 5.676745585 | AV21: 3.078705243 | AW21: 5.063248578 | AX21: 4.501669734 | AY21: 5.002440317 | AZ21: 4.477736263 | BA21: 7.661435789 | BB21: 4.778502986 | BC21: 6.560894806 | BD21: 6.061525653 | BE21: 9.822994401 | BF21: 8.024937687 | BG21: 10.26331974 | BH21: 11.90093466 | BI21: 11.16264472 | BJ21: 9.96893196 | BK21: 5.748316333 | BL21: 6.435927819 | BM21: 3.976769084 | BN21: 6.741840209 | BO21: 8.041818456 | BP21: 5.13114128 | BQ21: 4.811153544 | BR21: 4.068935185 | BS21: 5.072361625 | BT21: 8.668910087 | BU21: 5.856276484 | BV21: 7.856521525 | BW21: 4.655184719 | BX21: 6.246625015 | BY21: 3.97835077 | BZ21: 5.090196336 | CA21: 5.376407274 | CB21: 5.575118109 | CC21: 3.379222453 | CD21: 4.291527106 | CE21: 3.599439821 | CF21: 7.289870678 | CG21: 7.166737729 | CH21: 5.987213064 | CI21: 5.510036597 | CJ21: 7.656541906 | CK21: 8.416600504 | CL21: 7.607464288 | CM21: 7.074287855 | CN21: 6.226674565 | CO21: 6.227099061 | CP21: 5.037590293 | CQ21: 3.249527723 | CR21: 4.096086985 | CS21: 5.666304987 | CT21: 5.068867023 | CU21: 5.973765121 | CV21: 7.518097316 | CW21: 5.619056305 | CX21: 7.494290431 | CY21: 7.491696803 | CZ21: 7.111286535 | DA21: 5.515574826 | DB21: 5.831598767 | DC21: 4.036832194 | DD21: 5.027292777 | DE21: 5.201742514 | DF21: 6.902606978 | DG21: 4.881361598 | DH21: 3.44835181 | DI21: 3.21963555 | DJ21: 4.904589122 | DK21: 8.014525472 | DL21: 9.147132684 | DM21: 10.8526164 | DN21: 6.511767516 | DO21: 6.002638834 | DP21: 5.842976138 | DQ21: 5.198961764 | DR21: 7.74059485 | DS21: 7.191142078 | DT21: 6.906210878 | DU21: 3.812251287 | DV21: 2.397388439 | DW21: 4.376925671 | DX21: 4.655903674 | DY21: 3.368683028 | DZ21: 2.104527746 | EA21: 1.143144199 | EB21: 4.530470227 | EC21: 1.107240764 | ED21: 0.7612873294 | EE21: 2.906355357 | EF21: 2.2862019 | EG21: 2.344438689 | EH21: 2.022614569 | EI21: 1.938572545 | EJ21: 3.19766015 | EK21: 5.676954432 | EL21: 6.432368619 | EM21: 5.243034444 | EN21: 2.646927638 | EO21: 3.052288681 | EP21: 2.196058483 | EQ21: 2.073144704 | ER21: 4.868700503 | ES21: 3.585672062 | ET21: 1.726399729 | EU21: 3.565333998 | EV21: 2.036686927 | EW21: 2.088713698 | EX21: 3.321059809 | EY21: 3.874658828 | EZ21: 4.064732072 | FA21: 1.87819653 | FB21: 2.936179398 | FC21: 2.630861612 | FD21: 1.548443676 | FE21: 1.63784333 | FF21: 2.654389255 | FG21: 3.027163544 | FH21: 2.023638714 | FI21: 1.185962518 | FJ21: 1.449489188 | FK21: 1.755075629 | FL21: 2.96052457 | FM21: 2.528142114 | FN21: 1.879388873 | FO21: 2.110433771 | FP21: 1.522684306 | FQ21: 1.380865312 | FR21: 1.586778364 | FS21: 2.755426571 | FT21: 5.559321205 | FU21: 5.679955814 | FV21: 4.022635248 | FW21: 4.934189355 | FX21: 5.315187971 | FY21: 6.468484276 | FZ21: 6.975205961 | GA21: 3.795439791 | GB21: 4.178676302 | GC21: 2.907353614 | GD21: 2.271545961 | GE21: 3.666331519 | GF21: 4.798950539 | GG21: 4.2318619 | GH21: 3.901763437 | GI21: 1.999408291 | GJ21: 2.549229985 | GK21: 1.535021895 | GL21: 4.369256885 | GM21: 9.01246344 | GN21: 6.919231791 | GO21: 4.016767713 | GP21: 5.674113558 | GQ21: 6.209405539 | GR21: 3.851975427 | GS21: 4.732486432 | GT21: 5.217813688 | GU21: 5.273948348 | GV21: 2.863890244 | GW21: 3.895516629 | GX21: 3.609457609 | GY21: 7.221536218 | GZ21: 5.224044151 | HA21: 3.464076168 | HB21: 4.76651113 | HC21: 3.308029451 | HD21: 2.912790697 | HE21: 2.776799103 | HF21: 3.844434863 | HG21: 3.988113671 | HH21: 4.730290619 | HI21: 1.402630231 | HJ21: 1.675108841 | HK21: 2.853539967 | HL21: 5.144155529 | HM21: 7.949971018 | HN21: 2.178844414 | HO21: 3.552660335 | HP21: 3.082624359 | HQ21: 2.88652669 | HR21: 6.518920955 | HS21: 7.76539525 | HT21: 7.525924385 | HU21: 5.912308381 | HV21: 4.717121438 | HW21: 2.628446668 | HX21: 2.649157375 | HY21: 2.880624931 | HZ21: 3.033698347 | IA21: 6.979686806 | IB21: 4.731437851 | IC21: 4.838739181 | ID21: 2.816958941 | IE21: 5.148519597 | IF21: 4.972458088 | IG21: 5.784207449 | IH21: 7.336860205 | II21: 8.145296913 | IJ21: 4.996209075 | IK21: 7.712526527 | IL21: 10.40248343 | IM21: 10.45965065 | IN21: 11.51857629 | IO21: 7.03458313 | IP21: 13.03399726 | IQ21: 9.468316005 | IR21: 9.916336832 | IS21: 12.45414105 | IT21: 15.99918435 | IU21: 15.61682075 | IV21: - | IW21: - | IX21: - | IY21: - | IZ21: - | JA21: - | JB21: 12.77068143
B23: Disponibilidad equipo térmico mensual peninsular (%) | C23: 2001-01-01 | D23: 2001-02-01 | E23: 2001-03-01 | F23: 2001-04-01 | G23: 2001-05-01 | H23: 2001-06-01 | I23: 2001-07-01 | J23: 2001-08-01 | K23: 2001-09-01 | L23: 2001-10-01 | M23: 2001-11-01 | N23: 2001-12-01 | O23: 2001 | P23: 2002-01-01 | Q23: 2002-02-01 | R23: 2002-03-01 | S23: 2002-04-01 | T23: 2002-05-01 | U23: 2002-06-01 | V23: 2002-07-01 | W23: 2002-08-01 | X23: 2002-09-01 | Y23: 2002-10-01 | Z23: 2002-11-01 | AA23: 2002-12-01 | AB23: 2002 | AC23: 2003-01-01 | AD23: 2003-02-01 | AE23: 2003-03-01 | AF23: 2003-04-01 | AG23: 2003-05-01 | AH23: 2003-06-01 | AI23: 2003-07-01 | AJ23: 2003-08-01 | AK23: 2003-09-01 | AL23: 2003-10-01 | AM23: 2003-11-01 | AN23: 2003-12-01 | AO23: 2003 | AP23: 2004-01-01 | AQ23: 2004-02-01 | AR23: 2004-03-01 | AS23: 2004-04-01 | AT23: 2004-05-01 | AU23: 2004-06-01 | AV23: 2004-07-01 | AW23: 2004-08-01 | AX23: 2004-09-01 | AY23: 2004-10-01 | AZ23: 2004-11-01 | BA23: 2004-12-01 | BB23: 2004 | BC23: 2005-01-01 | BD23: 2005-02-01 | BE23: 2005-03-01 | BF23: 2005-04-01 | BG23: 2005-05-01 | BH23: 2005-06-01 | BI23: 2005-07-01 | BJ23: 2005-08-01 | BK23: 2005-09-01 | BL23: 2005-10-01 | BM23: 2005-11-01 | BN23: 2005-12-01 | BO23: 2005 | BP23: 2006-01-01 | BQ23: 2006-02-01 | BR23: 2006-03-01 | BS23: 2006-04-01 | BT23: 2006-05-01 | BU23: 2006-06-01 | BV23: 2006-07-01 | BW23: 2006-08-01 | BX23: 2006-09-01 | BY23: 2006-10-01 | BZ23: 2006-11-01 | CA23: 2006-12-01 | CB23: 2006 | CC23: 2007-01-01 | CD23: 2007-02-01 | CE23: 2007-03-01 | CF23: 2007-04-01 | CG23: 2007-05-01 | CH23: 2007-06-01 | CI23: 2007-07-01 | CJ23: 2007-08-01 | CK23: 2007-09-01 | CL23: 2007-10-01 | CM23: 2007-11-01 | CN23: 2007-12-01 | CO23: 2007 | CP23: 2008-01-01 | CQ23: 2008-02-01 | CR23: 2008-03-01 | CS23: 2008-04-01 | CT23: 2008-05-01 | CU23: 2008-06-01 | CV23: 2008-07-01 | CW23: 2008-08-01 | CX23: 2008-09-01 | CY23: 2008-10-01 | CZ23: 2008-11-01 | DA23: 2008-12-01 | DB23: 2008 | DC23: 2009-01-01 | DD23: 2009-02-01 | DE23: 2009-03-01 | DF23: 2009-04-01 | DG23: 2009-05-01 | DH23: 2009-06-01 | DI23: 2009-07-01 | DJ23: 2009-08-01 | DK23: 2009-09-01 | DL23: 2009-10-01 | DM23: 2009-11-01 | DN23: 2009-12-01 | DO23: 2009 | DP23: 2010-01-31 | DQ23: 2010-02-28 | DR23: 2010-03-31 | DS23: 2010-04-30 | DT23: 2010-05-31 | DU23: 2010-06-30 | DV23: 2010-07-31 | DW23: 2010-08-31 | DX23: 2010-09-30 | DY23: 2010-10-31 | DZ23: 2010-11-30 | EA23: 2010-12-31 | EB23: 2010 | EC23: 2011-01-31 | ED23: 2011-02-28 | EE23: 2011-03-31 | EF23: 2011-04-30 | EG23: 2011-05-31 | EH23: 2011-06-30 | EI23: 2011-07-31 | EJ23: 2011-08-31 | EK23: 2011-09-30 | EL23: 2011-10-31 | EM23: 2011-11-30 | EN23: 2011-12-31 | EO23: 2011 | EP23: 2012-01-31 | EQ23: 2012-02-29 | ER23: 2012-03-31 | ES23: 2012-04-30 | ET23: 2012-05-31 | EU23: 2012-06-30 | EV23: 2012-07-31 | EW23: 2012-08-31 | EX23: 2012-09-30 | EY23: 2012-10-31 | EZ23: 2012-11-30 | FA23: 2012-12-31 | FB23: 2012 | FC23: 2013-01-31 | FD23: 2013-02-28 | FE23: 2013-03-31 | FF23: 2013-04-30 | FG23: 2013-05-31 | FH23: 2013-06-30 | FI23: 2013-07-31 | FJ23: 2013-08-31 | FK23: 2013-09-30 | FL23: 2013-10-31 | FM23: 2013-11-30 | FN23: 2013-12-31 | FO23: 2013 | FP23: 2014-01-31 | FQ23: 2014-02-28 | FR23: 2014-03-31 | FS23: 2014-04-30 | FT23: 2014-05-31 | FU23: 2014-06-30 | FV23: 2014-07-31 | FW23: 2014-08-31 | FX23: 2014-09-30 | FY23: 2014-10-31 | FZ23: 2014-11-30 | GA23: 2014-12-31 | GB23: 2014 | GC23: 2015-01-31 | GD23: 2015-02-28 | GE23: 2015-03-31 | GF23: 2015-04-30 | GG23: 2015-05-31 | GH23: 2015-06-30 | GI23: 2015-07-31 | GJ23: 2015-08-31 | GK23: 2015-09-30 | GL23: 2015-10-31 | GM23: 2015-11-30 | GN23: 2015-12-31 | GO23: 2015 | GP23: 2016-01-31 | GQ23: 2016-02-29 | GR23: 2016-03-31 | GS23: 2016-04-30 | GT23: 2016-05-31 | GU23: 2016-06-30 | GV23: 2016-07-31 | GW23: 2016-08-31 | GX23: 2016-09-30 | GY23: 2016-10-31 | GZ23: 2016-11-30 | HA23: 2016-12-31 | HB23: 2016 | HC23: 2017-01-31 | HD23: 2017-02-28 | HE23: 2017-03-31 | HF23: 2017-04-30 | HG23: 2017-05-31 | HH23: 2017-06-30 | HI23: 2017-07-31 | HJ23: 2017-08-31 | HK23: 2017-09-30 | HL23: 2017-10-31 | HM23: 2017-11-30 | HN23: 2017-12-31 | HO23: 2017 | HP23: 2018-01-31 | HQ23: 2018-02-28 | HR23: 2018-03-31 | HS23: 2018-04-30 | HT23: 2018-05-31 | HU23: 2018-06-30 | HV23: 2018-07-31 | HW23: 2018-08-31 | HX23: 2018-09-30 | HY23: 2018-10-31 | HZ23: 2018-11-30 | IA23: 2018-12-31 | IB23: 2018 | IC23: 2019-01-31 | ID23: 2019-02-28 | IE23: 2019-03-31 | IF23: 2019-04-30 | IG23: 2019-05-31 | IH23: 2019-06-30 | II23: 2019-07-31 | IJ23: 2019-08-31 | IK23: 2019-09-30 | IL23: 2019-10-31 | IM23: 2019-11-30 | IN23: 2019-12-31 | IO23: 2019 | IP23: 2020-01-31 | IQ23: 2020-02-28 | IR23: 2020-03-27 | IS23: 2020-04-24 | IT23: 2020-05-22 | IU23: 2020-06-19 | IV23: 2020-07-17 | IW23: 2020-08-14 | IX23: 2020-09-11 | IY23: 2020-10-09 | IZ23: 2020-11-06 | JA23: 2020-12-04 | JB23: 2020
B24: Nuclear | C24: 99.55168042 | D24: 97.18226898 | E24: 85.5830795 | F24: 85.94461463 | G24: 99.74222022 | H24: 97.35705618 | I24: 99.72126591 | J24: 98.01752043 | K24: 89.58860493 | L24: 88.48674659 | M24: 97.32959616 | N24: 99.08345728 | O24: 94.80473192 | P24: 100 | Q24: 97.63543921 | R24: 80.84372725 | S24: 81.41903645 | T24: 86.81424379 | U24: 95.32733325 | V24: 99.47426114 | W24: 98.73957296 | X24: 87.47466433 | Y24: 97.87462935 | Z24: 99.89180081 | AA24: 99.77500798 | AB24: 93.77274433 | AC24: 98.54488595 | AD24: 99.08026189 | AE24: 85.09416884 | AF24: 89.11765884 | AG24: 86.1788146 | AH24: 86.0365057 | AI24: 99.78645774 | AJ24: 99.15665539 | AK24: 81.18521548 | AL24: 84.79462538 | AM24: 98.73576752 | AN24: 98.13903033 | AO24: 92.13781797 | AP24: 98.12823727 | AQ24: 99.83651579 | AR24: 90.00567981 | AS24: 95.18007104 | AT24: 88.15713499 | AU24: 96.38796567 | AV24: 99.79793459 | AW24: 98.73952221 | AX24: 88.18995672 | AY24: 82.58423067 | AZ24: 94.2612044 | BA24: 92.98310582 | BB24: 93.65471837 | BC24: 99.86448988 | BD24: 97.85129474 | BE24: 83.17359026 | BF24: 72.84225032 | BG24: 67.2381397 | BH24: 70.96996179 | BI24: 70.95456128 | BJ24: 82.99491378 | BK24: 97.28294266 | BL24: 85.31978047 | BM24: 97.09074882 | BN24: 97.94210491 | BO24: 85.19778376 | BP24: 96.94888444 | BQ24: 97.13553693 | BR24: 90.86800393 | BS24: 70.56668576 | BT24: 81.18005215 | BU24: 97.12495975 | BV24: 90.79012995 | BW24: 97.77097833 | BX24: 84.32921549 | BY24: 85.53508078 | BZ24: 97.89900319 | CA24: 98.66543409 | CB24: 90.70520048 | CC24: 98.17874257 | CD24: 96.66596793 | CE24: 91.6789519 | CF24: 87.72933972 | CG24: 66.70497912 | CH24: 60.60770522 | CI24: 72.58651992 | CJ24: 74.71123622 | CK24: 94.94108402 | CL24: 90.37649701 | CM24: 76.45492071 | CN24: 94.59851478 | CO24: 83.70543291 | CP24: 98.42267415 | CQ24: 99.98910212 | CR24: 98.03557939 | CS24: 77.24301208 | CT24: 86.68270315 | CU24: 87.96478735 | CV24: 85.46474887 | CW24: 93.40719315 | CX24: 85.33653591 | CY24: 80.31099485 | CZ24: 77.74138197 | DA24: 91.39496115 | DB24: 88.504922 | DC24: 99.86150952 | DD24: 88.86013339 | DE24: 72.16057171 | DF24: 77.17841406 | DG24: 68.1957391 | DH24: 67.94071614 | DI24: 77.31280394 | DJ24: 100 | DK24: 85.06966395 | DL24: 75.896608 | DM24: 77.2957575 | DN24: 72.35504954 | DO24: 80.14253887 | DP24: 82.52353574 | DQ24: 94.20016173 | DR24: 89.05486606 | DS24: 92.09277928 | DT24: 81.12646866 | DU24: 88.70265006 | DV24: 99.51025097 | DW24: 99.67999719 | DX24: 96.89433615 | DY24: 99.33432764 | DZ24: 95.6300028 | EA24: 87.27940208 | EB24: 92.15793565 | EC24: 86.44110109 | ED24: 86.03131028 | EE24: 79.71000995 | EF24: 84.14565357 | EG24: 66.65945093 | EH24: 89.85595452 | EI24: 91.2928399 | EJ24: 99.16225083 | EK24: 95.43485943 | EL24: 82.23069482 | EM24: 85.59261933 | EN24: 86.80407707 | EO24: 86.08516743 | EP24: 93.97427214 | EQ24: 99.28978951 | ER24: 99.10923074 | ES24: 97.65558668 | ET24: 81.35243755 | EU24: 69.04907417 | EV24: 94.5051261 | EW24: 99.89850613 | EX24: 99.99491098 | EY24: 97.86106987 | EZ24: 75.61263151 | FA24: 78.86067564 | FB24: 90.6061828 | FC24: 83.44225215 | FD24: 88.23130535 | FE24: 93.98869579 | FF24: 83.01775967 | FG24: 72.78309424 | FH24: 82.16041907 | FI24: 93.31028859 | FJ24: 92.56388367 | FK24: 89.79980171 | FL24: 79.27119708 | FM24: 77.39793343 | FN24: 72.50860186 | FO24: 84.01383329 | FP24: 81.69591722 | FQ24: 93.23760505 | FR24: 93.98869579 | FS24: 93.98869579 | FT24: 77.9963208 | FU24: 64.22811291 | FV24: 78.00080829 | FW24: 77.95250032 | FX24: 91.01050375 | FY24: 92.86610767 | FZ24: 80.80917717 | GA24: 85.01355783 | GB24: 84.17707398 | GC24: 93.42365622 | GD24: 93.15544022 | GE24: 92.88878235 | GF24: 87.18947921 | GG24: 64.32642129 | GH24: 71.25093939 | GI24: 89.43299558 | GJ24: 93.98869579 | GK24: 92.13491503 | GL24: 74.93549441 | GM24: 74.27256735 | GN24: 88.26513362 | GO24: 84.57024071 | GP24: 81.92604382 | GQ24: 79.90512348 | GR24: 93.79126051 | GS24: 92.98470309 | GT24: 69.52957486 | GU24: 90.54482635 | GV24: 93.96667672 | GW24: 93.9342039 | GX24: 93.81362653 | GY24: 92.18126212 | GZ24: 69.55496093 | HA24: 79.26664019 | HB24: 85.97429107 | HC24: 93.97865103 | HD24: 93.92705545 | HE24: 93.68815866 | HF24: 92.05239275 | HG24: 74.79346643 | HH24: 77.52480531 | HI24: 81.42626494 | HJ24: 93.68207594 | HK24: 90.21190594 | HL24: 79.44957443 | HM24: 71.10905818 | HN24: 97.2812907 | HO24: 86.59619378 | HP24: 96.68991676 | HQ24: 96.46683422 | HR24: 86.06124045 | HS24: 74.94960565 | HT24: 72.23893594 | HU24: 71.536105 | HV24: 87.77838125 | HW24: 99.45329148 | HX24: 100 | HY24: 98.62675805 | HZ24: 75.43767017 | IA24: 82.38906091 | IB24: 86.79359309 | IC24: 96.13643721 | ID24: 99.75226639 | IE24: 99.98977323 | IF24: 91.23382604 | IG24: 76.21067266 | IH24: 93.25643802 | II24: 99.55780148 | IJ24: 98.74442465 | IK24: 99.975479 | IL24: 87.93231408 | IM24: 68.75152717 | IN24: 86.67912333 | IO24: 91.48450991 | IP24: 99.94558168 | IQ24: 99.8622294 | IR24: 99.89019076 | IS24: 89.50136641 | IT24: 65.47281491 | IU24: 73.74493229 | IV24: - | IW24: - | IX24: - | IY24: - | IZ24: - | JA24: - | JB24: 88.00804798
B25: Carbón | C25: 98.43578316 | D25: 98.2259783 | E25: 94.60335484 | F25: 89.4897428 | G25: 83.74669112 | H25: 86.83820373 | I25: 92.26195763 | J25: 92.38111406 | K25: 92.8663775 | L25: 91.07172979 | M25: 94.09407409 | N25: 93.1130804 | O25: 92.22588667 | P25: 93.10145574 | Q25: 95.72413765 | R25: 93.84486121 | S25: 89.10707081 | T25: 87.77891194 | U25: 85.36317665 | V25: 86.49158803 | W25: 92.35135391 | X25: 91.636893 | Y25: 86.94177753 | Z25: 92.22195221 | AA25: 96.79876945 | AB25: 90.92098928 | AC25: 96.9631738 | AD25: 93.3304629 | AE25: 87.39405092 | AF25: 89.88814891 | AG25: 87.64781531 | AH25: 87.9757341 | AI25: 93.41813212 | AJ25: 93.72954089 | AK25: 93.09887009 | AL25: 93.70411137 | AM25: 94.42952295 | AN25: 97.6869763 | AO25: 92.444349 | AP25: 94.12491524 | AQ25: 95.30864633 | AR25: 89.08537709 | AS25: 80.31483867 | AT25: 78.96931702 | AU25: 89.57936414 | AV25: 95.10873771 | AW25: 94.48129037 | AX25: 92.61108615 | AY25: 92.01069467 | AZ25: 91.43881773 | BA25: 92.89294092 | BB25: 90.4907469 | BC25: 93.47201999 | BD25: 91.38997691 | BE25: 86.3978426 | BF25: 82.29022728 | BG25: 84.26048757 | BH25: 85.65380022 | BI25: 91.98389283 | BJ25: 93.44155486 | BK25: 95.22335064 | BL25: 96.73921626 | BM25: 97.00468209 | BN25: 94.57273637 | BO25: 91.03323116 | BP25: 95.44930429 | BQ25: 90.80859468 | BR25: 96.26297656 | BS25: 92.53941172 | BT25: 85.17756676 | BU25: 92.24935234 | BV25: 93.00236913 | BW25: 93.35505508 | BX25: 86.12543378 | BY25: 85.36998983 | BZ25: 90.70582606 | CA25: 96.55313411 | CB25: 91.4819406 | CC25: 97.07146357 | CD25: 96.19151225 | CE25: 96.31048869 | CF25: 89.08725342 | CG25: 86.90832719 | CH25: 86.18870806 | CI25: 86.28196666 | CJ25: 85.521603 | CK25: 82.6054243 | CL25: 77.89770398 | CM25: 81.05536442 | CN25: 89.01679731 | CO25: 87.80772466 | CP25: 82.27747417 | CQ25: 77.67922501 | CR25: 78.44420247 | CS25: 81.00247447 | CT25: 76.43446393 | CU25: 75.57110437 | CV25: 76.8058752 | CW25: 77.43513961 | CX25: 81.58684606 | CY25: 81.58924751 | CZ25: 77.66121769 | DA25: 80.88663866 | DB25: 78.95505392 | DC25: 82.81008768 | DD25: 82.63943256 | DE25: 82.58606942 | DF25: 72.53375925 | DG25: 78.69315192 | DH25: 87.74051515 | DI25: 90.54844359 | DJ25: 91.76901826 | DK25: 91.77253396 | DL25: 90.61248549 | DM25: 90.10873875 | DN25: 94.89240078 | DO25: 86.43333241 | DP25: 93.40104485 | DQ25: 91.54403037 | DR25: 88.43588718 | DS25: 84.07993531 | DT25: 87.36627795 | DU25: 94.49861138 | DV25: 93.85859737 | DW25: 93.49897005 | DX25: 91.59443001 | DY25: 88.66365063 | DZ25: 91.73938168 | EA25: 95.47653252 | EB25: 91.18518922 | EC25: 99.58453521 | ED25: 97.58581578 | EE25: 93.52521461 | EF25: 92.35534357 | EG25: 90.14164991 | EH25: 94.57024844 | EI25: 94.53976755 | EJ25: 91.59747978 | EK25: 88.35214858 | EL25: 84.25998431 | EM25: 89.92430991 | EN25: 95.81279058 | EO25: 92.66132161 | EP25: 93.95123039 | EQ25: 94.63384578 | ER25: 91.98935336 | ES25: 88.5608843 | ET25: 88.04822324 | EU25: 89.26853861 | EV25: 94.02639743 | EW25: 91.63603346 | EX25: 87.97509804 | EY25: 86.23693191 | EZ25: 90.94498473 | FA25: 94.15101178 | FB25: 90.94990647 | FC25: 94.29375973 | FD25: 96.30889668 | FE25: 93.80849535 | FF25: 86.53490837 | FG25: 81.64904968 | FH25: 87.91646306 | FI25: 92.5406865 | FJ25: 92.23030773 | FK25: 87.38711465 | FL25: 87.47353667 | FM25: 91.35243204 | FN25: 92.66679134 | FO25: 90.3246996 | FP25: 91.33555139 | FQ25: 90.8503067 | FR25: 91.1453669 | FS25: 87.81187655 | FT25: 83.43467946 | FU25: 87.31248929 | FV25: 91.67160625 | FW25: 88.75686797 | FX25: 89.62912302 | FY25: 82.18701774 | FZ25: 75.12583764 | GA25: 91.72741453 | GB25: 87.57971325 | GC25: 93.09615455 | GD25: 95.65838646 | GE25: 92.07011939 | GF25: 79.48121895 | GG25: 82.26543418 | GH25: 88.55180286 | GI25: 91.10865622 | GJ25: 90.95202423 | GK25: 93.92892871 | GL25: 91.76020557 | GM25: 88.41143727 | GN25: 91.12259284 | GO25: 89.84767844 | GP25: 87.70216064 | GQ25: 93.19550793 | GR25: 89.94614482 | GS25: 78.11234602 | GT25: 82.21976106 | GU25: 87.58344681 | GV25: 92.21102853 | GW25: 91.87953344 | GX25: 86.55695668 | GY25: 75.34609091 | GZ25: 85.2613762 | HA25: 89.02780034 | HB25: 86.61723299 | HC25: 86.18911405 | HD25: 88.29672042 | HE25: 88.37719579 | HF25: 80.37922869 | HG25: 88.33631165 | HH25: 88.92246668 | HI25: 96.89166033 | HJ25: 96.65452201 | HK25: 95.07272298 | HL25: 78.12883245 | HM25: 86.49203956 | HN25: 93.55200914 | HO25: 88.95861343 | HP25: 94.43734059 | HQ25: 89.34533953 | HR25: 90.53729122 | HS25: 90.26579591 | HT25: 90.55891362 | HU25: 95.05162914 | HV25: 95.67884613 | HW25: 96.01850778 | HX25: 89.95681594 | HY25: 91.74364525 | HZ25: 94.25308391 | IA25: 85.41232945 | IB25: 91.95351555 | IC25: 86.97083827 | ID25: 90.42550685 | IE25: 90.64620253 | IF25: 95.9375224 | IG25: 89.64661674 | IH25: 93.21722178 | II25: 94.8864913 | IJ25: 93.79923394 | IK25: 87.1723136 | IL25: 81.3417366 | IM25: 82.96773011 | IN25: 81.62389006 | IO25: 89.03158602 | IP25: 85.60680338 | IQ25: 86.44767552 | IR25: 86.96008386 | IS25: 88.85165515 | IT25: 89.16291326 | IU25: 81.78344327 | IV25: - | IW25: - | IX25: - | IY25: - | IZ25: - | JA25: - | JB25: 86.48153527
B26: Fuel + Gas | C26: 93.33520758 | D26: 94.14325059 | E26: 93.09228414 | F26: 91.04942293 | G26: 90.25530605 | H26: 88.10549418 | I26: 90.34380238 | J26: 92.08449143 | K26: 86.01547475 | L26: 71.51049942 | M26: 74.72465897 | N26: 65.61504653 | O26: 85.7953399 | P26: 69.39156761 | Q26: 68.5365763 | R26: 73.47792384 | S26: 72.14229466 | T26: 66.66082313 | U26: 71.25436285 | V26: 71.32846709 | W26: 76.69288795 | X26: 75.81479139 | Y26: 76.93089487 | Z26: 71.23059047 | AA26: 86.9811775 | AB26: 73.35270016 | AC26: 85.43827876 | AD26: 85.67332976 | AE26: 85.08118046 | AF26: 71.47189338 | AG26: 77.84059145 | AH26: 79.9368528 | AI26: 82.43126642 | AJ26: 79.96618677 | AK26: 85.12657981 | AL26: 81.55553435 | AM26: 86.77640551 | AN26: 85.6273355 | AO26: 82.27114837 | AP26: 85.63526409 | AQ26: 86.01746874 | AR26: 86.11592772 | AS26: 84.21759847 | AT26: 77.1841865 | AU26: 83.66386807 | AV26: 84.90692971 | AW26: 84.607715 | AX26: 83.53962889 | AY26: 81.51156177 | AZ26: 76.15412204 | BA26: 74.59837795 | BB26: 82.33281058 | BC26: 75.12405329 | BD26: 78.76071587 | BE26: 78.74087378 | BF26: 80.08442221 | BG26: 78.6327272 | BH26: 73.78147838 | BI26: 77.77901789 | BJ26: 76.75573473 | BK26: 73.3597247 | BL26: 67.07476454 | BM26: 77.42649566 | BN26: 73.3370294 | BO26: 75.88467976 | BP26: 76.6282244 | BQ26: 79.93413564 | BR26: 79.06212629 | BS26: 81.78389298 | BT26: 76.87890365 | BU26: 80.51628345 | BV26: 70.92635524 | BW26: 73.49687519 | BX26: 76.61263368 | BY26: 71.06762225 | BZ26: 66.77084502 | CA26: 75.9543135 | CB26: 75.76103941 | CC26: 76.44280767 | CD26: 76.90338029 | CE26: 74.50354684 | CF26: 68.23281927 | CG26: 74.5671068 | CH26: 78.76114786 | CI26: 81.75548251 | CJ26: 82.26485617 | CK26: 77.22805763 | CL26: 77.74962266 | CM26: 45.87592449 | CN26: 76.16872092 | CO26: 74.41891872 | CP26: 87.05432363 | CQ26: 91.53715466 | CR26: 88.68134837 | CS26: 90.88607848 | CT26: 77.64254351 | CU26: 77.28674134 | CV26: 77.90307478 | CW26: 71.60553093 | CX26: 71.45927582 | CY26: 77.24215483 | CZ26: 78.21542995 | DA26: 83.57107775 | DB26: 81.08525004 | DC26: 82.16904904 | DD26: 76.69068977 | DE26: 81.29130663 | DF26: 78.5639539 | DG26: 78.68835686 | DH26: 80.159216 | DI26: 83.50387302 | DJ26: 88.17187416 | DK26: 87.86655716 | DL26: 87.23000063 | DM26: 67.24944196 | DN26: 59.31630289 | DO26: 79.67018107 | DP26: 76.04074462 | DQ26: 90.33846955 | DR26: 88.46284453 | DS26: 92.33831785 | DT26: 92.89078274 | DU26: 92.73174468 | DV26: 92.57747359 | DW26: 77.78228649 | DX26: 77.30157645 | DY26: 81.57312544 | DZ26: 88.45907473 | EA26: 77.2942321 | EB26: 85.50721047 | EC26: 74.39241257 | ED26: 74.39241257 | EE26: 66.54161094 | EF26: 43.85270159 | EG26: 31.98855923 | EH26: 40.02925713 | EI26: 64.62601239 | EJ26: 64.62601239 | EK26: 64.62601239 | EL26: 64.62601239 | EM26: 64.62601239 | EN26: 64.62601239 | EO26: 59.24916524 | EP26: 64.62601239 | EQ26: 85.47945503 | ER26: 100 | ES26: 100 | ET26: 100 | EU26: 100 | EV26: 100 | EW26: 100 | EX26: 100 | EY26: 100 | EZ26: 100 | FA26: 79.69363013 | FB26: 92.73267593 | FC26: 63.01756973 | FD26: 88.8292345 | FE26: 100 | FF26: 100 | FG26: 100 | FH26: 100 | FI26: 100 | FJ26: 100 | FK26: 100 | FL26: 100 | FM26: 100 | FN26: 100 | FO26: 94.38505033 | FP26: 100 | FQ26: 100 | FR26: 100 | FS26: 78.68015614 | FT26: 1.44277637 | FU26: 1.44277637 | FV26: 1.44277637 | FW26: 1.44277637 | FX26: 1.44277637 | FY26: 1.44277637 | FZ26: 0.1461757269 | GA26: 0 | GB26: 31.92551483 | GC26: - | GD26: - | GE26: - | GF26: - | GG26: - | GH26: - | GI26: - | GJ26: - | GK26: - | GL26: - | GM26: - | GN26: - | GO26: - | GP26: - | GQ26: - | GR26: - | GS26: - | GT26: - | GU26: - | GV26: - | GW26: - | GX26: - | GY26: - | GZ26: - | HA26: - | HB26: - | HC26: - | HD26: - | HE26: - | HF26: - | HG26: - | HH26: - | HI26: - | HJ26: - | HK26: - | HL26: - | HM26: - | HN26: - | HO26: - | HP26: - | HQ26: - | HR26: - | HS26: - | HT26: - | HU26: - | HV26: - | HW26: - | HX26: - | HY26: - | HZ26: - | IA26: - | IB26: - | IC26: - | ID26: - | IE26: - | IF26: - | IG26: - | IH26: - | II26: - | IJ26: - | IK26: - | IL26: - | IM26: - | IN26: - | IO26: - | IP26: - | IQ26: - | IR26: - | IS26: - | IT26: - | IU26: - | IV26: - | IW26: - | IX26: - | IY26: - | IZ26: - | JA26: - | JB26: -
B27: Ciclo combinado | C27: - | D27: - | E27: - | F27: - | G27: - | H27: - | I27: - | J27: - | K27: - | L27: - | M27: - | N27: - | O27: - | P27: - | Q27: - | R27: 100 | S27: 100 | T27: 100 | U27: 100 | V27: 98.48185677 | W27: 96.61672902 | X27: 95.08615739 | Y27: 86.62005505 | Z27: 85.75098056 | AA27: 96.252144 | AB27: 94.41333314 | AC27: 97.55373968 | AD27: 96.61944721 | AE27: 91.01637432 | AF27: 69.07123157 | AG27: 78.69049864 | AH27: 96.93126272 | AI27: 95.94797709 | AJ27: 91.36926419 | AK27: 98.74961457 | AL27: 95.45108431 | AM27: 99.63625305 | AN27: 99.34172287 | AO27: 93.07412636 | AP27: 99.15355711 | AQ27: 99.5012659 | AR27: 96.28418303 | AS27: 95.68166993 | AT27: 91.54709114 | AU27: 95.06489867 | AV27: 98.72830551 | AW27: 89.47362174 | AX27: 96.6585886 | AY27: 95.46509646 | AZ27: 93.24746851 | BA27: 95.3749926 | BB27: 95.23438278 | BC27: 94.16126374 | BD27: 93.17799631 | BE27: 79.70018778 | BF27: 82.82102131 | BG27: 77.27774508 | BH27: 87.83640785 | BI27: 93.71257925 | BJ27: 89.12778576 | BK27: 90.84666623 | BL27: 91.96782719 | BM27: 95.74762282 | BN27: 93.93846069 | BO27: 89.39712315 | BP27: 96.94695204 | BQ27: 96.69743111 | BR27: 97.87783591 | BS27: 96.13151871 | BT27: 93.16415678 | BU27: 94.45288965 | BV27: 95.9352826 | BW27: 93.25577299 | BX27: 93.13138154 | BY27: 86.98273061 | BZ27: 90.42095688 | CA27: 91.56739412 | CB27: 93.68786362 | CC27: 96.88438778 | CD27: 93.89146586 | CE27: 95.1299827 | CF27: 90.11427562 | CG27: 91.81687403 | CH27: 95.53940479 | CI27: 95.66447153 | CJ27: 93.8524498 | CK27: 90.13667681 | CL27: 88.1279051 | CM27: 87.47481894 | CN27: 91.73912359 | CO27: 92.33917869 | CP27: 94.37495232 | CQ27: 95.0766712 | CR27: 91.21567343 | CS27: 91.97343724 | CT27: 91.92728995 | CU27: 92.98139988 | CV27: 93.7792017 | CW27: 95.970631 | CX27: 92.61509169 | CY27: 87.74060571 | CZ27: 90.19894431 | DA27: 92.74314103 | DB27: 92.53568663 | DC27: 96.03723673 | DD27: 95.85736907 | DE27: 90.51517717 | DF27: 88.84227897 | DG27: 88.49977906 | DH27: 97.29303186 | DI27: 98.96521867 | DJ27: 94.02598263 | DK27: 86.79758069 | DL27: 83.29645448 | DM27: 87.0124038 | DN27: 96.73038745 | DO27: 91.98210075 | DP27: 95.9288276 | DQ27: 95.93117042 | DR27: 90.39128153 | DS27: 90.95640682 | DT27: 79.70686885 | DU27: 90.92119512 | DV27: 97.32882469 | DW27: 93.21670075 | DX27: 92.5512105 | DY27: 87.58264323 | DZ27: 88.12764732 | EA27: 97.12403286 | EB27: 91.60440337 | EC27: 97.68738324 | ED27: 95.19050736 | EE27: 93.20454469 | EF27: 92.76478564 | EG27: 90.10142928 | EH27: 93.49853786 | EI27: 97.76196925 | EJ27: 90.09781704 | EK27: 85.9247003 | EL27: 84.3570201 | EM27: 80.59207053 | EN27: 91.80918708 | EO27: 91.07405523 | EP27: 94.82482796 | EQ27: 96.79316416 | ER27: 77.49034114 | ES27: 86.01007509 | ET27: 88.67120802 | EU27: 91.91870212 | EV27: 93.99647699 | EW27: 93.34169468 | EX27: 96.02010668 | EY27: 92.59663643 | EZ27: 95.22337595 | FA27: 98.64613908 | FB27: 92.10170667 | FC27: 99.29882018 | FD27: 99.16663923 | FE27: 95.0683642 | FF27: 89.22684243 | FG27: 90.52530962 | FH27: 97.60405799 | FI27: 99.15472051 | FJ27: 95.25128681 | FK27: 96.21451202 | FL27: 89.95005034 | FM27: 94.2148596 | FN27: 94.76609432 | FO27: 95.01014128 | FP27: 94.6065693 | FQ27: 93.95185594 | FR27: 93.5487571 | FS27: 89.69141796 | FT27: 89.46700637 | FU27: 93.03242508 | FV27: 93.28642099 | FW27: 93.07859189 | FX27: 89.78215191 | FY27: 86.65369824 | FZ27: 87.78414906 | GA27: 95.11050115 | GB27: 91.66401888 | GC27: 95.3790847 | GD27: 94.5145145 | GE27: 85.75197956 | GF27: 89.96195762 | GG27: 87.55958548 | GH27: 93.97201382 | GI27: 94.67416344 | GJ27: 93.54667892 | GK27: 92.97961671 | GL27: 85.35289342 | GM27: 79.12055174 | GN27: 88.21419626 | GO27: 90.06095893 | GP27: 92.49987604 | GQ27: 92.80410159 | GR27: 90.0626544 | GS27: 87.21059546 | GT27: 86.28413082 | GU27: 93.14227701 | GV27: 96.78515099 | GW27: 93.11198235 | GX27: 88.65680155 | GY27: 82.72931578 | GZ27: 89.07664744 | HA27: 91.22795675 | HB27: 90.29326807 | HC27: 92.85390528 | HD27: 94.27685643 | HE27: 88.70387287 | HF27: 86.82485562 | HG27: 82.88655781 | HH27: 94.96513686 | HI27: 96.88915123 | HJ27: 96.39718986 | HK27: 96.0650429 | HL27: 91.92110031 | HM27: 87.84782635 | HN27: 97.55949336 | HO27: 92.2589624 | HP27: 97.93019807 | HQ27: 96.90106296 | HR27: 90.45464681 | HS27: 83.24137604 | HT27: 83.99575237 | HU27: 94.17195479 | HV27: 96.88573144 | HW27: 95.90649198 | HX27: 97.34985848 | HY27: 91.03522929 | HZ27: 91.74809969 | IA27: 97.09812331 | IB27: 93.03642483 | IC27: 95.79042387 | ID27: 94.59443955 | IE27: 85.49099348 | IF27: 87.6195073 | IG27: 84.92709883 | IH27: 86.33200918 | II27: 86.44948041 | IJ27: 92.49166632 | IK27: 90.88099396 | IL27: 82.64899683 | IM27: 78.13870035 | IN27: 85.85348404 | IO27: 87.56405115 | IP27: 83.7145356 | IQ27: 82.13297364 | IR27: 79.20164921 | IS27: 84.73273442 | IT27: 82.14559941 | IU27: 80.37501783 | IV27: - | IW27: - | IX27: - | IY27: - | IZ27: - | JA27: - | JB27: 82.04462951
B28: Disponibilidad | C28: 97.30060372 | D28: 96.75077566 | E28: 91.53076733 | F28: 88.89915069 | G28: 90.28916537 | H28: 90.28100139 | I28: 93.89709915 | J28: 93.94662356 | K28: 89.9456098 | L28: 84.71517331 | M28: 89.49689503 | N28: 86.98988405 | O28: 91.13938378 | P28: 88.33476505 | Q28: 88.50282918 | R28: 84.43297678 | S28: 82.2984195 | T28: 82.49334189 | U28: 85.21714925 | V28: 86.99713279 | W28: 90.43418291 | X28: 86.77998544 | Y28: 87.32145762 | Z28: 88.38391967 | AA28: 95.06934336 | AB28: 87.23407515 | AC28: 94.53189859 | AD28: 93.25178199 | AE28: 86.60168667 | AF28: 83.13701314 | AG28: 83.99397854 | AH28: 86.50250209 | AI28: 92.85285707 | AJ28: 91.6943567 | AK28: 88.99781916 | AL28: 88.89216413 | AM28: 94.53955828 | AN28: 95.30989235 | AO28: 90.05276065 | AP28: 94.00567251 | AQ28: 95.0123805 | AR28: 89.76197384 | AS28: 87.44149855 | AT28: 83.06728928 | AU28: 90.96181727 | AV28: 94.83326553 | AW28: 92.32719216 | AX28: 90.6343839 | AY28: 88.44706241 | AZ28: 89.46440824 | BA28: 89.85815768 | BB28: 90.45750688 | BC28: 91.4890105 | BD28: 90.83473406 | BE28: 82.44737475 | BF28: 79.96108997 | BG28: 77.52845268 | BH28: 80.8454846 | BI28: 85.22776487 | BJ28: 86.86119134 | BK28: 90.42903424 | BL28: 87.63305406 | BM28: 93.21780273 | BN28: 91.39183911 | BO28: 86.52439892 | BP28: 93.01400769 | BQ28: 92.23691537 | BR28: 92.8586214 | BS28: 87.63971972 | BT28: 85.80986961 | BU28: 92.04041481 | BV28: 90.20032548 | BW28: 90.98095102 | BX28: 86.95505353 | BY28: 83.74233551 | BZ28: 88.12773903 | CA28: 91.76541447 | CB28: 89.56802916 | CC28: 93.93069213 | CD28: 92.33630971 | CE28: 91.56103331 | CF28: 86.0093753 | CG28: 83.36515757 | CH28: 84.33454986 | CI28: 87.02488976 | CJ28: 86.77744761 | CK28: 87.36037076 | CL28: 84.6317704 | CM28: 78.70319751 | CN28: 89.79775397 | CO28: 87.06171656 | CP28: 91.30176275 | CQ28: 91.21765367 | CR28: 88.94454657 | CS28: 86.61313008 | CT28: 85.82831889 | CU28: 86.3200452 | CV28: 86.65185567 | CW28: 88.62451098 | CX28: 86.63160634 | CY28: 83.95436617 | CZ28: 83.83559942 | DA28: 88.70563671 | DB28: 87.3730177 | DC28: 92.09508124 | DD28: 89.57510581 | DE28: 84.55872451 | DF28: 81.8509162 | DG28: 81.71732065 | DH28: 88.4226402 | DI28: 91.82154429 | DJ28: 93.96047761 | DK28: 87.82339002 | DL28: 84.18581946 | DM28: 84.45646756 | DN28: 89.43639015 | DO28: 87.49977309 | DP28: 91.77977317 | DQ28: 94.24077165 | DR28: 89.57054528 | DS28: 89.51921196 | DT28: 82.48288681 | DU28: 91.50640819 | DV28: 96.63016414 | DW28: 93.62521341 | DX28: 92.32048847 | DY28: 89.50408712 | DZ28: 90.25220445 | EA28: 94.16089746 | EB28: 91.2882633 | EC28: 95.34599413 | ED28: 93.41286883 | EE28: 89.95528912 | EF28: 89.23507432 | EG28: 83.84917689 | EH28: 91.30665719 | EI28: 94.94406213 | EJ28: 91.27354417 | EK28: 87.52210232 | EL28: 83.42191674 | EM28: 83.29352499 | EN28: 91.19791394 | EO28: 89.55238168 | EP28: 93.61730286 | EQ28: 96.43409549 | ER28: 85.19188641 | ES28: 88.87702861 | ET28: 87.48368149 | EU28: 87.53088053 | EV28: 94.20027895 | EW28: 94.15395954 | EX28: 94.75935995 | EY28: 92.03911705 | EZ28: 90.90756867 | FA28: 93.80221173 | FB28: 91.57268252 | FC28: 94.68157193 | FD28: 96.44031801 | FE28: 94.63008722 | FF28: 87.61783099 | FG28: 85.38718177 | FH28: 92.58160671 | FI28: 96.52975913 | FJ28: 94.09988937 | FK28: 92.98014566 | FL28: 87.61184176 | FM28: 90.67068164 | FN28: 90.46247851 | FO28: 91.95081962 | FP28: 91.63349728 | FQ28: 93.13736682 | FR28: 93.11008594 | FS28: 89.84396492 | FT28: 84.97043995 | FU28: 85.57307855 | FV28: 89.17038055 | FW28: 88.32769975 | FX28: 88.92219529 | FY28: 85.63282606 | FZ28: 82.45709038 | GA28: 91.43369183 | GB28: 88.66809055 | GC28: 93.37977497 | GD28: 93.45458815 | GE28: 87.51847114 | GF28: 85.91118297 | GG28: 81.20577161 | GH28: 88.64951906 | GI28: 92.88265402 | GJ28: 92.99275507 | GK28: 93.06196403 | GL28: 85.07786483 | GM28: 80.52880928 | GN28: 88.93135741 | GO28: 88.61272267 | GP28: 89.46889142 | GQ28: 90.6126763 | GR28: 90.70638911 | GS28: 86.17752958 | GT28: 82.34552768 | GU28: 91.41418204 | GV28: 95.24052225 | GW28: 92.98060276 | GX28: 89.10928715 | GY28: 82.75730661 | GZ28: 84.69632556 | HA28: 88.57523206 | HB28: 88.67491588 | HC28: 91.54530864 | HD28: 92.85797204 | HE28: 89.5273254 | HF28: 86.30474108 | HG28: 82.66487402 | HH28: 90.45457948 | HI28: 94.10531587 | HJ28: 95.96662464 | HK28: 94.78607573 | HL28: 86.54818505 | HM28: 84.67309671 | HN28: 96.59332047 | HO28: 90.49802651 | HP28: 96.91737564 | HQ28: 95.09488686 | HR28: 89.72188863 | HS28: 83.43277183 | HT28: 83.48855983 | HU28: 90.50064826 | HV28: 95.0508498 | HW28: 96.54072441 | HX28: 96.09708061 | HY28: 92.51018075 | HZ28: 89.51085242 | IA28: 91.85058142 | IB28: 91.71568527 | IC28: 93.80536741 | ID28: 94.51808599 | IE28: 89.1810093 | IF28: 90.12289288 | IG28: 84.47341664 | IH28: 89.08868014 | II28: 90.63215073 | IJ28: 93.87461963 | IK28: 91.62825089 | IL28: 83.27401573 | IM28: 77.59294809 | IN28: 85.0441358 | IO28: 88.57785178 | IP28: 86.96600274 | IQ28: 86.19105753 | IR28: 84.55078554 | IS28: 86.49085134 | IT28: 80.82484154 | IU28: 79.53838374 | IV28: - | IW28: - | IX28: - | IY28: - | IZ28: - | JA28: - | JB28: 84.08235564
B30: Horas de funcionamiento del equipo térmico mensual peninsular (número de horas) | C30: 2001-01-01 | D30: 2001-02-01 | E30: 2001-03-01 | F30: 2001-04-01 | G30: 2001-05-01 | H30: 2001-06-01 | I30: 2001-07-01 | J30: 2001-08-01 | K30: 2001-09-01 | L30: 2001-10-01 | M30: 2001-11-01 | N30: 2001-12-01 | O30: 2001 | P30: 2002-01-01 | Q30: 2002-02-01 | R30: 2002-03-01 | S30: 2002-04-01 | T30: 2002-05-01 | U30: 2002-06-01 | V30: 2002-07-01 | W30: 2002-08-01 | X30: 2002-09-01 | Y30: 2002-10-01 | Z30: 2002-11-01 | AA30: 2002-12-01 | AB30: 2002 | AC30: 2003-01-01 | AD30: 2003-02-01 | AE30: 2003-03-01 | AF30: 2003-04-01 | AG30: 2003-05-01 | AH30: 2003-06-01 | AI30: 2003-07-01 | AJ30: 2003-08-01 | AK30: 2003-09-01 | AL30: 2003-10-01 | AM30: 2003-11-01 | AN30: 2003-12-01 | AO30: 2003 | AP30: 2004-01-01 | AQ30: 2004-02-01 | AR30: 2004-03-01 | AS30: 2004-04-01 | AT30: 2004-05-01 | AU30: 2004-06-01 | AV30: 2004-07-01 | AW30: 2004-08-01 | AX30: 2004-09-01 | AY30: 2004-10-01 | AZ30: 2004-11-01 | BA30: 2004-12-01 | BB30: 2004 | BC30: 2005-01-01 | BD30: 2005-02-01 | BE30: 2005-03-01 | BF30: 2005-04-01 | BG30: 2005-05-01 | BH30: 2005-06-01 | BI30: 2005-07-01 | BJ30: 2005-08-01 | BK30: 2005-09-01 | BL30: 2005-10-01 | BM30: 2005-11-01 | BN30: 2005-12-01 | BO30: 2005 | BP30: 2006-01-01 | BQ30: 2006-02-01 | BR30: 2006-03-01 | BS30: 2006-04-01 | BT30: 2006-05-01 | BU30: 2006-06-01 | BV30: 2006-07-01 | BW30: 2006-08-01 | BX30: 2006-09-01 | BY30: 2006-10-01 | BZ30: 2006-11-01 | CA30: 2006-12-01 | CB30: 2006 | CC30: 2007-01-01 | CD30: 2007-02-01 | CE30: 2007-03-01 | CF30: 2007-04-01 | CG30: 2007-05-01 | CH30: 2007-06-01 | CI30: 2007-07-01 | CJ30: 2007-08-01 | CK30: 2007-09-01 | CL30: 2007-10-01 | CM30: 2007-11-01 | CN30: 2007-12-01 | CO30: 2007 | CP30: 2008-01-01 | CQ30: 2008-02-01 | CR30: 2008-03-01 | CS30: 2008-04-01 | CT30: 2008-05-01 | CU30: 2008-06-01 | CV30: 2008-07-01 | CW30: 2008-08-01 | CX30: 2008-09-01 | CY30: 2008-10-01 | CZ30: 2008-11-01 | DA30: 2008-12-01 | DB30: 2008 | DC30: 2009-01-01 | DD30: 2009-02-01 | DE30: 2009-03-01 | DF30: 2009-04-01 | DG30: 2009-05-01 | DH30: 2009-06-01 | DI30: 2009-07-01 | DJ30: 2009-08-01 | DK30: 2009-09-01 | DL30: 2009-10-01 | DM30: 2009-11-01 | DN30: 2009-12-01 | DO30: 2009 | DP30: 2010-01-31 | DQ30: 2010-02-28 | DR30: 2010-03-31 | DS30: 2010-04-30 | DT30: 2010-05-31 | DU30: 2010-06-30 | DV30: 2010-07-31 | DW30: 2010-08-31 | DX30: 2010-09-30 | DY30: 2010-10-31 | DZ30: 2010-11-30 | EA30: 2010-12-31 | EB30: 2010 | EC30: 2011-01-31 | ED30: 2011-02-28 | EE30: 2011-03-31 | EF30: 2011-04-30 | EG30: 2011-05-31 | EH30: 2011-06-30 | EI30: 2011-07-31 | EJ30: 2011-08-31 | EK30: 2011-09-30 | EL30: 2011-10-31 | EM30: 2011-11-30 | EN30: 2011-12-31 | EO30: 2011 | EP30: 2012-01-31 | EQ30: 2012-02-29 | ER30: 2012-03-31 | ES30: 2012-04-30 | ET30: 2012-05-31 | EU30: 2012-06-30 | EV30: 2012-07-31 | EW30: 2012-08-31 | EX30: 2012-09-30 | EY30: 2012-10-31 | EZ30: 2012-11-30 | FA30: 2012-12-31 | FB30: 2012 | FC30: 2013-01-31 | FD30: 2013-02-28 | FE30: 2013-03-31 | FF30: 2013-04-30 | FG30: 2013-05-31 | FH30: 2013-06-30 | FI30: 2013-07-31 | FJ30: 2013-08-31 | FK30: 2013-09-30 | FL30: 2013-10-31 | FM30: 2013-11-30 | FN30: 2013-12-31 | FO30: 2013 | FP30: 2014-01-31 | FQ30: 2014-02-28 | FR30: 2014-03-31 | FS30: 2014-04-30 | FT30: 2014-05-31 | FU30: 2014-06-30 | FV30: 2014-07-31 | FW30: 2014-08-31 | FX30: 2014-09-30 | FY30: 2014-10-31 | FZ30: 2014-11-30 | GA30: 2014-12-31 | GB30: 2014 | GC30: 2015-01-31 | GD30: 2015-02-28 | GE30: 2015-03-31 | GF30: 2015-04-30 | GG30: 2015-05-31 | GH30: 2015-06-30 | GI30: 2015-07-31 | GJ30: 2015-08-31 | GK30: 2015-09-30 | GL30: 2015-10-31 | GM30: 2015-11-30 | GN30: 2015-12-31 | GO30: 2015 | GP30: 2016-01-31 | GQ30: 2016-02-29 | GR30: 2016-03-31 | GS30: 2016-04-30 | GT30: 2016-05-31 | GU30: 2016-06-30 | GV30: 2016-07-31 | GW30: 2016-08-31 | GX30: 2016-09-30 | GY30: 2016-10-31 | GZ30: 2016-11-30 | HA30: 2016-12-31 | HB30: 2016 | HC30: 2017-01-31 | HD30: 2017-02-28 | HE30: 2017-03-31 | HF30: 2017-04-30 | HG30: 2017-05-31 | HH30: 2017-06-30 | HI30: 2017-07-31 | HJ30: 2017-08-31 | HK30: 2017-09-30 | HL30: 2017-10-31 | HM30: 2017-11-30 | HN30: 2017-12-31 | HO30: 2017 | HP30: 2018-01-31 | HQ30: 2018-02-28 | HR30: 2018-03-31 | HS30: 2018-04-30 | HT30: 2018-05-31 | HU30: 2018-06-30 | HV30: 2018-07-31 | HW30: 2018-08-31 | HX30: 2018-09-30 | HY30: 2018-10-31 | HZ30: 2018-11-30 | IA30: 2018-12-31 | IB30: 2018 | IC30: 2019-01-31 | ID30: 2019-02-28 | IE30: 2019-03-31 | IF30: 2019-04-30 | IG30: 2019-05-31 | IH30: 2019-06-30 | II30: 2019-07-31 | IJ30: 2019-08-31 | IK30: 2019-09-30 | IL30: 2019-10-31 | IM30: 2019-11-30 | IN30: 2019-12-31 | IO30: 2019 | IP30: 2020-01-31 | IQ30: 2020-02-28 | IR30: 2020-03-27 | IS30: 2020-04-24 | IT30: 2020-05-22 | IU30: 2020-06-19 | IV30: 2020-07-17 | IW30: 2020-08-14 | IX30: 2020-09-11 | IY30: 2020-10-09 | IZ30: 2020-11-06 | JA30: 2020-12-04 | JB30: 2020
B31: Nuclear | C31: 740.3952945 | D31: 652.7154046 | E31: 634.4399302 | F31: 616.7411876 | G31: 742.6574508 | H31: 699.2202649 | I31: 742.1034819 | J31: 729.3019846 | K31: 644.5437413 | L31: 659.2410483 | M31: 700.1971381 | N31: 737.4723346 | O31: 8298.442075 | P31: 744 | Q31: 656.2803161 | R31: 592.6143889 | S31: 582.1521101 | T31: 645.9515603 | U31: 686.8447252 | V31: 742.8399813 | W31: 738.4947557 | X31: 632.236142 | Y31: 731.2003561 | Z31: 719.3553502 | AA31: 742.3244174 | AB31: 8214.294103 | AC31: 733.012958 | AD31: 665.6909733 | AE31: 632.9166482 | AF31: 620.902976 | AG31: 641.7508569 | AH31: 613.393778 | AI31: 740.7781916 | AJ31: 737.427511 | AK31: 584.1060921 | AL31: 628.1078601 | AM31: 709.7577492 | AN31: 730.1543856 | AO31: 8037.309754 | AP31: 729.7163683 | AQ31: 696 | AR31: 667.1628439 | AS31: 684.454302 | AT31: 658.6984368 | AU31: 692.6733833 | AV31: 744 | AW31: 733.6710539 | AX31: 634.9847631 | AY31: 610.6868731 | AZ31: 679.894512 | BA31: 689.9582472 | BB31: 8222.190384 | BC31: 743.2160629 | BD31: 657.5877919 | BE31: 617.5669384 | BF31: 531.4005776 | BG31: 509.9429441 | BH31: 520.1047743 | BI31: 537.4416002 | BJ31: 624.827949 | BK31: 711.6950422 | BL31: 645.1230203 | BM31: 709.035181 | BN31: 740.1764605 | BO31: 7548.119078 | BP31: 731.5434419 | BQ31: 662.0882908 | BR31: 684.8618677 | BS31: 482.763772 | BT31: 609.1601042 | BU31: 669.6979269 | BV31: 675.9994072 | BW31: 717.6414498 | BX31: 616.0957685 | BY31: 636.6782222 | BZ31: 701.9915392 | CA31: 739.8200784 | CB31: 7922.302885 | CC31: 740.3769043 | CD31: 655.8783086 | CE31: 681.1241406 | CF31: 608.8092355 | CG31: 492.8737147 | CH31: 436.5374565 | CI31: 539.4694792 | CJ31: 555.2285644 | CK31: 683.829867 | CL31: 673.4940273 | CM31: 536.539062 | CN31: 700.555604 | CO31: 7304.716364 | CP31: 728.5879838 | CQ31: 696 | CR31: 728.7339791 | CS31: 554.1805252 | CT31: 644.4269339 | CU31: 630.9081185 | CV31: 645.972988 | CW31: 696.3062994 | CX31: 614.7783003 | CY31: 598.117009 | CZ31: 564.5890769 | DA31: 679.8870269 | DB31: 7782.488241 | DC31: 744 | DD31: 597.0931302 | DE31: 537.2020996 | DF31: 554.5956022 | DG31: 506.1967681 | DH31: 488.5321866 | DI31: 575.1350934 | DJ31: 744 | DK31: 612.7911068 | DL31: 565.0507271 | DM31: 552.7233964 | DN31: 547.0175305 | DO31: 7024.337641 | DP31: 627.5641506 | DQ31: 634.7586747 | DR31: 671.8716652 | DS31: 669.0562384 | DT31: 599.6650214 | DU31: 639.9252909 | DV31: 741.4566788 | DW31: 742.9826715 | DX31: 697.8731054 | DY31: 742.1526844 | DZ31: 690.2240968 | EA31: 649.3884506 | EB31: 8106.021 | EC31: 643.9785666 | ED31: 578.6197422 | EE31: 598.5844 | EF31: 605.9290723 | EG31: 498.4829411 | EH31: 646.5630327 | EI31: 679.8971447 | EJ31: 744 | EK31: 700.0491405 | EL31: 612.189893 | EM31: 617.5803861 | EN31: 646.5662588 | EO31: 7571.646282 | EP31: 699.3428686 | EQ31: 692.8251072 | ER31: 738.7312316 | ES31: 706.512095 | ET31: 602.2878781 | EU31: 487.8113826 | EV31: 703.4165872 | EW31: 744 | EX31: 720 | EY31: 729.0884084 | EZ31: 544.8259774 | FA31: 586.6417826 | FB31: 7955.483319 | FC31: 620.8756672 | FD31: 592.8682008 | FE31: 697.3883643 | FF31: 598.0045242 | FG31: 541.7254859 | FH31: 591.7693626 | FI31: 694.7629236 | FJ31: 688.6676615 | FK31: 646.503794 | FL31: 591.5380253 | FM31: 557.1259901 | FN31: 540.2236147 | FO31: 7361.453614 | FP31: 607.1006196 | FQ31: 626.4168236 | FR31: 697.3883643 | FS31: 676.7110813 | FT31: 580.0498998 | FU31: 470.1281848 | FV31: 581.4927871 | FW31: 581.7959744 | FX31: 654.802049 | FY31: 693.0370547 | FZ31: 582.420364 | GA31: 640.8602563 | GB31: 7392.203459 | GC31: 694.2916628 | GD31: 626.4895729 | GE31: 697.3883643 | GF31: 630.4045887 | GG31: 478.6669854 | GH31: 514.6802133 | GI31: 667.2572267 | GJ31: 699.2681173 | GK31: 663.2231762 | GL31: 560.9272639 | GM31: 536.0873599 | GN31: 661.1328979 | GO31: 7429.817429 | GP31: 609.5241199 | GQ31: 559.2574974 | GR31: 697.3883643 | GS31: 669.3294214 | GT31: 517.2957407 | GU31: 655.2337512 | GV31: 699.2681173 | GW31: 699.2681173 | GX31: 676.7110813 | GY31: 690.1311601 | GZ31: 500.6829495 | HA31: 589.7243265 | HB31: 7563.814647 | HC31: 699.2681173 | HD31: 631.5970092 | HE31: 697.3883643 | HF31: 666.0661624 | HG31: 556.4887159 | HH31: 560.4131894 | HI31: 606.71962 | HJ31: 699.2681173 | HK31: 649.8757702 | HL31: 591.4131551 | HM31: 512.0471415 | HN31: 719.8874206 | HO31: 7997.183198 | HP31: 719.0357257 | HQ31: 647.6336724 | HR31: 639.1916277 | HS31: 539.6362042 | HT31: 539.2166892 | HU31: 518.091851 | HV31: 654.9973234 | HW31: 744 | HX31: 720 | HY31: 734.7694769 | HZ31: 547.0388027 | IA31: 618.0466006 | IB31: 7621.657974 | IC31: 720.808805 | ID31: 672 | IE31: 743 | IF31: 661.1017831 | IG31: 567.0228078 | IH31: 678.4404289 | II31: 741.3526019 | IJ31: 737.5377595 | IK31: 720 | IL31: 656.6737199 | IM31: 498.1963992 | IN31: 644.3343211 | IO31: 8040.468626 | IP31: 744 | IQ31: 696 | IR31: 743 | IS31: 654.5131223 | IT31: 487.2424518 | IU31: 541.8011476 | IV31: - | IW31: - | IX31: - | IY31: - | IZ31: - | JA31: - | JB31: 3866.556722
B32: Carbón | C32: 484.2048482 | D32: 416.7274912 | E32: 416.4107761 | F32: 419.8629129 | G32: 508.344767 | H32: 595.1895575 | I32: 647.9505767 | J32: 646.1709935 | K32: 655.2226048 | L32: 661.0365715 | M32: 660.3599361 | N32: 692.480923 | O32: 6805.119873 | P32: 693.0529102 | Q32: 642.0146737 | R32: 688.895721 | S32: 640.6496081 | T32: 655.9008797 | U32: 626.0318205 | V32: 646.868001 | W32: 664.850527 | X32: 654.2794316 | Y32: 636.4368584 | Z32: 635.2319757 | AA32: 524.2591289 | AB32: 7708.750286 | AC32: 566.2486087 | AD32: 563.1698081 | AE32: 573.8245599 | AF32: 514.9273209 | AG32: 558.7132659 | AH32: 625.1832879 | AI32: 680.2171116 | AJ32: 681.1958935 | AK32: 661.036613 | AL32: 681.8172817 | AM32: 623.9407675 | AN32: 585.1823478 | AO32: 7316.161396 | AP32: 610.089782 | AQ32: 604.3225748 | AR32: 640.6116925 | AS32: 526.776857 | AT32: 543.5244371 | AU32: 619.8292223 | AV32: 679.4320118 | AW32: 665.129856 | AX32: 646.5035305 | AY32: 649.3586936 | AZ32: 614.210449 | BA32: 676.6640333 | BB32: 7476.396844 | BC32: 697.4800932 | BD32: 620.3195152 | BE32: 639.675817 | BF32: 558.3361916 | BG32: 595.813036 | BH32: 599.5219827 | BI32: 676.9629953 | BJ32: 644.3837842 | BK32: 650.105115 | BL32: 679.8236272 | BM32: 676.4652299 | BN32: 675.1930814 | BO32: 7744.787433 | BP32: 690.9115267 | BQ32: 595.5588019 | BR32: 574.9446335 | BS32: 409.2425345 | BT32: 542.9471069 | BU32: 619.1370678 | BV32: 677.343276 | BW32: 612.1023599 | BX32: 585.5850736 | BY32: 556.8427579 | BZ32: 520.2082193 | CA32: 528.4090047 | CB32: 6913.30205 | CC32: 656.6636004 | CD32: 562.9836255 | CE32: 544.0455952 | CF32: 612.8516715 | CG32: 648.7599328 | CH32: 611.1226351 | CI32: 640.6043039 | CJ32: 638.6955263 | CK32: 604.932184 | CL32: 589.7777517 | CM32: 580.9180474 | CN32: 637.1727215 | CO32: 7368.619644 | CP32: 567.7998554 | CQ32: 511.3430402 | CR32: 454.1044794 | CS32: 413.5502837 | CT32: 282.3805755 | CU32: 265.0205446 | CV32: 447.0642662 | CW32: 378.098926 | CX32: 392.6742171 | CY32: 478.8911444 | CZ32: 465.9269482 | DA32: 518.5611105 | DB32: 5175.385241 | DC32: 534.5375355 | DD32: 376.5438727 | DE32: 366.4765125 | DF32: 233.6459296 | DG32: 288.7113675 | DH32: 311.3351083 | DI32: 421.0055451 | DJ32: 240.6120777 | DK32: 359.5181423 | DL32: 411.5336659 | DM32: 285.0179194 | DN32: 250.282963 | DO32: 4079.220639 | DP32: 223.6474651 | DQ32: 198.7791137 | DR32: 141.8934582 | DS32: 95.11485299 | DT32: 117.0119754 | DU32: 184.5595492 | DV32: 305.3817435 | DW32: 351.5383628 | DX32: 377.8516804 | DY32: 282.3627513 | DZ32: 215.3104281 | EA32: 273.0260273 | EB32: 2769.220495 | EC32: 327.1258273 | ED32: 356.9065646 | EE32: 489.5063787 | EF32: 378.1970804 | EG32: 394.0434633 | EH32: 359.8840579 | EI32: 573.5284476 | EJ32: 544.8868211 | EK32: 578.2880886 | EL32: 553.5360363 | EM32: 539.7410124 | EN32: 555.1621379 | EO32: 4777.660997 | EP32: 551.7508977 | EQ32: 572.7534393 | ER32: 493.4694908 | ES32: 290.8449618 | ET32: 429.9264972 | EU32: 554.4047459 | EV32: 526.7968504 | EW32: 529.3309809 | EX32: 434.5383997 | EY32: 464.5254653 | EZ32: 433.0499241 | FA32: 420.1466363 | FB32: 5787.018688 | FC32: 414.9467187 | FD32: 354.613874 | FE32: 238.511656 | FF32: 177.4657764 | FG32: 281.3723961 | FH32: 364.6400465 | FI32: 653.6242977 | FJ32: 575.3885161 | FK32: 595.4382656 | FL32: 556.4291302 | FM32: 380.1933778 | FN32: 572.4927227 | FO32: 4372.940869 | FP32: 280.3638459 | FQ32: 133.8339021 | FR32: 188.6689606 | FS32: 193.0674802 | FT32: 384.5041049 | FU32: 563.9655073 | FV32: 613.4034278 | FW32: 575.69623 | FX32: 611.452672 | FY32: 489.0165819 | FZ32: 375.3388606 | GA32: 475.0699999 | GB32: 4895.205132 | GC32: 561.1174597 | GD32: 367.940173 | GE32: 329.1678722 | GF32: 348.8779569 | GG32: 335.9769517 | GH32: 590.5805549 | GI32: 654.031217 | GJ32: 599.5906733 | GK32: 531.7453883 | GL32: 505.0362686 | GM32: 530.8829196 | GN32: 535.6013019 | GO32: 5890.548737 | GP32: 329.1732706 | GQ32: 263.2788242 | GR32: 252.3218186 | GS32: 153.1452747 | GT32: 170.0120671 | GU32: 274.6155789 | GV32: 465.4636473 | GW32: 444.7935186 | GX32: 546.0134503 | GY32: 525.9774693 | GZ32: 559.0333257 | HA32: 617.6569857 | HB32: 4649.301354 | HC32: 611.0694714 | HD32: 457.4198159 | HE32: 257.4394932 | HF32: 261.9874065 | HG32: 460.5090548 | HH32: 531.835715 | HI32: 522.6146906 | HJ32: 401.0838298 | HK32: 381.0522952 | HL32: 488.1614011 | HM32: 567.1889487 | HN32: 515.4376402 | HO32: 5455.799762 | HP32: 398.8282485 | HQ32: 448.2051045 | HR32: 207.7159745 | HS32: 224.2908481 | HT32: 301.1607709 | HU32: 316.2001464 | HV32: 464.6939622 | HW32: 456.2303791 | HX32: 523.222387 | HY32: 457.1389872 | HZ32: 515.747004 | IA32: 385.2394819 | IB32: 4702.548842 | IC32: 417.846318 | ID32: 312.6565459 | IE32: 135.0443082 | IF32: 111.3320808 | IG32: 58.63686677 | IH32: 82.47789715 | II32: 111.886626 | IJ32: 66.11757508 | IK32: 85.11292642 | IL32: 124.1089628 | IM32: 95.9916711 | IN32: 71.40604839 | IO32: 1672.617827 | IP32: 154.2957846 | IQ32: 153.0184741 | IR32: 108.719383 | IS32: 83.16201106 | IT32: 66.46813094 | IU32: 86.43494067 | IV32: - | IW32: - | IX32: - | IY32: - | IZ32: - | JA32: - | JB32: 652.0987244
B33: Fuel + Gas | C33: 189.531911 | D33: 151.7793656 | E33: 121.2989382 | F33: 58.61538421 | G33: 105.0436764 | H33: 279.0971412 | I33: 348.4766833 | J33: 308.5297066 | K33: 274.9007209 | L33: 241.8555234 | M33: 268.4295899 | N33: 361.2259979 | O33: 2708.784639 | P33: 421.7424833 | Q33: 284.3871074 | R33: 252.8450172 | S33: 233.5932202 | T33: 193.6266989 | U33: 289.3920135 | V33: 342.3159015 | W33: 229.6390693 | X33: 226.1973042 | Y33: 222.9015236 | Z33: 140.5932514 | AA33: 118.0257616 | AB33: 2955.121057 | AC33: 176.9667939 | AD33: 171.5494157 | AE33: 43.93377118 | AF33: 21.88160219 | AG33: 56.32323775 | AH33: 300.781968 | AI33: 312.3236555 | AJ33: 277.87091 | AK33: 226.2691262 | AL33: 190.4506091 | AM33: 98.89235464 | AN33: 128.9291735 | AO33: 2026.761078 | AP33: 135.2774031 | AQ33: 94.10627729 | AR33: 161.6676006 | AS33: 42.59657188 | AT33: 75.16579911 | AU33: 195.408316 | AV33: 284.4502645 | AW33: 184.8888423 | AX33: 255.0484207 | AY33: 158.0142129 | AZ33: 130.6695338 | BA33: 206.847141 | BB33: 1925.903971 | BC33: 254.5890347 | BD33: 293.990396 | BE33: 288.5220537 | BF33: 95.94046079 | BG33: 152.6668012 | BH33: 294.1774135 | BI33: 351.5208919 | BJ33: 130.1373094 | BK33: 142.4604139 | BL33: 133.8537595 | BM33: 137.616485 | BN33: 224.68577 | BO33: 2525.480158 | BP33: 204.2737946 | BQ33: 159.5794045 | BR33: 81.92010104 | BS33: 90.63595618 | BT33: 35.44357229 | BU33: 182.8169223 | BV33: 385.6180957 | BW33: 151.9970219 | BX33: 278.2101816 | BY33: 187.7917509 | BZ33: 92.83705604 | CA33: 47.22523674 | CB33: 1898.349094 | CC33: 39.44988634 | CD33: 48.66682313 | CE33: 39.92060959 | CF33: 25.83991377 | CG33: 41.35750395 | CH33: 42.94119345 | CI33: 104.232208 | CJ33: 83.57076581 | CK33: 90.60302428 | CL33: 55.6616805 | CM33: 120.4174007 | CN33: 105.8273238 | CO33: 972.3971548 | CP33: 108.7445241 | CQ33: 83.83520332 | CR33: 52.83891789 | CS33: 93.80794569 | CT33: 58.02524905 | CU33: 107.7982387 | CV33: 78.92614576 | CW33: 134.7901 | CX33: 89.91899741 | CY33: 80.57117601 | CZ33: 103.3578334 | DA33: 86.63930057 | DB33: 1081.307668 | DC33: 70.25001974 | DD33: 56.46530255 | DE33: 62.70641317 | DF33: 49.31585004 | DG33: 49.9557176 | DH33: 51.51324285 | DI33: 102.7022529 | DJ33: 59.401378 | DK33: 53.35490409 | DL33: 51.13109809 | DM33: 70.82078327 | DN33: 102.6844452 | DO33: 1049.421769 | DP33: 158.5993997 | DQ33: 129.3905688 | DR33: 43.26696639 | DS33: 72.40068333 | DT33: 94.9368531 | DU33: 99.5140783 | DV33: 109.850279 | DW33: 85.45129826 | DX33: 93.51989239 | DY33: 72.83877676 | DZ33: 98.54658032 | EA33: 99.92872029 | EB33: 1191.71945 | EC33: 0 | ED33: 0 | EE33: 0 | EF33: 0 | EG33: 0 | EH33: 0 | EI33: 0 | EJ33: 0 | EK33: 0 | EL33: 0 | EM33: 0 | EN33: 0 | EO33: 0 | EP33: 0 | EQ33: 0 | ER33: 0 | ES33: 0 | ET33: 0 | EU33: 0 | EV33: 0 | EW33: 0 | EX33: 0 | EY33: 0 | EZ33: 0 | FA33: 0 | FB33: 0 | FC33: 0 | FD33: 0 | FE33: 0 | FF33: 0 | FG33: 0 | FH33: 0 | FI33: 0 | FJ33: 0 | FK33: 0 | FL33: 0 | FM33: 0 | FN33: 0 | FO33: 0 | FP33: 0 | FQ33: 0 | FR33: 0 | FS33: 0 | FT33: 0 | FU33: 0 | FV33: 0 | FW33: 0 | FX33: 0 | FY33: 0 | FZ33: 0 | GA33: 0 | GB33: 0 | GC33: - | GD33: - | GE33: - | GF33: - | GG33: - | GH33: - | GI33: - | GJ33: - | GK33: - | GL33: - | GM33: - | GN33: - | GO33: - | GP33: - | GQ33: - | GR33: - | GS33: - | GT33: - | GU33: - | GV33: - | GW33: - | GX33: - | GY33: - | GZ33: - | HA33: - | HB33: - | HC33: - | HD33: - | HE33: - | HF33: - | HG33: - | HH33: - | HI33: - | HJ33: - | HK33: - | HL33: - | HM33: - | HN33: - | HO33: - | HP33: - | HQ33: - | HR33: - | HS33: - | HT33: - | HU33: - | HV33: - | HW33: - | HX33: - | HY33: - | HZ33: - | IA33: - | IB33: - | IC33: - | ID33: - | IE33: - | IF33: - | IG33: - | IH33: - | II33: - | IJ33: - | IK33: - | IL33: - | IM33: - | IN33: - | IO33: - | IP33: - | IQ33: - | IR33: - | IS33: - | IT33: - | IU33: - | IV33: - | IW33: - | IX33: - | IY33: - | IZ33: - | JA33: - | JB33: -
B34: Ciclo combinado | C34: - | D34: - | E34: - | F34: - | G34: - | H34: - | I34: - | J34: - | K34: - | L34: - | M34: - | N34: - | O34: - | P34: - | Q34: - | R34: - | S34: 0 | T34: 109.4525192 | U34: 282.3539261 | V34: 383.3507318 | W34: 420.1695857 | X34: 551.1991012 | Y34: 550.2689977 | Z34: 366.2204982 | AA34: 338.9449163 | AB34: 2899.2075 | AC34: 374.3955734 | AD34: 442.8783088 | AE34: 385.4360741 | AF34: 202.8127457 | AG34: 367.7680471 | AH34: 654.9596869 | AI34: 611.5667191 | AJ34: 556.9350781 | AK34: 600.6245258 | AL34: 581.4501093 | AM34: 451.2283005 | AN34: 355.5017378 | AO34: 5074.855396 | AP34: 454.1674019 | AQ34: 525.4103705 | AR34: 574.2361567 | AS34: 457.0815783 | AT34: 488.7450925 | AU34: 547.0159251 | AV34: 561.4362156 | AW34: 447.560756 | AX34: 533.7188101 | AY34: 508.7108686 | AZ34: 438.2296169 | BA34: 468.4259372 | BB34: 4687.63614 | BC34: 481.1136687 | BD34: 451.1722117 | BE34: 439.2387497 | BF34: 429.4094896 | BG34: 490.6322142 | BH34: 618.5920952 | BI34: 673.3405878 | BJ34: 593.7730511 | BK34: 510.4917049 | BL34: 458.7428848 | BM34: 467.9408441 | BN34: 445.803631 | BO34: 5147.052046 | BP34: 551.3974555 | BQ34: 507.1999866 | BR34: 465.3893588 | BS34: 438.9962137 | BT34: 488.5097069 | BU34: 523.2345466 | BV34: 594.983883 | BW34: 475.09523 | BX34: 553.655641 | BY34: 471.7740223 | BZ34: 427.1906258 | CA34: 448.1035275 | CB34: 5546.304325 | CC34: 556.330758 | CD34: 395.3778139 | CE34: 359.7310541 | CF34: 346.8723077 | CG34: 383.2946706 | CH34: 504.0462534 | CI34: 534.5245381 | CJ34: 420.2662754 | CK34: 432.5002474 | CL34: 454.6357022 | CM34: 517.8022922 | CN34: 473.2221253 | CO34: 4644.766369 | CP34: 506.2520297 | CQ34: 505.2140582 | CR34: 446.6869852 | CS34: 450.9153929 | CT34: 481.6038716 | CU34: 494.36831 | CV34: 557.666677 | CW34: 521.0646955 | CX34: 496.3458987 | CY34: 469.2635818 | CZ34: 452.1013967 | DA34: 386.4127754 | DB34: 5736.780197 | DC34: 400.0989492 | DD34: 320.6720126 | DE34: 333.6398136 | DF34: 347.9108574 | DG34: 349.3379129 | DH34: 466.3454635 | DI34: 525.081979 | DJ34: 509.6651312 | DK34: 491.9294743 | DL34: 429.0680749 | DM34: 372.0702783 | DN34: 390.9207059 | DO34: 4743.557024 | DP34: 348.5036605 | DQ34: 324.0357119 | DR34: 314.0054362 | DS34: 295.4514587 | DT34: 292.7870064 | DU34: 338.1733182 | DV34: 409.8386694 | DW34: 359.2558769 | DX34: 390.698195 | DY34: 339.1998858 | DZ34: 351.8461616 | EA34: 316.9825228 | EB34: 3985.935251 | EC34: 328.4954992 | ED34: 279.8035975 | EE34: 264.4672096 | EF34: 190.7604305 | EG34: 254.5690018 | EH34: 297.6754388 | EI34: 300.392196 | EJ34: 305.2451929 | EK34: 285.3568279 | EL34: 262.8733015 | EM34: 242.6743506 | EN34: 244.2639178 | EO34: 3256.652552 | EP34: 260.9328019 | EQ34: 243.1547897 | ER34: 211.7018415 | ES34: 162.2398762 | ET34: 156.1295416 | EU34: 183.6921834 | EV34: 214.6386568 | EW34: 220.6747609 | EX34: 196.0859657 | EY34: 225.6652079 | EZ34: 214.6661252 | FA34: 201.6525401 | FB34: 2491.742937 | FC34: 175.1378447 | FD34: 136.9330993 | FE34: 122.7865107 | FF34: 104.0334035 | FG34: 117.2932894 | FH34: 106.205085 | FI34: 133.3102569 | FJ34: 142.5392976 | FK34: 147.5291504 | FL34: 194.3312408 | FM34: 161.9438449 | FN34: 191.6466141 | FO34: 1733.689637 | FP34: 138.1999811 | FQ34: 124.4359635 | FR34: 123.5414834 | FS34: 112.557393 | FT34: 110.1336556 | FU34: 116.4933367 | FV34: 124.6452745 | FW34: 148.3449014 | FX34: 177.0970354 | FY34: 176.0613319 | FZ34: 166.3550707 | GA34: 178.0106086 | GB34: 1695.876036 | GC34: 178.1462411 | GD34: 153.2679837 | GE34: 153.3598583 | GF34: 153.4373476 | GG34: 147.577467 | GH34: 142.4375239 | GI34: 230.7086791 | GJ34: 186.234654 | GK34: 184.3042492 | GL34: 184.3042492 | GM34: 184.9303768 | GN34: 188.9301611 | GO34: 2067.017091 | GP34: 161.963846 | GQ34: 133.0356417 | GR34: 133.5866053 | GS34: 122.8650566 | GT34: 159.9063545 | GU34: 159.0308946 | GV34: 190.0870837 | GW34: 164.9602994 | GX34: 162.8475219 | GY34: 232.2589356 | GZ34: 227.6902822 | HA34: 217.5854549 | HB34: 2065.817976 | HC34: 214.9286191 | HD34: 132.1775774 | HE34: 121.5684345 | HF34: 105.7652494 | HG34: 127.6139578 | HH34: 211.5277963 | HI34: 246.2053643 | HJ34: 241.3818431 | HK34: 213.3598066 | HL34: 264.4523253 | HM34: 277.1729618 | HN34: 202.0564873 | HO34: 2358.210423 | HP34: 157.9743516 | HQ34: 136.2346696 | HR34: 124.2015011 | HS34: 113.9597723 | HT34: 141.2186141 | HU34: 150.912416 | HV34: 160.2163401 | HW34: 186.8744971 | HX34: 161.0717356 | HY34: 172.1148761 | HZ34: 206.3024457 | IA34: 190.4629812 | IB34: 1920.068765 | IC34: 203.3981058 | ID34: 164.9305126 | IE34: 160.214645 | IF34: 194.8909675 | IG34: 257.8735446 | IH34: 334.2652462 | II34: 418.5142082 | IJ34: 418.061615 | IK34: 343.5548843 | IL34: 350.7607046 | IM34: 261.5163107 | IN34: 203.7218256 | IO34: 3311.70257 | IP34: 229.1518387 | IQ34: 181.4133995 | IR34: 146.3905592 | IS34: 215.0322329 | IT34: 212.6362425 | IU34: 259.9868015 | IV34: - | IW34: - | IX34: - | IY34: - | IZ34: - | JA34: - | JB34: 1244.611074
B35: Horas de funcionamiento | C35: 474.70192 | D35: 409.8329903 | E35: 395.6653903 | F35: 373.9802688 | G35: 461.3909556 | H35: 535.1747938 | I35: 589.8002458 | J35: 573.8685087 | K35: 543.2249492 | L35: 540.5165246 | M35: 559.8323104 | N35: 610.8315199 | O35: 6069.810401 | P35: 630.3199474 | Q35: 543.8475839 | R35: 535.9233154 | S35: 492.3396898 | T35: 503.1245993 | U35: 532.6261592 | V35: 573.4314893 | W35: 553.4989938 | X35: 530.7778757 | Y35: 549.5122129 | Z35: 508.0628027 | AA35: 463.3654334 | AB35: 6203.398174 | AC35: 495.3160261 | AD35: 480.7109472 | AE35: 444.6432951 | AF35: 394.0408296 | AG35: 442.2846524 | AH35: 548.6884135 | AI35: 602.8236801 | AJ35: 587.1871065 | AK35: 534.351716 | AL35: 542.7730401 | AM35: 503.3070356 | AN35: 487.3884379 | AO35: 5993.31047 | AP35: 510.8553967 | AQ35: 501.2617085 | AR35: 530.7393986 | AS35: 448.1994404 | AT35: 460.5110917 | AU35: 532.9104505 | AV35: 587.7432157 | AW35: 533.9548876 | AX35: 538.3931353 | AY35: 508.239698 | AZ35: 490.0082032 | BA35: 535.4841729 | BB35: 5863.023964 | BC35: 565.1612729 | BD35: 520.3218208 | BE35: 515.2982892 | BF35: 431.5569632 | BG35: 465.7600516 | BH35: 531.081507 | BI35: 585.2992625 | BJ35: 531.1262335 | BK35: 530.2834357 | BL35: 506.8872219 | BM35: 522.2543694 | BN35: 536.1372873 | BO35: 5957.574027 | BP35: 569.7344816 | BQ35: 505.288181 | BR35: 476.4173433 | BS35: 381.186147 | BT35: 451.9973265 | BU35: 522.4940406 | BV35: 599.2305333 | BW35: 506.2266073 | BX35: 530.1812394 | BY35: 480.5080572 | BZ35: 450.767471 | CA35: 460.5523616 | CB35: 5781.251857 | CC35: 535.7886895 | CD35: 434.3717701 | CE35: 417.6360695 | CF35: 414.8370966 | CG35: 420.0925566 | CH35: 449.8923752 | CI35: 498.4349348 | CJ35: 451.1612965 | CK35: 475.3750993 | CL35: 474.6768129 | CM35: 486.0838142 | CN35: 514.9084651 | CO35: 5398.653662 | CP35: 521.4656096 | CQ35: 498.7589519 | CR35: 458.9230616 | CS35: 425.0191922 | CT35: 419.3782637 | CU35: 423.8497467 | CV35: 499.6790059 | CW35: 478.6508233 | CX35: 452.0808349 | CY35: 456.5057719 | CZ35: 441.4080806 | DA35: 440.4323112 | DB35: 5501.915023 | DC35: 460.3451299 | DD35: 356.2780765 | DE35: 350.5346565 | DF35: 326.3276008 | DG35: 332.6818488 | DH35: 393.1740969 | DI35: 468.3201138 | DJ35: 443.5027645 | DK35: 441.2372759 | DL35: 415.7975444 | DM35: 355.7038133 | DN35: 364.0887978 | DO35: 4728.800333 | DP35: 355.1979271 | DQ35: 335.8209997 | DR35: 318.1526807 | DS35: 297.6907805 | DT35: 291.1476021 | DU35: 339.735703 | DV35: 425.5947281 | DW35: 408.010591 | DX35: 424.442718 | DY35: 379.7433152 | DZ35: 363.2017698 | EA35: 351.2418818 | EB35: 4244.658433 | EC35: 367.0269169 | ED35: 336.8459774 | EE35: 364.1291654 | EF35: 297.6586829 | EG35: 318.948818 | EH35: 363.688729 | EI35: 423.7310872 | EJ35: 430.1606886 | EK35: 419.9597355 | EL35: 386.5015185 | EM35: 372.7738977 | EN35: 386.2077816 | EO35: 4313.939509 | EP35: 403.7107247 | EQ35: 397.8030422 | ER35: 368.1532859 | ES35: 284.2399986 | ET35: 297.8093414 | EU35: 324.1268261 | EV35: 371.6031643 | EW35: 382.5720414 | EX35: 341.1549494 | EY35: 366.7911487 | EZ35: 321.2861777 | FA35: 319.2206189 | FB35: 4211.77455 | FC35: 308.7363399 | FD35: 267.3995189 | FE35: 249.2190737 | FF35: 206.4069272 | FG35: 229.486719 | FH35: 252.0789013 | FI35: 355.7169553 | FJ35: 340.9121759 | FK35: 341.3231055 | FL35: 349.0568471 | FM35: 281.715806 | FN35: 342.5228858 | FO35: 3331.989723 | FP35: 252.5394111 | FQ35: 212.3928139 | FR35: 237.5311899 | FS35: 228.7325655 | FT35: 256.7043056 | FU35: 284.4064889 | FV35: 320.3703643 | FW35: 324.9417628 | FX35: 362.7504218 | FY35: 339.3456256 | FZ35: 287.159295 | GA35: 328.0227301 | GB35: 3437.944665 | GC35: 358.1130636 | GD35: 285.5447016 | GE35: 288.6097251 | GF35: 281.7356177 | GG35: 251.7772236 | GH35: 317.1363608 | GI35: 410.6912742 | GJ35: 377.2634714 | GK35: 341.3052688 | GL35: 328.749032 | GM35: 331.0306186 | GN35: 356.5281299 | GO35: 3942.760528 | GP35: 281.5204785 | GQ35: 239.5862681 | GR35: 262.0142868 | GS35: 228.0342363 | GT35: 226.5488269 | GU35: 274.5843914 | GV35: 344.2088396 | GW35: 324.6168609 | GX35: 342.2527123 | GY35: 381.3009737 | GZ35: 351.9741684 | HA35: 375.3050728 | HB35: 3641.562915 | HC35: 391.9596953 | HD35: 295.8482812 | HE35: 256.0574425 | HF35: 242.0743577 | HG35: 280.3176945 | HH35: 346.9747136 | HI35: 373.7925346 | HJ35: 360.0393198 | HK35: 329.9811488 | HL35: 374.0485819 | HM35: 383.8347311 | HN35: 362.4837779 | HO35: 4032.993037 | HP35: 309.1728231 | HQ35: 295.2381837 | HR35: 231.4520764 | HS35: 212.0770811 | HT35: 245.9725612 | HU35: 251.6190798 | HV35: 314.7530176 | HW35: 344.0031004 | HX35: 341.4963621 | HY35: 335.3005077 | HZ35: 336.8518764 | IA35: 309.4141059 | IB35: 3549.165225 | IC35: 342.412355 | ID35: 286.6903099 | IE35: 254.9546512 | IF35: 255.9751859 | IG35: 265.0320877 | IH35: 335.2844167 | II35: 403.1362075 | IJ35: 391.5965737 | IK35: 348.6002344 | IL35: 351.0044575 | IM35: 263.9845421 | IN35: 249.0838728 | IO35: 3747.754894 | IP35: 301.8888378 | IQ35: 264.5743712 | IR35: 241.736614 | IS35: 261.8046909 | IT35: 227.4917861 | IU35: 269.9262392 | IV35: - | IW35: - | IX35: - | IY35: - | IZ35: - | JA35: - | JB35: 1567.422539
B37: Indisponibilidad equipo térmico anual peninsular (%) Tipo permanente | C37: 2001 | D37: 2002 | E37: 2003 | F37: 2004 | G37: 2005 | H37: 2006 | I37: 2007 | J37: 2008 | K37: 2009 | L37: 2010 | M37: 2011 | N37: 2012 | O37: 2013 | P37: 2014 | Q37: 2015 | R37: 2016 | S37: 2017 | T37: 2018 | U37: 2019 | V37: 2020 | W37: 2021 | X37: 2022 | Y37: 2023 | Z37: 2024
B38: Nuclear | C38: 0 | D38: 0 | E38: 0 | F38: 0 | G38: 0 | H38: 0 | I38: 0 | J38: 0 | K38: 0 | L38: 0 | M38: 0 | N38: 0.2482548173 | O38: 6.01130421 | P38: 6.01130421 | Q38: 6.01130421 | R38: 6.01130421 | S38: 5.057484237 | T38: 0 | U38: 0 | V38: 0 | W38: - | X38: - | Y38: - | Z38: -
B39: Carbón | C39: 0 | D39: 0.97044967 | E39: 1.203874929 | F39: 1.204700887 | G39: 0.412341659 | H39: 0 | I39: 0.6136882701 | J39: 0.6171346695 | K39: 0.617147489 | L39: 0.6166578872 | M39: 0 | N39: 1.458571504 | O39: 3.624467212 | P39: 4.473753026 | Q39: 2.063967531 | R39: 0.1803196968 | S39: 0 | T39: 0 | U39: 0 | V39: 0 | W39: - | X39: - | Y39: - | Z39: -
B40: Fuel + Gas | C40: 4.548581394 | D40: 7.205978693 | E40: 7.862766326 | F40: 7.975528132 | G40: 9.626202476 | H40: 10.79134432 | I40: 16.31883859 | J40: 8.619173388 | K40: 8.487664666 | L40: 4.245432536 | M40: 38.06902547 | N40: 5.644466997 | O40: 0 | P40: 0 | Q40: - | R40: - | S40: - | T40: - | U40: - | V40: - | W40: - | X40: - | Y40: - | Z40: -
B41: Ciclo combinado | C41: - | D41: 0 | E41: 0 | F41: 0 | G41: 0 | H41: 0 | I41: 0 | J41: 0 | K41: 0 | L41: 0 | M41: 0 | N41: 0 | O41: 0 | P41: 0 | Q41: 0 | R41: 0 | S41: 0 | T41: 0.1320865493 | U41: 0 | V41: 0 | W41: - | X41: - | Y41: - | Z41: -
B42: Indisponibilidad permanente | C42: 1.302471106 | D42: 2.306107784 | E42: 2.304193101 | F42: 2.112214649 | G42: 1.891286034 | H42: 1.762665502 | I42: 2.500400736 | J42: 0.982867893 | K42: 0.917583929 | L42: 0.3636880139 | M42: 1.293551397 | N42: 0.5159645316 | O42: 1.92929827 | P42: 2.137801512 | Q42: 1.554768744 | R42: 1.120073973 | S42: 0.90318667 | T42: 0.0790302799 | U42: 0 | V42: 0 | W42: - | X42: - | Y42: - | Z42: -
B44: Indisponibilidad equipo térmico anual peninsular (%) Tipo prevista | C44: 2001 | D44: 2002 | E44: 2003 | F44: 2004 | G44: 2005 | H44: 2006 | I44: 2007 | J44: 2008 | K44: 2009 | L44: 2010 | M44: 2011 | N44: 2012 | O44: 2013 | P44: 2014 | Q44: 2015 | R44: 2016 | S44: 2017 | T44: 2018 | U44: 2019 | V44: 2020 | W44: 2021 | X44: 2022 | Y44: 2023 | Z44: 2024
B45: Nuclear | C45: 4.478233122 | D45: 5.575848833 | E45: 5.915942128 | F45: 4.02636343 | G45: 5.686665718 | H45: 4.79421378 | I45: 13.8466837 | J45: 3.598045503 | K45: 15.53303984 | L45: 3.924974636 | M45: 12.78606526 | N45: 8.416688618 | O45: 7.959329139 | P45: 7.584448112 | Q45: 7.513857545 | R45: 6.96038067 | S45: 6.17655274 | T45: 5.41678163 | U45: 6.757395394 | V45: 2.589143391 | W45: - | X45: - | Y45: - | Z45: -
B46: Carbón | C46: 2.72266922 | D46: 2.630751481 | E46: 3.017707714 | F46: 3.223119424 | G46: 3.22716097 | H46: 4.070866893 | I46: 2.599397944 | J46: 13.96351131 | K46: 5.877302537 | L46: 2.103752824 | M46: 1.894736293 | N46: 2.752324241 | O46: 3.456134101 | P46: 1.715971952 | Q46: 2.702934227 | R46: 5.838169613 | S46: 5.207224685 | T46: 2.439036694 | U46: 1.835112723 | V46: 0 | W46: - | X46: - | Y46: - | Z46: -
B47: Fuel + Gas | C47: 2.012794732 | D47: 2.261476358 | E47: 2.401588787 | F47: 1.258559104 | G47: 2.494393455 | H47: 2.384628054 | I47: 3.329844953 | J47: 5.401125296 | K47: 4.270294442 | L47: 0 | M47: 2.245003363 | N47: 0 | O47: 0 | P47: 0 | Q47: - | R47: - | S47: - | T47: - | U47: - | V47: - | W47: - | X47: - | Y47: - | Z47: -
B48: Ciclo combinado | C48: - | D48: 1.800281687 | E48: 3.091877642 | F48: 1.451048106 | G48: 2.937004362 | H48: 1.763278402 | I48: 1.438914527 | J48: 2.497459359 | K48: 2.260339941 | L48: 4.914191769 | M48: 6.199297421 | N48: 5.096770452 | O48: 3.135974705 | P48: 5.759157963 | Q48: 6.652147477 | R48: 4.821412252 | S48: 4.644847441 | T48: 3.314229186 | U48: 4.665406432 | V48: 4.489245164 | W48: - | X48: - | Y48: - | Z48: -
B49: Indisponibilidad prevista | C49: 3.033276219 | D49: 3.30137095 | E49: 3.647826091 | F49: 2.651775485 | G49: 3.54249659 | H49: 3.094187228 | I49: 4.210783642 | J49: 5.812515637 | K49: 5.580004147 | L49: 3.817578458 | M49: 6.101778238 | N49: 4.975173552 | O49: 4.009448337 | P49: 5.015431637 | Q49: 5.815740868 | R49: 5.438499012 | S49: 5.046126482 | T49: 3.473846599 | U49: 4.387565087 | V49: 3.146962925 | W49: - | X49: - | Y49: - | Z49: -
B51: Indisponibilidad equipo térmico anual peninsular (%) Tipo no prevista | C51: 2001 | D51: 2002 | E51: 2003 | F51: 2004 | G51: 2005 | H51: 2006 | I51: 2007 | J51: 2008 | K51: 2009 | L51: 2010 | M51: 2011 | N51: 2012 | O51: 2013 | P51: 2014 | Q51: 2015 | R51: 2016 | S51: 2017 | T51: 2018 | U51: 2019 | V51: 2020 | W51: 2021 | X51: 2022 | Y51: 2023 | Z51: 2024
B52: Nuclear | C52: 0.7170349601 | D52: 0.6514068371 | E52: 1.946239905 | F52: 2.318918203 | G52: 9.115550526 | H52: 4.500585737 | I52: 2.447883398 | J52: 7.897032496 | K52: 4.324421289 | L52: 3.917089717 | M52: 1.128767309 | N52: 0.7288737639 | O52: 2.015533359 | P52: 2.227173701 | Q52: 1.904597535 | R52: 1.054024054 | S52: 2.16976924 | T52: 7.789625284 | U52: 1.758094695 | V52: 9.402808631 | W52: - | X52: - | Y52: - | Z52: -
B53: Carbón | C53: 5.051444113 | D53: 5.477809574 | E53: 3.334068352 | F53: 5.081432786 | G53: 5.327266208 | H53: 4.447192507 | I53: 8.979189123 | J53: 6.464300097 | K53: 7.072217563 | L53: 6.094400071 | M53: 5.443942101 | N53: 4.839197786 | O53: 2.594699091 | P53: 6.230561777 | Q53: 5.385419804 | R53: 7.364277699 | S53: 5.834161886 | T53: 5.607447754 | U53: 9.133301253 | V53: 13.51846473 | W53: - | X53: - | Y53: - | Z53: -
B54: Fuel + Gas | C54: 7.643283973 | D54: 17.17984479 | E54: 7.46449652 | F54: 8.433102185 | G54: 11.99472431 | H54: 11.06298822 | I54: 5.932397735 | J54: 4.894451275 | K54: 7.571859827 | L54: 10.24735699 | M54: 0.4368059262 | N54: 1.622857074 | O54: 5.614949671 | P54: 68.07448517 | Q54: - | R54: - | S54: - | T54: - | U54: - | V54: - | W54: - | X54: - | Y54: - | Z54: -
B55: Ciclo combinado | C55: - | D55: 3.78638517 | E55: 3.833996001 | F55: 3.31456911 | G55: 7.665872488 | H55: 4.54885798 | I55: 6.221906782 | J55: 4.966854011 | K55: 5.757559311 | L55: 3.481404864 | M55: 2.726647349 | N55: 2.801522874 | O55: 1.853884012 | P55: 2.576823162 | Q55: 3.286893593 | R55: 4.885319674 | S55: 3.096190161 | T55: 3.517259438 | U55: 7.770542414 | V55: 13.46612532 | W55: - | X55: - | Y55: - | Z55: -
B56: Indisponibilidad no prevista | C56: 4.524868894 | D56: 7.158446121 | E56: 3.995220155 | F56: 4.778502986 | G56: 8.041818456 | H56: 5.575118109 | I56: 6.227099061 | J56: 5.831598767 | K56: 6.002638834 | L56: 4.530470227 | M56: 3.052288681 | N56: 2.936179398 | O56: 2.110433771 | P56: 4.178676302 | Q56: 4.016767713 | R56: 4.76651113 | S56: 3.552660335 | T56: 4.731437851 | U56: 7.03458313 | V56: 12.77068143 | W56: - | X56: - | Y56: - | Z56: -
B58: Disponibilidad equipo térmico anual peninsular (%) | C58: 2001 | D58: 2002 | E58: 2003 | F58: 2004 | G58: 2005 | H58: 2006 | I58: 2007 | J58: 2008 | K58: 2009 | L58: 2010 | M58: 2011 | N58: 2012 | O58: 2013 | P58: 2014 | Q58: 2015 | R58: 2016 | S58: 2017 | T58: 2018 | U58: 2019 | V58: 2020 | W58: 2021 | X58: 2022 | Y58: 2023 | Z58: 2024
B59: Nuclear | C59: 94.80473192 | D59: 93.77274433 | E59: 92.13781797 | F59: 93.65471837 | G59: 85.19778376 | H59: 90.70520048 | I59: 83.70543291 | J59: 88.504922 | K59: 80.14253887 | L59: 92.15793565 | M59: 86.08516743 | N59: 90.6061828 | O59: 84.01383329 | P59: 84.17707398 | Q59: 84.57024071 | R59: 85.97429107 | S59: 86.59619378 | T59: 86.79359309 | U59: 91.48450991 | V59: 88.00804798 | W59: - | X59: - | Y59: - | Z59: -
B60: Carbón | C60: 92.22588667 | D60: 90.92098928 | E60: 92.444349 | F60: 90.4907469 | G60: 91.03323116 | H60: 91.4819406 | I60: 87.80772466 | J60: 78.95505392 | K60: 86.43333241 | L60: 91.18518922 | M60: 92.66132161 | N60: 90.94990647 | O60: 90.3246996 | P60: 87.57971325 | Q60: 89.84767844 | R60: 86.61723299 | S60: 88.95861343 | T60: 91.95351555 | U60: 89.03158602 | V60: 86.48153527 | W60: - | X60: - | Y60: - | Z60: -
B61: Fuel + Gas | C61: 85.7953399 | D61: 73.35270016 | E61: 82.27114837 | F61: 82.33281058 | G61: 75.88467976 | H61: 75.76103941 | I61: 74.41891872 | J61: 81.08525004 | K61: 79.67018107 | L61: 85.50721047 | M61: 59.24916524 | N61: 92.73267593 | O61: 94.38505033 | P61: 31.92551483 | Q61: - | R61: - | S61: - | T61: - | U61: - | V61: - | W61: - | X61: - | Y61: - | Z61: -
B62: Ciclo combinado | C62: - | D62: 94.41333314 | E62: 93.07412636 | F62: 95.23438278 | G62: 89.39712315 | H62: 93.68786362 | I62: 92.33917869 | J62: 92.53568663 | K62: 91.98210075 | L62: 91.60440337 | M62: 91.07405523 | N62: 92.10170667 | O62: 95.01014128 | P62: 91.66401888 | Q62: 90.06095893 | R62: 90.29326807 | S62: 92.2589624 | T62: 93.03642483 | U62: 87.56405115 | V62: 82.04462951 | W62: - | X62: - | Y62: - | Z62: -
B63: Disponibilidad | C63: 91.13938378 | D63: 87.23407515 | E63: 90.05276065 | F63: 90.45750688 | G63: 86.52439892 | H63: 89.56802916 | I63: 87.06171656 | J63: 87.3730177 | K63: 87.49977309 | L63: 91.2882633 | M63: 89.55238168 | N63: 91.57268252 | O63: 91.95081962 | P63: 88.66809055 | Q63: 88.61272267 | R63: 88.67491588 | S63: 90.49802651 | T63: 91.71568527 | U63: 88.57785178 | V63: 84.08235564 | W63: - | X63: - | Y63: - | Z63: -
B65: Horas de funcionamiento del equipo térmico anual peninsular (número de horas) | C65: 2001 | D65: 2002 | E65: 2003 | F65: 2004 | G65: 2005 | H65: 2006 | I65: 2007 | J65: 2008 | K65: 2009 | L65: 2010 | M65: 2011 | N65: 2012 | O65: 2013 | P65: 2014 | Q65: 2015 | R65: 2016 | S65: 2017 | T65: 2018 | U65: 2019 | V65: 2020 | W65: 2021 | X65: 2022 | Y65: 2023 | Z65: 2024
B66: Nuclear | C66: 8298.442075 | D66: 8214.294103 | E66: 8037.309754 | F66: 8222.190384 | G66: 7548.119078 | H66: 7922.302885 | I66: 7304.716364 | J66: 7782.488241 | K66: 7024.337641 | L66: 8106.021 | M66: 7571.646282 | N66: 7955.483319 | O66: 7361.453614 | P66: 7392.203459 | Q66: 7429.817429 | R66: 7563.814647 | S66: 7997.183198 | T66: 7621.657974 | U66: 8040.468626 | V66: 3866.556722 | W66: - | X66: - | Y66: - | Z66: -
B67: Carbón | C67: 6805.119873 | D67: 7708.750286 | E67: 7316.161396 | F67: 7476.396844 | G67: 7744.787433 | H67: 6913.30205 | I67: 7368.619644 | J67: 5175.385241 | K67: 4079.220639 | L67: 2769.220495 | M67: 4777.660997 | N67: 5787.018688 | O67: 4372.940869 | P67: 4895.205132 | Q67: 5890.548737 | R67: 4649.301354 | S67: 5455.799762 | T67: 4702.548842 | U67: 1672.617827 | V67: 652.0987244 | W67: - | X67: - | Y67: - | Z67: -
B68: Fuel + Gas | C68: 2708.784639 | D68: 2955.121057 | E68: 2026.761078 | F68: 1925.903971 | G68: 2525.480158 | H68: 1898.349094 | I68: 972.3971548 | J68: 1081.307668 | K68: 1049.421769 | L68: 1191.71945 | M68: 0 | N68: 0 | O68: 0 | P68: 0 | Q68: - | R68: - | S68: - | T68: - | U68: - | V68: - | W68: - | X68: - | Y68: - | Z68: -
B69: Ciclo combinado | C69: - | D69: 2899.2075 | E69: 5074.855396 | F69: 4687.63614 | G69: 5147.052046 | H69: 5546.304325 | I69: 4644.766369 | J69: 5736.780197 | K69: 4743.557024 | L69: 3985.935251 | M69: 3256.652552 | N69: 2491.742937 | O69: 1733.689637 | P69: 1695.876036 | Q69: 2067.017091 | R69: 2065.817976 | S69: 2358.210423 | T69: 1920.068765 | U69: 3311.70257 | V69: 1244.611074 | W69: - | X69: - | Y69: - | Z69: -
B70: Horas de funcionamiento | C70: 6069.810401 | D70: 6203.398174 | E70: 5993.31047 | F70: 5863.023964 | G70: 5957.574027 | H70: 5781.251857 | I70: 5398.653662 | J70: 5501.915023 | K70: 4728.800333 | L70: 4244.658433 | M70: 4313.939509 | N70: 4211.77455 | O70: 3331.989723 | P70: 3437.944665 | Q70: 3942.760528 | R70: 3641.562915 | S70: 4032.993037 | T70: 3549.165225 | U70: 3747.754894 | V70: 1567.422539 | W70: - | X70: - | Y70: - | Z70: -

Sheet Mozart Reports (hidden)
A1: 1 | B1: b59690c4c4f0483f9022b9a0e20b43aa
A2: <mi app="e" ver="22"><rptloc guid="aa722ef237a449dba13f390ab7a687ea" rank="0" ds="1"><ri hasPG="0" name="Producción nominal e indisponibilidades por UFI Mensual" id="8051CC5848F9A091C4BE638E2050FB10" path="Profiles\Jose Antonio Rodriguez Ortiz (RODORTJO)\Mis Informes\Producción nominal e indisponibilidades por UFI Mensual" cf="0" prompt="1" ve="0" vm="0" flashpth="d:\Usuarios\RODORTJO\AppData\Local\Temp\1\" fimagepth="d:\Usuarios\RODORTJO\AppData\Local\Temp\1\" swfn="DashboardViewer.swf" fvars="" dvis=""><ans><pan pk="86BA8826468B4BC44041DF8DC3E31322@0@10" aid="A4C0881342DFAEA4495A3C840552915F" /><pan pk="9060EF18485322A500D2E1B585344256@0@10" aid="D476281211EAAAF71FB80080EF651250" /><pan pk="B7C3BF0D4428274429E8B8B9E552B212@0@10" aid="" /></ans><ci ps="BI" srv="apcpr64b" prj="BDEbi" prjid="D066E1C611E6257C10D00080EF253B44" li="RODORTJO" am="s" /><lu ut="06/10/2020 08:55:42" si="2.000000013fd19901676884ac73837200924128255e417131cf0284b54ed638b8dd5d3776825f8fd72ac6f7f2629a61db9cd0f3fbe08dbd34d9be23abb62297b067ed685f8f31981b117b32a46d82ff84e653172b3cbb57a3db7d549fe8633a594e08be2a006c0c8465540bdf38fba58d5168f7ba76215a3fae494365a32585b52511.3082.0.1.Europe/Madrid.upriv*_1*_pidn2*_3*_session*-lat*_1.000000014b0c53fbbc8bf3a2ec311f329db143fb93bcab4f60bb8a2e764168e08298be20756090e77e0eaf24399b6e4060f44c48f4e46c8b.0000000196bf089944457c678d76fdfe201d54f7bf8b3a33f0724d2c7e669cd077fb2005a6ab490abd6d82107c59d7cf0b39ffc438709e0d.0.1.1.BDEbi.D066E1C611E6257C10D00080EF253B44.0-3082.1.1_-0.1.0_-3082.1.1_5.5.0.*0.0000000109fad14318f31e9e440b3f6c4ebb1e13c911585abd8168832dfabb524929c113aa1794d5.0.10*.25*.15*.214.23.10*.4*.0400*.0074J.e.00000001433e2076c35e85c5aca7f12e36707577c911585a572ec9568188534ba07493ec423c7676.0" msgID="7843C04111EAAAF7312E0080EF259352" /></ri><do pa="6" cfmt="0" fmt="1" saf="0" hd="0" afg="1" rafg="1" arh="1" gosdo="0" cwd="1" ab="0" af="1" om="0" ag="0" lck="0" ppt="3" wpt="3" dai="0" rscd="1" rsrgb="1" rsrl="1" cit="2" c2d="1" cdf="0" cdt="0" dtlk="1" gaf="17" fqg="0" xqg="0" don="0" dcom="0" oaw="0" tws="0" ssm="1" ssn="MSTRStyle.Todos" glo="11101" pgsel="4" phdr="1" rdc="0" adt="0" rsoox="0" eco="1" ecfw="400" ecfh="300" ecfsu="1" ecwr="100" echr="100" eclar="1" ecrups="1"><details dbit="11169976358211" dsel="239" /></do><excel><epo ews="BDE" ece="A1" enr="MSTR.Producción_nominal_e_indisponibilidades_por_UFI_Mensual" ptn="" qtn="" rows="18" cols="126" /><esdo ews="" ece="" ptn="" /></excel><pgs><pg rows="15" cols="124" nrr="210" nrc="1641"><pg /><bls><bl sr="1" sc="1" rfetch="15" cfetch="124" posid="1" darows="0" dacols="1"><excel><epo ews="BDE" ece="A1" enr="MSTR.Producción_nominal_e_indisponibilidades_por_UFI_Mensual" ptn="" qtn="" rows="18" cols="126" /><esdo ews="" ece="" ptn="" /></excel><gridRng><sect id="TITLE_AREA" rngprop="1:1:3:2" /><sect id="ROWHEADERS_AREA" rngprop="4:1:15:2" /><sect id="COLUMNHEADERS_AREA" rngprop="1:3:3:124" /><sect id="DATA_AREA" rngprop="4:3:15:124" /></gridRng><shapes /></bl></bls></pg></pgs></rptloc></mi>

Sheet Año (hidden)
X1: 1 | Z1: 1
A2: Permanente | B2: 1990 | C2: 1990-1997 | D2: 2001-2008 | N2: Indisponibilidad permanente | P2: Mensual
A3: Prevista | B3: 1991 | C3: 1998-2005 | D3: 2009-2016 | N3: Indisponibilidad prevista | P3: Anual
A4: No prevista | B4: 1992 | C4: 2006-2013 | D4: 2017-2024 | N4: Indisponibilidad no prevista
B5: 1993 | C5: 2014-2021 | N5: Disponibilidad
B6: 1994 | N6: Horas de funcionamiento
B7: 1995
B8: 1996
B9: 1997
B10: 1998
B11: 1999
B12: 2000
B13: 2001
B14: 2002
B15: 2003
B16: 2004
B17: 2005
B18: 2006
B19: 2007
B20: 2008
B21: 2009
B22: 2010
B23: 2011
B24: 2012
B25: 2013
B26: 2014
B27: 2015
B28: 2016
B29: 2017
B30: 2018
B31: 2019
B32: 2020
